"Service Area","Expenditure Catergory","Expenditure Code","Paid Date","Trans No","Amount","Type of Expenditure","Supplier ID","Supplier Name"
"General Fund","VAT Pro Forma Invoices","Z110205","07/02/2017","1034526 - 2","200.00","Revenue","20013684","ATKINS LIMITED"
"General Fund","AR Refunds (Sundries & Periodics)","Z400404","06/01/2017","46292163 - 1","3528.98","Revenue","36721787","LINCOLN COLLEGE"
"General Fund","AR Refunds (Sundries & Periodics)","Z400404","06/01/2017","46292166 - 0","892.35","Revenue","36722027","THE CHILTERNS MANAGEMENT CO LTD"
"General Fund","AR Refunds (Sundries & Periodics)","Z400404","06/01/2017","46292167 - 1","507.04","Revenue","36725350","THE COUNCIL OF THE BOROUGH OF SOUTH SHIELDS"
"General Fund","AR Refunds (Sundries & Periodics)","Z400404","06/01/2017","46292168 - 0","1332.21","Revenue","36725613","TOUCHLOAD LTD"
"General Fund","AR Refunds (Sundries & Periodics)","Z400404","06/01/2017","46292170 - 0","3299.22","Revenue","36721990","JESUS COLLEGE"
"General Fund","C.I.T.Awaiting Payment","Z970590","17/01/2017","46292279 - 1","4924.69","Revenue","20016580","HMRC"
"General Fund","AR Refunds (Sundries & Periodics)","Z400404","20/01/2017","46292360 - 1","500.00","Revenue","36019984","OXFORD CHRISTMAS MARKET C/O NIRA EVENTS"
"General Fund","AR Refunds (Sundries & Periodics)","Z400404","20/01/2017","46292361 - 0","1000.00","Revenue","36018462","OXFORD UNIVERSITY HINDU SOCIETY"
"General Fund","AR Refunds (Sundries & Periodics)","Z400404","03/02/2017","46292487 - 0","1780.00","Revenue","36013339","HEBBORNS AMUSEMENTS"
"General Fund","AR Refunds (Sundries & Periodics)","Z400404","03/02/2017","46292489 - 0","546.00","Revenue","36701182","R P CHERRY & SON LTD"
"General Fund","VAT Pro Forma Invoices","Z110205","07/02/2017","46292524 - 2","107.25","Revenue","20016312","ECA LTD"
"General Fund","AR Refunds (Sundries & Periodics)","Z400404","10/02/2017","46292600 - 1","1500.00","Revenue","36013052","CIRCUS STARR"
"General Fund","AR Refunds (Sundries & Periodics)","Z400404","10/02/2017","46292601 - 0","2500.00","Revenue","36019931","OXFORD ROUND TABLE"
"General Fund","AR Refunds (Sundries & Periodics)","Z400404","10/02/2017","46292602 - 0","1780.00","Revenue","36013339","HEBBORNS AMUSEMENTS"
"General Fund","C.I.T.Awaiting Payment","Z970590","21/02/2017","46292629 - 1","4499.96","Revenue","20016580","HMRC"
"General Fund","AR Refunds (Sundries & Periodics)","Z400404","28/02/2017","46292710 - 1","1780.00","Revenue","20000000","GENERAL EXPENSES"
"General Fund","C.I.T.Awaiting Payment","Z970590","14/03/2017","46292874 - 1","4582.46","Revenue","20016580","HMRC"
"General Fund","AR Refunds (Sundries & Periodics)","Z400404","10/03/2017","46292898 - 0","500.00","Revenue","36701470","OXFORD UNIVERSITY QUIDDITCH CLUB"
"General Fund","AR Refunds (Sundries & Periodics)","Z400404","28/03/2017","46293098 - 1","546.90","Revenue","20000000","GENERAL EXPENSES"
"Assistant Chief Executive","General Contracted Services","D3401","10/01/2017","1033890 - 0","1400.00","Revenue","20015995","OXFORD DIGITAL MEDIA LTD"
"Assistant Chief Executive","Licences (Non-Transport)","D3804","17/01/2017","1034122 - 0","1658.00","Revenue","20018192","NLA MEDIA ACCESS LIMITED"
"Assistant Chief Executive","Grants","D3701","10/01/2017","1034272 - 1","10000.00","Revenue","20002930","OXFORDSHIRE COUNTY COUNCIL"
"Assistant Chief Executive","Consultants Fees","D3411","10/02/2017","1034626 - 0","12810.00","Revenue","20018173","MARKET & OPINION RESEARCH INTERNATIONAL LTD T/A IPSOS MORI"
"Assistant Chief Executive","Consultants Fees","D3411","07/02/2017","1034930 - 0","11360.00","Revenue","20016203","PENNA PLC"
"Assistant Chief Executive","Consultants Fees","D3411","21/02/2017","1034961 - 0","5490.00","Revenue","20018173","MARKET & OPINION RESEARCH INTERNATIONAL LTD T/A IPSOS MORI"
"Assistant Chief Executive","Main Contractor","Y021","14/02/2017","1034990 - 0","3385.00","Capital","20018311","MOTT MACDONALD LTD"
"Assistant Chief Executive","Consultants Fees","D3411","28/02/2017","1035055 - 0","12780.00","Revenue","20016203","PENNA PLC"
"Assistant Chief Executive","General Contracted Services","D3401","07/03/2017","1035256 - 0","1300.00","Revenue","20015995","OXFORD DIGITAL MEDIA LTD"
"Assistant Chief Executive","Grants","D3701","14/03/2017","1035413 - 0","4955.00","Revenue","20018674","WORKERS EDUCATIONAL ASSOCIATION"
"Assistant Chief Executive","Advertising & Publicity","D3802","14/03/2017","1035567 - 0","1051.00","Revenue","20014471","BANBURY LITHO LIMITED"
"Assistant Chief Executive","Advertising & Publicity","D3802","21/03/2017","1035568 - 0","835.00","Revenue","20014471","BANBURY LITHO LIMITED"
"Assistant Chief Executive","Advertising & Publicity","D3802","21/03/2017","1035627 - 0","2391.12","Revenue","20007856","NEWSQUEST MIDLANDS, WALES & SOUTH WEST"
"Assistant Chief Executive","General Contracted Services","D3401","28/03/2017","1035743 - 0","1400.00","Revenue","20015995","OXFORD DIGITAL MEDIA LTD"
"Assistant Chief Executive","General Contracted Services","D3401","28/03/2017","1036199 - 0","600.00","Revenue","20003025","PETE RUSSELL"
"Assistant Chief Executive","Books & Publications","D3302","28/03/2017","1036272 - 1","72.51","Revenue","20007625","MR TIM GRESSWELL"
"Assistant Chief Executive","Consultants Fees","D3411","07/02/2017","46292219 - 1","25000.00","Revenue","20002401","SOUTH OXFORDSHIRE DISTRICT COUNCIL"
"Assistant Chief Executive","Main Contractor","Y021","14/02/2017","46292607 - 18","3046.16","Capital","20018053","REED SPECIALIST RECRUITMENT LTD"
"Transformation","Software Maintenance/Running Costs","D3513","21/03/2017","1033606 - 0","4671.00","Revenue","20017849","NETCALL TELECOM LTD"
"Transformation","Services Maintenance (Planned)","B1103","10/01/2017","1033855 - 0","576.00","Revenue","20019270","Clockwork Removals Limited"
"Transformation","Temporary Bureau Staffing","A0108","17/01/2017","1034166 - 0","1000.00","Revenue","20006509","SOCITM LIMITED"
"Transformation","General Contracted Services","D3401","10/01/2017","1034241 - 0","4138.33","Revenue","20008015","M TECH COMUNICATIONS BRISTOL LTD"
"Transformation","Services Maintenance (Planned)","B1103","17/01/2017","1034260 - 0","480.00","Revenue","20019270","Clockwork Removals Limited"
"Transformation","Temporary Bureau Staffing","A0108","24/01/2017","1034304 - 0","2000.00","Revenue","20006509","SOCITM LIMITED"
"Transformation","Temporary Bureau Staffing","A0108","17/01/2017","1034404 - 0","14000.00","Revenue","20013052","SCC (SPECIALIST COMPUTER CENTRES PLC)"
"Transformation","Services Maintenance (Planned)","B1103","14/02/2017","1034575 - 0","1262.20","Revenue","20016526","FLEXIFORM BUSINESS FURNITURE LTD"
"Transformation","Temporary Bureau Staffing","A0108","14/02/2017","1034633 - 0","600.00","Revenue","20006509","SOCITM LIMITED"
"Transformation","Services Maintenance (Planned)","B1103","14/02/2017","1034742 - 0","2080.00","Revenue","20016526","FLEXIFORM BUSINESS FURNITURE LTD"
"Transformation","Services Maintenance (Planned)","B1103","21/02/2017","1034784 - 0","1254.57","Revenue","20016526","FLEXIFORM BUSINESS FURNITURE LTD"
"Transformation","Temporary Bureau Staffing","A0108","28/02/2017","1035061 - 0","3500.00","Revenue","20013052","SCC (SPECIALIST COMPUTER CENTRES PLC)"
"Transformation","Temporary Bureau Staffing","A0108","28/02/2017","1035062 - 0","3850.00","Revenue","20013052","SCC (SPECIALIST COMPUTER CENTRES PLC)"
"Transformation","Temporary Bureau Staffing","A0108","28/02/2017","1035100 - 0","2000.00","Revenue","20006509","SOCITM LIMITED"
"Transformation","Furniture Removals","D3425","21/02/2017","1035280 - 0","2189.25","Revenue","20019270","Clockwork Removals Limited"
"Transformation","Temporary Bureau Staffing","A0108","21/03/2017","1035572 - 0","1000.00","Revenue","20006509","SOCITM LIMITED"
"Transformation","Temporary Bureau Staffing","A0108","28/03/2017","1035611 - 0","1000.00","Revenue","20006509","SOCITM LIMITED"
"Transformation","General Contracted Services","D3401","07/03/2017","1035686 - 0","600.00","Revenue","20008015","M TECH COMUNICATIONS BRISTOL LTD"
"Transformation","Hardware Purchase","D3520","07/03/2017","1035686 - 1","50.00","Revenue","20008015","M TECH COMUNICATIONS BRISTOL LTD"
"Transformation","General Contracted Services","D3401","28/03/2017","1036054 - 0","3350.00","Revenue","20008015","M TECH COMUNICATIONS BRISTOL LTD"
"Transformation","General Contracted Services","D3401","28/03/2017","1036055 - 0","2000.00","Revenue","20008015","M TECH COMUNICATIONS BRISTOL LTD"
"Transformation","Temporary Bureau Staffing","A0108","17/01/2017","46292253 - 4","727.75","Revenue","20000200","CHAMPION EMPLOYMENT LTD"
"Transformation","Temporary Bureau Staffing","A0108","17/01/2017","46292313 - 13","2139.68","Revenue","20018053","REED SPECIALIST RECRUITMENT LTD"
"Transformation","Temporary Bureau Staffing","A0108","14/03/2017","46292899 - 14","19372.32","Revenue","20018053","REED SPECIALIST RECRUITMENT LTD"
"Transformation","Software Maintenance/Running Costs","D3513","24/01/2017","47988883 - 1","798.00","Revenue","20002168","DENNIS EAGLE LTD"
"Business Improvement","External Telephone Charges","D3503","21/03/2017","1029109 - 1","675.83","Revenue","20016588","VODAFONE LTD"
"Business Improvement","Management Development","A0637","10/01/2017","1033919 - 0","2500.00","Revenue","20019410","CITY & GUILDS ILM"
"Business Improvement","Contract Printing (External)","D3303","06/01/2017","1033930 - 0","1849.00","Revenue","20002930","OXFORDSHIRE COUNTY COUNCIL"
"Business Improvement","Furniture & Equipment Purchase","D3001","10/01/2017","1033931 - 0","830.00","Revenue","20002998","JBL"
"Business Improvement","Staff Advertising","A0702","10/01/2017","1033938 - 0","6366.00","Revenue","20009611","JGP RESOURCING LTD"
"Business Improvement","External Telephone Charges","D3503","10/01/2017","1033939 - 1","1774.39","Revenue","20016411","""JOHNNIE"" JOHNSON HOUSING TRUST"
"Business Improvement","Temporary Bureau Staffing","A0108","10/01/2017","1033992 - 0","1000.00","Revenue","20006509","SOCITM LIMITED"
"Business Improvement","External Telephone Charges","D3503","07/02/2017","1033997 - 1","33700.41","Revenue","20014760","BT PAYMENT SERVICES"
"Business Improvement","Corporate Development Programme","A0631","10/01/2017","1034017 - 0","2102.00","Revenue","20016254","CONFLICT RESOLUTION LTD"
"Business Improvement","Software Maintenance/Running Costs","D3513","10/01/2017","1034095 - 0","6000.00","Revenue","20018171","SIRIUS CORPORATION LTD"
"Business Improvement","Temporary Bureau Staffing","A0108","17/01/2017","1034100 - 0","1000.00","Revenue","20006509","SOCITM LIMITED"
"Business Improvement","Temporary Bureau Staffing","A0108","17/01/2017","1034101 - 0","500.00","Revenue","20006509","SOCITM LIMITED"
"Business Improvement","Consultants Fees","D3411","17/01/2017","1034167 - 0","2850.00","Revenue","20013158","WHITESPACE WASTE SOFTWARE LTD"
"Business Improvement","Consultants Fees","D3411","10/01/2017","1034172 - 0","1500.00","Revenue","20019354","INTEGRA ASSOCIATES"
"Business Improvement","Consultants Fees","D3411","21/02/2017","1034217 - 1","2200.00","Revenue","20008268","UNIT 4 BUSINESS SOFTWARE LTD."
"Business Improvement","Software Maintenance/Running Costs","D3513","10/01/2017","1034221 - 0","480.00","Revenue","20018572","AGILE COLLECTIVE LTD"
"Business Improvement","Software Maintenance/Running Costs","D3513","24/01/2017","1034224 - 1","784.00","Revenue","20006940","BT GLOBAL SERVIES"
"Business Improvement","External Telephone Charges","D3503","10/01/2017","1034226 - 1","1949.12","Revenue","20008028","VODAFONE LIMITED (CORPORATE)"
"Business Improvement","Online Services","D3510","10/01/2017","1034237 - 0","5168.35","Revenue","20009660","EXPERIAN LTD"
"Business Improvement","Software Maintenance/Running Costs","D3513","10/01/2017","1034252 - 0","8963.61","Revenue","20007875","MIDLAND HR"
"Business Improvement","Software Maintenance/Running Costs","D3513","10/01/2017","1034253 - 1","514.25","Revenue","20007875","MIDLAND HR"
"Business Improvement","Software Maintenance/Running Costs","D3513","10/01/2017","1034254 - 1","5656.75","Revenue","20007875","MIDLAND HR"
"Business Improvement","Software Maintenance/Running Costs","D3513","10/01/2017","1034255 - 0","925.65","Revenue","20007875","MIDLAND HR"
"Business Improvement","Hospitality","D3803","24/01/2017","1034269 - 1","3784.40","Revenue","20017971","A & J CATERING (OXFORDSHIRE) LTD"
"Business Improvement","General Contracted Services","D3401","10/01/2017","1034289 - 0","45601.03","Revenue","20013052","SCC (SPECIALIST COMPUTER CENTRES PLC)"
"Business Improvement","Consultants Fees","D3411","10/01/2017","1034309 - 0","4800.00","Revenue","20019116","TECH SKILLS CONSULTING LTD"
"Business Improvement","General Contracted Services","D3401","24/01/2017","1034351 - 0","425.00","Revenue","20016844","NG BAILEY IT SERVICES LTD"
"Business Improvement","Consultants Fees","D3411","31/01/2017","1034359 - 0","7336.50","Revenue","20008475","ESRI (UK) LTD"
"Business Improvement","General Contracted Services","D3401","17/01/2017","1034400 - 0","45601.03","Revenue","20013052","SCC (SPECIALIST COMPUTER CENTRES PLC)"
"Business Improvement","General Contracted Services","D3401","17/01/2017","1034401 - 0","1000.00","Revenue","20013052","SCC (SPECIALIST COMPUTER CENTRES PLC)"
"Business Improvement","General Contracted Services","D3401","17/01/2017","1034402 - 0","750.00","Revenue","20013052","SCC (SPECIALIST COMPUTER CENTRES PLC)"
"Business Improvement","General Contracted Services","D3401","17/01/2017","1034403 - 0","800.00","Revenue","20013052","SCC (SPECIALIST COMPUTER CENTRES PLC)"
"Business Improvement","Hardware Purchase","D3520","17/01/2017","1034414 - 0","12447.50","Revenue","20019338","BENTHAM LTD T/A MORGAN COMPUTERS"
"Business Improvement","General Stationery Supplies","D3301","24/01/2017","1034472 - 0","1463.71","Revenue","20007849","LYRECO UK LTD"
"Business Improvement","Hardware Purchase","D3520","17/01/2017","1034492 - 0","47315.00","Revenue","20011588","CANON (UK) lTD"
"Business Improvement","Hardware Purchase","D3520","17/01/2017","1034493 - 0","1150.00","Revenue","20011588","CANON (UK) lTD"
"Business Improvement","Short Courses","A0622","07/03/2017","1034577 - 0","1600.00","Revenue","20019427","GENIUS WITHIN CIC"
"Business Improvement","Software Maintenance/Running Costs","D3513","24/01/2017","1034579 - 0","2500.00","Revenue","20019354","INTEGRA ASSOCIATES"
"Business Improvement","Network Rental","D3531","24/01/2017","1034593 - 1","2499.80","Revenue","20016588","VODAFONE LTD"
"Business Improvement","Temporary Bureau Staffing","A0108","14/02/2017","1034632 - 0","800.00","Revenue","20006509","SOCITM LIMITED"
"Business Improvement","Travel Scheme Discount","C2505","24/01/2017","1034642 - 1","1787.50","Revenue","20006596","OXFORD BUS COMPANY LTD"
"Business Improvement","Travel Scheme Discount","C2505","24/01/2017","1034643 - 1","1295.40","Revenue","20006596","OXFORD BUS COMPANY LTD"
"Business Improvement","Software Maintenance/Running Costs","D3513","14/02/2017","1034649 - 0","2498.73","Revenue","20012320","NORTHGATE PUBLIC SERVICES (UK) LTD"
"Business Improvement","General Contracted Services","D3401","31/01/2017","1034676 - 0","967.50","Revenue","20011523","HERALD CHASE"
"Business Improvement","General Stationery Supplies","D3301","24/01/2017","1034684 - 0","1402.05","Revenue","20007849","LYRECO UK LTD"
"Business Improvement","Software Maintenance/Running Costs","D3513","14/02/2017","1034687 - 0","1600.00","Revenue","20018839","JADU LTD"
"Business Improvement","General Stationery Supplies","D3301","21/02/2017","1034755 - 0","1210.00","Revenue","20015097","HOUND ENVELOPES LTD"
"Business Improvement","Software Maintenance/Running Costs","D3513","21/02/2017","1034770 - 0","5500.00","Revenue","20014674","PLANNINGFINDER LIMITED"
"Business Improvement","Security Services","D3418","21/03/2017","1034815 - 0","1631.25","Revenue","20009730","R & R FRONTLINE SERVICES LTD"
"Business Improvement","General Contracted Services","D3401","21/02/2017","1034852 - 1","3700.50","Revenue","20019405","ROCKSURE SYSTEMS LTD"
"Business Improvement","Equipment Hire Charges","D3006","07/02/2017","1034868 - 0","550.00","Revenue","20009918","OXFORDSHIRE COUNTY COUNCIL"
"Business Improvement","Main Contractor","Y021","14/03/2017","1034904 - 1","900.00","Capital","20019354","INTEGRA ASSOCIATES"
"Business Improvement","Temporary Bureau Staffing","A0108","21/02/2017","1034908 - 0","1000.00","Revenue","20006509","SOCITM LIMITED"
"Business Improvement","Hardware Rental","D3521","07/02/2017","1034955 - 0","919.85","Revenue","20008022","NEOPOST FINANCE LIMITED"
"Business Improvement","Software Maintenance/Running Costs","D3513","14/02/2017","1034972 - 0","480.00","Revenue","20018572","AGILE COLLECTIVE LTD"
"Business Improvement","Conferences/Seminars","A0636","21/02/2017","1034988 - 0","1856.50","Revenue","20016197","THE KING'S CENTRE LTD"
"Business Improvement","Consultants Fees","D3411","07/03/2017","1035028 - 1","9800.00","Revenue","20017304","Q.LEARNING LTD"
"Business Improvement","General Contracted Services","D3401","28/02/2017","1035063 - 1","45601.03","Revenue","20013052","SCC (SPECIALIST COMPUTER CENTRES PLC)"
"Business Improvement","Management Development","A0637","28/02/2017","1035065 - 0","1581.20","Revenue","20019139","BRIGHTON SCHOOL OF BUSINESS AND MANAGEMENT LTD"
"Business Improvement","Consultants Fees","D3411","14/02/2017","1035087 - 0","5012.50","Revenue","20017632","DURADIAMOND HEALTHCARE LTD"
"Business Improvement","Consultants Fees","D3411","28/02/2017","1035175 - 0","5012.50","Revenue","20017632","DURADIAMOND HEALTHCARE LTD"
"Business Improvement","Health Screening","D3428","14/02/2017","1035183 - 0","1250.00","Revenue","20017632","DURADIAMOND HEALTHCARE LTD"
"Business Improvement","General Stationery Supplies","D3301","28/02/2017","1035186 - 0","1952.69","Revenue","20007849","LYRECO UK LTD"
"Business Improvement","Software Maintenance/Running Costs","D3513","14/02/2017","1035200 - 1","2527.15","Revenue","20012320","NORTHGATE PUBLIC SERVICES (UK) LTD"
"Business Improvement","Software Maintenance/Running Costs","D3513","14/02/2017","1035201 - 0","542.36","Revenue","20012320","NORTHGATE PUBLIC SERVICES (UK) LTD"
"Business Improvement","Consultants Fees","D3411","14/02/2017","1035202 - 0","16000.00","Revenue","20012320","NORTHGATE PUBLIC SERVICES (UK) LTD"
"Business Improvement","Software Purchase","D3511","28/02/2017","1035205 - 0","2294.13","Revenue","20011589","CAPITA BUSINESS SERVICES LTD"
"Business Improvement","Training Supplies","A0646","14/02/2017","1035207 - 0","900.67","Revenue","20012823","QUICKCALC LTD"
"Business Improvement","External Telephone Charges","D3503","21/02/2017","1035234 - 1","715.91","Revenue","20008028","VODAFONE LIMITED (CORPORATE)"
"Business Improvement","Software Maintenance/Running Costs","D3513","21/02/2017","1035237 - 1","784.00","Revenue","20006940","BT GLOBAL SERVIES"
"Business Improvement","Travel Scheme Discount","C2505","21/02/2017","1035250 - 1","1855.70","Revenue","20006596","OXFORD BUS COMPANY LTD"
"Business Improvement","Consultants Fees","D3411","07/03/2017","1035306 - 0","2375.00","Revenue","20008268","UNIT 4 BUSINESS SOFTWARE LTD."
"Business Improvement","Software Maintenance/Running Costs","D3513","28/02/2017","1035340 - 0","3300.00","Revenue","20019354","INTEGRA ASSOCIATES"
"Business Improvement","Software Maintenance/Running Costs","D3513","28/02/2017","1035341 - 0","2700.00","Revenue","20019354","INTEGRA ASSOCIATES"
"Business Improvement","Main Contractor","Y021","21/03/2017","1035342 - 1","5400.00","Capital","20019354","INTEGRA ASSOCIATES"
"Business Improvement","Contract Printing (External)","D3303","21/03/2017","1035396 - 0","6651.00","Revenue","20002930","OXFORDSHIRE COUNTY COUNCIL"
"Business Improvement","Compliance Training (H&S)","A0630","14/03/2017","1035429 - 0","600.00","Revenue","20019463","TABU LTD"
"Business Improvement","Consultants Fees","D3411","14/03/2017","1035436 - 0","2200.00","Revenue","20008268","UNIT 4 BUSINESS SOFTWARE LTD."
"Business Improvement","Contract Printing (External)","D3303","21/03/2017","1035438 - 0","539.00","Revenue","20002930","OXFORDSHIRE COUNTY COUNCIL"
"Business Improvement","Software Maintenance/Running Costs","D3513","28/02/2017","1035485 - 0","1304.75","Revenue","20009001","BOTTOMLINE TECHNOLOGIES LTD"
"Business Improvement","Hardware Rental","D3521","07/03/2017","1035509 - 0","2802.23","Revenue","20018722","SHARP BUSINESS SYSTEMS UK PLC"
"Business Improvement","Hardware Rental","D3521","07/03/2017","1035513 - 0","1179.71","Revenue","20018722","SHARP BUSINESS SYSTEMS UK PLC"
"Business Improvement","Police Checks","D3429","07/03/2017","1035536 - 0","849.50","Revenue","20010933","KENT COUNTY COUNCIL"
"Business Improvement","Temporary Bureau Staffing","A0108","07/03/2017","1035597 - 0","897.22","Revenue","20000200","CHAMPION EMPLOYMENT LTD"
"Business Improvement","Conferences/Seminars","A0636","28/03/2017","1035606 - 0","1818.00","Revenue","20016197","THE KING'S CENTRE LTD"
"Business Improvement","Temporary Bureau Staffing","A0108","28/03/2017","1035612 - 0","2000.00","Revenue","20006509","SOCITM LIMITED"
"Business Improvement","Software Maintenance/Running Costs","D3513","14/03/2017","1035624 - 0","480.00","Revenue","20018572","AGILE COLLECTIVE LTD"
"Business Improvement","Hospitality","D3803","07/03/2017","1035643 - 0","1204.20","Revenue","20017971","A & J CATERING (OXFORDSHIRE) LTD"
"Business Improvement","Software Maintenance/Running Costs","D3513","21/03/2017","1035655 - 0","8963.61","Revenue","20007875","MIDLAND HR"
"Business Improvement","Software Maintenance/Running Costs","D3513","21/03/2017","1035656 - 0","514.25","Revenue","20007875","MIDLAND HR"
"Business Improvement","Software Maintenance/Running Costs","D3513","21/03/2017","1035657 - 0","5656.75","Revenue","20007875","MIDLAND HR"
"Business Improvement","Software Maintenance/Running Costs","D3513","21/03/2017","1035658 - 0","925.65","Revenue","20007875","MIDLAND HR"
"Business Improvement","Software Maintenance/Running Costs","D3513","07/03/2017","1035662 - 0","3082.35","Revenue","20006550","ORACLE CORPORATION UK LTD"
"Business Improvement","Software Maintenance/Running Costs","D3513","07/03/2017","1035663 - 0","1541.19","Revenue","20006550","ORACLE CORPORATION UK LTD"
"Business Improvement","Consultants Fees","D3411","07/03/2017","1035688 - 0","8139.90","Revenue","20018748","OPTUM HEALTH SOLUTIONS (UK) LTD"
"Business Improvement","External Telephone Charges","D3503","14/03/2017","1035715 - 1","801.67","Revenue","20008028","VODAFONE LIMITED (CORPORATE)"
"Business Improvement","Software Maintenance/Running Costs","D3513","14/03/2017","1035777 - 0","7340.00","Revenue","20012320","NORTHGATE PUBLIC SERVICES (UK) LTD"
"Business Improvement","Software Maintenance/Running Costs","D3513","21/03/2017","1035778 - 1","13397.00","Revenue","20012320","NORTHGATE PUBLIC SERVICES (UK) LTD"
"Business Improvement","Consultants Fees","D3411","28/03/2017","1035791 - 0","5012.50","Revenue","20017632","DURADIAMOND HEALTHCARE LTD"
"Business Improvement","Contract Printing (External)","D3303","21/03/2017","1035830 - 1","1319.30","Revenue","20019101","CRITIQOM LTD"
"Business Improvement","Contract Printing (External)","D3303","21/03/2017","1035832 - 0","579.61","Revenue","20019101","CRITIQOM LTD"
"Business Improvement","Software Maintenance/Running Costs","D3513","28/03/2017","1035852 - 0","7620.00","Revenue","20009660","EXPERIAN LTD"
"Business Improvement","Short Courses","A0622","14/03/2017","1035890 - 0","3900.00","Revenue","20011276","TREVOR ROBERTS ASSOCIATES LTD"
"Business Improvement","Consultants Fees","D3411","28/03/2017","1035919 - 1","3524.92","Revenue","20008662","ARTIFAX SOFTWARE LTD"
"Business Improvement","Software Maintenance/Running Costs","D3513","28/03/2017","1035954 - 1","784.00","Revenue","20006940","BT GLOBAL SERVIES"
"Business Improvement","General Stationery Supplies","D3301","28/03/2017","1035965 - 0","1393.51","Revenue","20007849","LYRECO UK LTD"
"Business Improvement","Software Maintenance/Running Costs","D3513","28/03/2017","1036005 - 0","3800.00","Revenue","20019354","INTEGRA ASSOCIATES"
"Business Improvement","Network Rental","D3531","28/03/2017","1036010 - 1","4716.67","Revenue","20016588","VODAFONE LTD"
"Business Improvement","Network Rental","D3531","28/03/2017","1036012 - 1","4716.67","Revenue","20016588","VODAFONE LTD"
"Business Improvement","Network Rental","D3531","28/03/2017","1036018 - 1","13123.72","Revenue","20016588","VODAFONE LTD"
"Business Improvement","General Contracted Services","D3401","28/03/2017","1036121 - 0","900.00","Revenue","20013052","SCC (SPECIALIST COMPUTER CENTRES PLC)"
"Business Improvement","External Telephone Charges","D3503","04/01/2017","1036132 - 1","24049.41","Revenue","20006940","BT GLOBAL SERVIES"
"Business Improvement","General Contracted Services","D3401","28/03/2017","1036181 - 0","45601.63","Revenue","20013052","SCC (SPECIALIST COMPUTER CENTRES PLC)"
"Business Improvement","Software Maintenance/Running Costs","D3513","28/03/2017","1036245 - 0","3680.00","Revenue","20012320","NORTHGATE PUBLIC SERVICES (UK) LTD"
"Business Improvement","Software Maintenance/Running Costs","D3513","28/03/2017","1036246 - 0","9370.00","Revenue","20012320","NORTHGATE PUBLIC SERVICES (UK) LTD"
"Business Improvement","Software Maintenance/Running Costs","D3513","28/03/2017","1036247 - 0","38446.21","Revenue","20012320","NORTHGATE PUBLIC SERVICES (UK) LTD"
"Business Improvement","Consultants Fees","D3411","24/01/2017","46292212 - 3","99.00","Revenue","20011499","TOPS"
"Business Improvement","Temporary Bureau Staffing","A0108","17/01/2017","46292253 - 2","1580.64","Revenue","20000200","CHAMPION EMPLOYMENT LTD"
"Business Improvement","Temporary Bureau Staffing","A0108","17/01/2017","46292253 - 3","1041.48","Revenue","20000200","CHAMPION EMPLOYMENT LTD"
"Business Improvement","Temporary Bureau Staffing","A0108","17/01/2017","46292253 - 6","338.80","Revenue","20000200","CHAMPION EMPLOYMENT LTD"
"Business Improvement","Temporary Bureau Staffing","A0108","17/01/2017","46292313 - 9","1423.25","Revenue","20018053","REED SPECIALIST RECRUITMENT LTD"
"Business Improvement","Temporary Bureau Staffing","A0108","17/01/2017","46292313 - 10","8990.08","Revenue","20018053","REED SPECIALIST RECRUITMENT LTD"
"Business Improvement","Temporary Bureau Staffing","A0108","17/01/2017","46292313 - 11","14088.80","Revenue","20018053","REED SPECIALIST RECRUITMENT LTD"
"Business Improvement","Temporary Bureau Staffing","A0108","17/01/2017","46292313 - 12","2087.20","Revenue","20018053","REED SPECIALIST RECRUITMENT LTD"
"Business Improvement","Temporary Bureau Staffing","A0108","17/01/2017","46292313 - 16","2040.21","Revenue","20018053","REED SPECIALIST RECRUITMENT LTD"
"Business Improvement","Temporary Bureau Staffing","A0108","17/01/2017","46292313 - 18","1053.19","Revenue","20018053","REED SPECIALIST RECRUITMENT LTD"
"Business Improvement","Security Services","D3418","31/01/2017","46292448 - 1","1568.75","Revenue","20009730","R & R FRONTLINE SERVICES LTD"
"Business Improvement","Consultants Fees","D3411","28/02/2017","46292552 - 3","84.00","Revenue","20011499","TOPS"
"Business Improvement","Consultants Fees","D3411","28/02/2017","46292552 - 12","141.00","Revenue","20011499","TOPS"
"Business Improvement","Temporary Bureau Staffing","A0108","14/02/2017","46292607 - 8","7764.16","Revenue","20018053","REED SPECIALIST RECRUITMENT LTD"
"Business Improvement","Temporary Bureau Staffing","A0108","14/02/2017","46292607 - 9","657.44","Revenue","20018053","REED SPECIALIST RECRUITMENT LTD"
"Business Improvement","Temporary Bureau Staffing","A0108","14/02/2017","46292607 - 10","19063.44","Revenue","20018053","REED SPECIALIST RECRUITMENT LTD"
"Business Improvement","Temporary Bureau Staffing","A0108","14/02/2017","46292607 - 12","855.07","Revenue","20018053","REED SPECIALIST RECRUITMENT LTD"
"Business Improvement","Temporary Bureau Staffing","A0108","14/03/2017","46292899 - 10","7862.51","Revenue","20018053","REED SPECIALIST RECRUITMENT LTD"
"Business Improvement","Temporary Bureau Staffing","A0108","14/03/2017","46292899 - 11","8172.80","Revenue","20018053","REED SPECIALIST RECRUITMENT LTD"
"Business Improvement","Temporary Bureau Staffing","A0108","14/03/2017","46292899 - 12","821.80","Revenue","20018053","REED SPECIALIST RECRUITMENT LTD"
"Business Improvement","Temporary Bureau Staffing","A0108","14/03/2017","46292899 - 13","21894.48","Revenue","20018053","REED SPECIALIST RECRUITMENT LTD"
"Business Improvement","Consultants Fees","D3411","28/03/2017","46292939 - 3","42.00","Revenue","20011499","TOPS"
"Business Improvement","Consultants Fees","D3411","28/03/2017","46292939 - 7","84.00","Revenue","20011499","TOPS"
"Business Improvement","Consultants Fees","D3411","28/03/2017","46292939 - 17","57.00","Revenue","20011499","TOPS"
"Business Improvement","Other Miscellaneous Expenses","D3811","28/03/2017","46293053 - 1","500.00","Revenue","20000006","STAFF EXPENSES (CHEQUE)"
"Business Improvement","Software Maintenance/Running Costs","D3513","28/03/2017","46293096 - 1","7778.30","Revenue","20018147","NORTHGATE INFORMATION SOLUTIONS"
"Business Improvement","Main Contractor","Y021","07/02/2017","48021809 - 1","2085.88","Capital","20008028","VODAFONE LIMITED (CORPORATE)"
"Business Improvement","Main Contractor","Y021","07/02/2017","48021809 - 2","4632.00","Capital","20008028","VODAFONE LIMITED (CORPORATE)"
"Business Improvement","Main Contractor","Y021","07/02/2017","48021811 - 1","15405.81","Capital","20008028","VODAFONE LIMITED (CORPORATE)"
"Business Improvement","Main Contractor","Y021","07/02/2017","48021811 - 2","4632.00","Capital","20008028","VODAFONE LIMITED (CORPORATE)"
"Business Improvement","Main Contractor","Y021","28/02/2017","48021812 - 1","3100.00","Capital","20019354","INTEGRA ASSOCIATES"
"Business Improvement","Reactive Maintenance & Minor Repairs","B1101","14/03/2017","60070064 - 1","500.00","Revenue","20015107","DIALOGUE COMMUNICATIONS LTD"
"Welfare Reform Team","Subscriptions","D3703","07/02/2017","1034578 - 0","1095.00","Revenue","20007844","IRRV"
"Welfare Reform Team","Instructors & Coaching Fees","D3413","14/03/2017","1035765 - 0","4061.67","Revenue","20011006","ASPIRE OXFORDSHIRE COMMUNITY ENTERPRISE LTD"
"Welfare Reform Team","Grants","D3701","14/03/2017","1035805 - 0","6087.50","Revenue","20009717","ARK T CENTRE"
"Partnerships Team","Consultants Fees","D3411","24/01/2017","1033537 - 1","5950.00","Revenue","20013591","PETER BRETT ASSOCIATES LLP"
"Partnerships Team","Grants","D3701","07/02/2017","1034660 - 0","21250.00","Revenue","20016607","VISIT OXFORDSHIRE LTD"
"Partnerships Team","Grants","D3701","28/02/2017","1034661 - 0","22900.00","Revenue","20016607","VISIT OXFORDSHIRE LTD"
"Partnerships Team","Consultants Fees","D3411","21/02/2017","1034994 - 0","1289.52","Revenue","20019433","MACQUARIE EQUIPMENT FINANCE (UK) LTD"
"Partnerships Team","Subscriptions","D3703","28/02/2017","1035042 - 0","625.00","Revenue","20003591","ASSOCIATION OF TOWN CENTRE MAN"
"Partnerships Team","General Contracted Services","D3401","28/03/2017","1036215 - 0","450.00","Revenue","20018553","CITY INSIGHTS (LONDON) LTD"
"Partnerships Team","Books & Publications","D3302","28/03/2017","1036272 - 3","62.31","Revenue","20007625","MR TIM GRESSWELL"
"Partnerships Team","Temporary Bureau Staffing","A0108","14/02/2017","46292607 - 19","3033.42","Revenue","20018053","REED SPECIALIST RECRUITMENT LTD"
"Partnerships Team","Temporary Bureau Staffing","A0108","14/03/2017","46292899 - 21","2824.20","Revenue","20018053","REED SPECIALIST RECRUITMENT LTD"
"Planning & Regulatory","General Contracted Services","D3401","24/01/2017","1033125 - 1","470.00","Revenue","20009530","OSBORNE RICHARDSON LTD"
"Planning & Regulatory","Counsel & External Legal Fees","D3417","07/02/2017","1033518 - 0","481.94","Revenue","20006554","LOCAL GOVERNMENT ASSOCIATION"
"Planning & Regulatory","General Contracted Services","D3401","24/01/2017","1033785 - 1","1255.00","Revenue","20009530","OSBORNE RICHARDSON LTD"
"Planning & Regulatory","Consultants Fees","D3411","10/01/2017","1033989 - 0","2550.00","Revenue","20018827","THE OYSTER PARTNERSHIP LTD"
"Planning & Regulatory","Temporary Bureau Staffing","A0108","10/01/2017","1033990 - 0","1012.50","Revenue","20018827","THE OYSTER PARTNERSHIP LTD"
"Planning & Regulatory","Consultants Fees","D3411","10/01/2017","1034025 - 0","6000.00","Revenue","20018276","DESIGN COUNCIL"
"Planning & Regulatory","Temporary Bureau Staffing","A0108","17/01/2017","1034145 - 0","1793.75","Revenue","20018827","THE OYSTER PARTNERSHIP LTD"
"Planning & Regulatory","Consultants Fees","D3411","17/01/2017","1034158 - 0","2295.00","Revenue","20018827","THE OYSTER PARTNERSHIP LTD"
"Planning & Regulatory","Temporary Bureau Staffing","A0108","17/01/2017","1034159 - 0","3478.00","Revenue","20018827","THE OYSTER PARTNERSHIP LTD"
"Planning & Regulatory","Temporary Bureau Staffing","A0108","17/01/2017","1034178 - 0","1158.30","Revenue","20018868","BRG INTERIM SOLUTIONS LTD"
"Planning & Regulatory","Advertising & Publicity","D3802","10/01/2017","1034204 - 0","485.10","Revenue","20007856","NEWSQUEST MIDLANDS, WALES & SOUTH WEST"
"Planning & Regulatory","Advertising & Publicity","D3802","10/01/2017","1034205 - 0","517.44","Revenue","20007856","NEWSQUEST MIDLANDS, WALES & SOUTH WEST"
"Planning & Regulatory","General Contracted Services","D3401","10/01/2017","1034216 - 0","1420.00","Revenue","20009530","OSBORNE RICHARDSON LTD"
"Planning & Regulatory","Temporary Bureau Staffing","A0108","24/01/2017","1034243 - 0","1739.00","Revenue","20018827","THE OYSTER PARTNERSHIP LTD"
"Planning & Regulatory","Photocopying/Paper Supplies","D3306","17/01/2017","1034273 - 1","818.50","Revenue","20002121","CANON (UK) LTD"
"Planning & Regulatory","Advertising & Publicity","D3802","10/01/2017","1034279 - 0","689.92","Revenue","20007856","NEWSQUEST MIDLANDS, WALES & SOUTH WEST"
"Planning & Regulatory","Advertising & Publicity","D3802","10/01/2017","1034285 - 0","485.10","Revenue","20007856","NEWSQUEST MIDLANDS, WALES & SOUTH WEST"
"Planning & Regulatory","Temporary Bureau Staffing","A0108","31/01/2017","1034306 - 0","1221.00","Revenue","20018827","THE OYSTER PARTNERSHIP LTD"
"Planning & Regulatory","Consultants Fees","D3411","31/01/2017","1034307 - 0","2040.00","Revenue","20018827","THE OYSTER PARTNERSHIP LTD"
"Planning & Regulatory","Temporary Bureau Staffing","A0108","17/01/2017","1034320 - 0","418.50","Revenue","20018827","THE OYSTER PARTNERSHIP LTD"
"Planning & Regulatory","Temporary Bureau Staffing","A0108","17/01/2017","1034321 - 0","1034.91","Revenue","20018827","THE OYSTER PARTNERSHIP LTD"
"Planning & Regulatory","Temporary Bureau Staffing","A0108","17/01/2017","1034322 - 0","1019.25","Revenue","20018827","THE OYSTER PARTNERSHIP LTD"
"Planning & Regulatory","Temporary Bureau Staffing","A0108","17/01/2017","1034323 - 0","810.00","Revenue","20018827","THE OYSTER PARTNERSHIP LTD"
"Planning & Regulatory","Temporary Bureau Staffing","A0108","17/01/2017","1034324 - 0","1005.75","Revenue","20018827","THE OYSTER PARTNERSHIP LTD"
"Planning & Regulatory","Temporary Bureau Staffing","A0108","17/01/2017","1034325 - 0","1107.00","Revenue","20018827","THE OYSTER PARTNERSHIP LTD"
"Planning & Regulatory","Temporary Bureau Staffing","A0108","17/01/2017","1034326 - 0","855.09","Revenue","20018827","THE OYSTER PARTNERSHIP LTD"
"Planning & Regulatory","Temporary Bureau Staffing","A0108","17/01/2017","1034327 - 0","1120.50","Revenue","20018827","THE OYSTER PARTNERSHIP LTD"
"Planning & Regulatory","Temporary Bureau Staffing","A0108","17/01/2017","1034328 - 0","1012.50","Revenue","20018827","THE OYSTER PARTNERSHIP LTD"
"Planning & Regulatory","Temporary Bureau Staffing","A0108","17/01/2017","1034329 - 0","1032.48","Revenue","20018827","THE OYSTER PARTNERSHIP LTD"
"Planning & Regulatory","Temporary Bureau Staffing","A0108","17/01/2017","1034330 - 0","985.50","Revenue","20018827","THE OYSTER PARTNERSHIP LTD"
"Planning & Regulatory","Temporary Bureau Staffing","A0108","17/01/2017","1034331 - 0","964.98","Revenue","20018827","THE OYSTER PARTNERSHIP LTD"
"Planning & Regulatory","General Contracted Services","D3401","07/02/2017","1034343 - 1","2227.05","Revenue","20009533","AYLESBURY VALE DISTRICT COUNCIL"
"Planning & Regulatory","Instructors & Coaching Fees","D3413","17/01/2017","1034382 - 0","1777.90","Revenue","20017664","GREENBANK LTD"
"Planning & Regulatory","General Contracted Services","D3401","17/01/2017","1034391 - 0","1162.92","Revenue","20014638","S & R CHILDS FUNERAL SERVICES"
"Planning & Regulatory","Temporary Bureau Staffing","A0108","28/02/2017","1034395 - 0","980.40","Revenue","20018868","BRG INTERIM SOLUTIONS LTD"
"Planning & Regulatory","Consultants Fees","D3411","13/01/2017","1034483 - 0","5835.00","Revenue","20009818","CAMBRIDGE CITY COUNCIL"
"Planning & Regulatory","Consultants Fees","D3411","07/02/2017","1034560 - 0","4125.00","Revenue","20019346","ARTEMIS HERITAGE"
"Planning & Regulatory","Consultants Fees","D3411","24/01/2017","1034569 - 0","9147.83","Revenue","20016567","CARTER JONAS"
"Planning & Regulatory","Consultants Fees","D3411","07/02/2017","1034581 - 0","6541.26","Revenue","20019394","JOHN SLATER PLANNING LTD"
"Planning & Regulatory","Temporary Bureau Staffing","A0108","24/01/2017","1034586 - 0","1834.75","Revenue","20018827","THE OYSTER PARTNERSHIP LTD"
"Planning & Regulatory","Temporary Bureau Staffing","A0108","24/01/2017","1034588 - 0","3669.50","Revenue","20018827","THE OYSTER PARTNERSHIP LTD"
"Planning & Regulatory","Temporary Bureau Staffing","A0108","24/01/2017","1034589 - 0","1886.00","Revenue","20018827","THE OYSTER PARTNERSHIP LTD"
"Planning & Regulatory","Temporary Bureau Staffing","A0108","07/02/2017","1034666 - 0","7842.69","Revenue","20018827","THE OYSTER PARTNERSHIP LTD"
"Planning & Regulatory","Temporary Bureau Staffing","A0108","07/02/2017","1034667 - 0","1578.50","Revenue","20018827","THE OYSTER PARTNERSHIP LTD"
"Planning & Regulatory","Temporary Bureau Staffing","A0108","07/02/2017","1034669 - 0","1739.00","Revenue","20018827","THE OYSTER PARTNERSHIP LTD"
"Planning & Regulatory","Temporary Bureau Staffing","A0108","07/02/2017","1034670 - 0","1318.14","Revenue","20018827","THE OYSTER PARTNERSHIP LTD"
"Planning & Regulatory","Consultants Fees","D3411","07/02/2017","1034671 - 0","2040.00","Revenue","20018827","THE OYSTER PARTNERSHIP LTD"
"Planning & Regulatory","Temporary Bureau Staffing","A0108","14/02/2017","1034677 - 0","1131.50","Revenue","20018827","THE OYSTER PARTNERSHIP LTD"
"Planning & Regulatory","Temporary Bureau Staffing","A0108","14/02/2017","1034678 - 0","1793.75","Revenue","20018827","THE OYSTER PARTNERSHIP LTD"
"Planning & Regulatory","Temporary Bureau Staffing","A0108","14/02/2017","1034680 - 0","1739.00","Revenue","20018827","THE OYSTER PARTNERSHIP LTD"
"Planning & Regulatory","Temporary Bureau Staffing","A0108","14/02/2017","1034681 - 0","983.61","Revenue","20018827","THE OYSTER PARTNERSHIP LTD"
"Planning & Regulatory","Consultants Fees","D3411","31/01/2017","1034686 - 0","3843.77","Revenue","20008178","WEST OXFORDSHIRE DISTRICT COUNCIL GENERAL A/C"
"Planning & Regulatory","Subscriptions","D3703","31/01/2017","1034743 - 0","1150.00","Revenue","20009528","HAYMARKET MEDIA GROUP"
"Planning & Regulatory","General Contracted Services","D3401","21/02/2017","1034818 - 0","1160.00","Revenue","20014638","S & R CHILDS FUNERAL SERVICES"
"Planning & Regulatory","Temporary Bureau Staffing","A0108","07/03/2017","1034853 - 1","1108.05","Revenue","20018868","BRG INTERIM SOLUTIONS LTD"
"Planning & Regulatory","Temporary Bureau Staffing","A0108","07/03/2017","1034854 - 1","1074.75","Revenue","20018868","BRG INTERIM SOLUTIONS LTD"
"Planning & Regulatory","Temporary Bureau Staffing","A0108","21/02/2017","1034857 - 0","1178.00","Revenue","20018827","THE OYSTER PARTNERSHIP LTD"
"Planning & Regulatory","Temporary Bureau Staffing","A0108","21/02/2017","1034859 - 0","1739.00","Revenue","20018827","THE OYSTER PARTNERSHIP LTD"
"Planning & Regulatory","Temporary Bureau Staffing","A0108","21/02/2017","1034860 - 0","1017.36","Revenue","20018827","THE OYSTER PARTNERSHIP LTD"
"Planning & Regulatory","Consultants Fees","D3411","21/02/2017","1034861 - 0","2550.00","Revenue","20018827","THE OYSTER PARTNERSHIP LTD"
"Planning & Regulatory","Advertising & Publicity","D3802","07/02/2017","1034925 - 0","485.10","Revenue","20007856","NEWSQUEST MIDLANDS, WALES & SOUTH WEST"
"Planning & Regulatory","Advertising & Publicity","D3802","21/02/2017","1034926 - 0","539.00","Revenue","20007856","NEWSQUEST MIDLANDS, WALES & SOUTH WEST"
"Planning & Regulatory","Consultants Fees","D3411","28/02/2017","1034950 - 0","6000.00","Revenue","20018276","DESIGN COUNCIL"
"Planning & Regulatory","Consultants Fees","D3411","28/02/2017","1034951 - 0","6000.00","Revenue","20018276","DESIGN COUNCIL"
"Planning & Regulatory","Counsel & External Legal Fees","D3417","07/02/2017","1034963 - 0","1800.00","Revenue","20014153","MR MEYRIC LEWIS"
"Planning & Regulatory","Temporary Bureau Staffing","A0108","28/02/2017","1034980 - 0","1794.50","Revenue","20018827","THE OYSTER PARTNERSHIP LTD"
"Planning & Regulatory","Temporary Bureau Staffing","A0108","28/02/2017","1034985 - 0","2550.00","Revenue","20018827","THE OYSTER PARTNERSHIP LTD"
"Planning & Regulatory","Temporary Bureau Staffing","A0108","07/03/2017","1035099 - 1","997.95","Revenue","20018868","BRG INTERIM SOLUTIONS LTD"
"Planning & Regulatory","Consultants Fees","D3411","21/02/2017","1035170 - 0","13425.00","Revenue","20016567","CARTER JONAS"
"Planning & Regulatory","General Contracted Services","D3401","21/02/2017","1035204 - 0","990.00","Revenue","20009530","OSBORNE RICHARDSON LTD"
"Planning & Regulatory","Temporary Bureau Staffing","A0108","07/03/2017","1035210 - 0","2263.00","Revenue","20018827","THE OYSTER PARTNERSHIP LTD"
"Planning & Regulatory","Temporary Bureau Staffing","A0108","07/03/2017","1035212 - 0","1739.00","Revenue","20018827","THE OYSTER PARTNERSHIP LTD"
"Planning & Regulatory","Temporary Bureau Staffing","A0108","07/03/2017","1035213 - 0","1012.50","Revenue","20018827","THE OYSTER PARTNERSHIP LTD"
"Planning & Regulatory","Public Transport","C2501","21/02/2017","1035287 - 0","2787.00","Revenue","20006596","OXFORD BUS COMPANY LTD"
"Planning & Regulatory","Public Transport","C2501","21/02/2017","1035288 - 0","929.00","Revenue","20006596","OXFORD BUS COMPANY LTD"
"Planning & Regulatory","Consultants Fees","D3411","21/02/2017","1035346 - 0","22773.59","Revenue","20019457","ENVIRONMENTAL DIMENSION PARTNERSHIP LTD"
"Planning & Regulatory","Temporary Bureau Staffing","A0108","07/03/2017","1035395 - 1","966.60","Revenue","20018868","BRG INTERIM SOLUTIONS LTD"
"Planning & Regulatory","Temporary Bureau Staffing","A0108","14/03/2017","1035400 - 0","1739.00","Revenue","20018827","THE OYSTER PARTNERSHIP LTD"
"Planning & Regulatory","Temporary Bureau Staffing","A0108","14/03/2017","1035401 - 0","980.91","Revenue","20018827","THE OYSTER PARTNERSHIP LTD"
"Planning & Regulatory","General Contracted Services","D3401","07/03/2017","1035421 - 0","1162.92","Revenue","20014638","S & R CHILDS FUNERAL SERVICES"
"Planning & Regulatory","General Contracted Services","D3401","14/03/2017","1035423 - 0","1326.92","Revenue","20014638","S & R CHILDS FUNERAL SERVICES"
"Planning & Regulatory","General Contracted Services","D3401","14/03/2017","1035427 - 0","1326.92","Revenue","20014638","S & R CHILDS FUNERAL SERVICES"
"Planning & Regulatory","Staff Advertising","A0702","28/02/2017","1035440 - 0","1390.00","Revenue","20009528","HAYMARKET MEDIA GROUP"
"Planning & Regulatory","Advertising & Publicity","D3802","07/03/2017","1035510 - 0","485.10","Revenue","20007856","NEWSQUEST MIDLANDS, WALES & SOUTH WEST"
"Planning & Regulatory","Advertising & Publicity","D3802","07/03/2017","1035511 - 0","603.68","Revenue","20007856","NEWSQUEST MIDLANDS, WALES & SOUTH WEST"
"Planning & Regulatory","General Contracted Services","D3401","28/02/2017","1035518 - 0","9699.00","Revenue","20009530","OSBORNE RICHARDSON LTD"
"Planning & Regulatory","Temporary Bureau Staffing","A0108","21/03/2017","1035522 - 0","1739.00","Revenue","20018827","THE OYSTER PARTNERSHIP LTD"
"Planning & Regulatory","Temporary Bureau Staffing","A0108","14/03/2017","1035602 - 0","6256.88","Revenue","20009530","OSBORNE RICHARDSON LTD"
"Planning & Regulatory","Staff Advertising","A0702","28/03/2017","1035629 - 0","675.00","Revenue","20016458","REDACTIVE PUBLISHING LIMITED"
"Planning & Regulatory","Temporary Bureau Staffing","A0108","14/03/2017","1035646 - 0","966.00","Revenue","20018868","BRG INTERIM SOLUTIONS LTD"
"Planning & Regulatory","Temporary Bureau Staffing","A0108","14/03/2017","1035647 - 0","763.05","Revenue","20018868","BRG INTERIM SOLUTIONS LTD"
"Planning & Regulatory","Temporary Bureau Staffing","A0108","14/03/2017","1035648 - 0","959.70","Revenue","20018868","BRG INTERIM SOLUTIONS LTD"
"Planning & Regulatory","Temporary Bureau Staffing","A0108","28/03/2017","1035651 - 0","1005.75","Revenue","20018827","THE OYSTER PARTNERSHIP LTD"
"Planning & Regulatory","General Contracted Services","D3401","07/03/2017","1035659 - 1","417.00","Revenue","20018869","ATHEY & MASON PLUMBING & HEATING LTD"
"Planning & Regulatory","Subscriptions","D3703","28/03/2017","1035766 - 0","1000.00","Revenue","20018739","R H ENVIRONMENTAL LTD"
"Planning & Regulatory","Staff Advertising","A0702","28/03/2017","1035795 - 0","3600.00","Revenue","20009528","HAYMARKET MEDIA GROUP"
"Planning & Regulatory","General Contracted Services","D3401","21/03/2017","1035806 - 0","1121.50","Revenue","20014638","S & R CHILDS FUNERAL SERVICES"
"Planning & Regulatory","General Contracted Services","D3401","21/03/2017","1035829 - 0","1162.92","Revenue","20014638","S & R CHILDS FUNERAL SERVICES"
"Planning & Regulatory","General Contracted Services","D3401","28/03/2017","1035849 - 0","3700.00","Revenue","20015247","SOLON SECURITY"
"Planning & Regulatory","General Contracted Services","D3401","21/03/2017","1035856 - 0","2800.00","Revenue","20009530","OSBORNE RICHARDSON LTD"
"Planning & Regulatory","Advertising & Publicity","D3802","21/03/2017","1035857 - 0","485.10","Revenue","20007856","NEWSQUEST MIDLANDS, WALES & SOUTH WEST"
"Planning & Regulatory","Consultants Fees","D3411","28/03/2017","1035864 - 0","14596.60","Revenue","20008132","ARCADIS LLP"
"Planning & Regulatory","Photocopying/Paper Supplies","D3306","28/03/2017","1035941 - 1","818.50","Revenue","20011588","CANON (UK) lTD"
"Planning & Regulatory","Stamp Duty & Other Legal Fees","D3415","28/03/2017","1035985 - 0","9000.00","Revenue","20002930","OXFORDSHIRE COUNTY COUNCIL"
"Planning & Regulatory","Consultants Fees","D3411","28/03/2017","1036139 - 0","2550.00","Revenue","20018827","THE OYSTER PARTNERSHIP LTD"
"Planning & Regulatory","Consultants Fees","D3411","28/03/2017","1036140 - 1","2550.00","Revenue","20018827","THE OYSTER PARTNERSHIP LTD"
"Planning & Regulatory","Consultants Fees","D3411","28/03/2017","1036141 - 1","2550.00","Revenue","20018827","THE OYSTER PARTNERSHIP LTD"
"Planning & Regulatory","Consultants Fees","D3411","28/03/2017","1036142 - 0","2550.00","Revenue","20018827","THE OYSTER PARTNERSHIP LTD"
"Planning & Regulatory","Consultants Fees","D3411","28/03/2017","1036143 - 0","2550.00","Revenue","20018827","THE OYSTER PARTNERSHIP LTD"
"Planning & Regulatory","Consultants Fees","D3411","28/03/2017","1036262 - 0","2415.00","Revenue","20013331","OVE ARUP & PARTNERS LTD"
"Planning & Regulatory","Licences","K9571","10/01/2017","46292189 - 1","599.00","Revenue","20000017","ENVIRONMENTAL HEALTH REFUNDS"
"Planning & Regulatory","General Contracted Services","D3401","10/01/2017","46292199 - 1","658.33","Revenue","20009533","AYLESBURY VALE DISTRICT COUNCIL"
"Planning & Regulatory","Temporary Bureau Staffing","A0108","17/01/2017","46292313 - 8","7835.24","Revenue","20018053","REED SPECIALIST RECRUITMENT LTD"
"Planning & Regulatory","Temporary Bureau Staffing","A0108","17/01/2017","46292313 - 19","1093.31","Revenue","20018053","REED SPECIALIST RECRUITMENT LTD"
"Planning & Regulatory","Temporary Bureau Staffing","A0108","17/01/2017","46292313 - 21","2081.40","Revenue","20018053","REED SPECIALIST RECRUITMENT LTD"
"Planning & Regulatory","Temporary Bureau Staffing","A0108","17/01/2017","46292313 - 23","11101.71","Revenue","20018053","REED SPECIALIST RECRUITMENT LTD"
"Planning & Regulatory","Temporary Bureau Staffing","A0108","17/01/2017","46292313 - 39","76.95","Revenue","20018053","REED SPECIALIST RECRUITMENT LTD"
"Planning & Regulatory","Licences","K9571","07/02/2017","46292475 - 1","599.00","Revenue","20000017","ENVIRONMENTAL HEALTH REFUNDS"
"Planning & Regulatory","Temporary Bureau Staffing","A0108","14/02/2017","46292572 - 1","3669.50","Revenue","20018827","THE OYSTER PARTNERSHIP LTD"
"Planning & Regulatory","Temporary Bureau Staffing","A0108","14/02/2017","46292573 - 1","7349.25","Revenue","20018827","THE OYSTER PARTNERSHIP LTD"
"Planning & Regulatory","Temporary Bureau Staffing","A0108","14/02/2017","46292574 - 1","1875.75","Revenue","20018827","THE OYSTER PARTNERSHIP LTD"
"Planning & Regulatory","Temporary Bureau Staffing","A0108","14/02/2017","46292607 - 7","6769.05","Revenue","20018053","REED SPECIALIST RECRUITMENT LTD"
"Planning & Regulatory","Temporary Bureau Staffing","A0108","14/02/2017","46292607 - 14","4385.36","Revenue","20018053","REED SPECIALIST RECRUITMENT LTD"
"Planning & Regulatory","Temporary Bureau Staffing","A0108","14/02/2017","46292607 - 16","2081.40","Revenue","20018053","REED SPECIALIST RECRUITMENT LTD"
"Planning & Regulatory","Temporary Bureau Staffing","A0108","14/02/2017","46292607 - 20","981.16","Revenue","20018053","REED SPECIALIST RECRUITMENT LTD"
"Planning & Regulatory","Temporary Bureau Staffing","A0108","14/02/2017","46292607 - 21","1374.56","Revenue","20018053","REED SPECIALIST RECRUITMENT LTD"
"Planning & Regulatory","Licences","K9571","07/03/2017","46292791 - 1","599.00","Revenue","20000017","ENVIRONMENTAL HEALTH REFUNDS"
"Planning & Regulatory","Temporary Bureau Staffing","A0108","14/03/2017","46292899 - 9","11675.56","Revenue","20018053","REED SPECIALIST RECRUITMENT LTD"
"Planning & Regulatory","Temporary Bureau Staffing","A0108","14/03/2017","46292899 - 19","6935.56","Revenue","20018053","REED SPECIALIST RECRUITMENT LTD"
"Planning & Regulatory","Temporary Bureau Staffing","A0108","14/03/2017","46292899 - 20","2081.40","Revenue","20018053","REED SPECIALIST RECRUITMENT LTD"
"Planning & Regulatory","Temporary Bureau Staffing","A0108","14/03/2017","46292899 - 22","1486.92","Revenue","20018053","REED SPECIALIST RECRUITMENT LTD"
"Planning & Regulatory","Licences","K9571","14/03/2017","46292913 - 1","599.00","Revenue","20000017","ENVIRONMENTAL HEALTH REFUNDS"
"Planning & Regulatory","Consultants Fees","D3411","28/03/2017","46292939 - 15","57.00","Revenue","20011499","TOPS"
"Planning & Regulatory","Staff Advertising","A0702","28/03/2017","46293044 - 1","1412.79","Revenue","20009528","HAYMARKET MEDIA GROUP"
"Environmental Development","Grants-Private Persons","Y005","14/02/2017","1033791 - 0","3766.00","Capital","20015379","CHENEY DISABILITY SOLUTIONS LTD"
"Environmental Development","Grants-Private Persons","Y005","10/01/2017","1033915 - 0","4360.00","Capital","20014420","C M RAYSON BUILDERS"
"Environmental Development","Grants-Private Persons","Y005","17/01/2017","1034055 - 0","3995.00","Capital","20014420","C M RAYSON BUILDERS"
"Environmental Development","Grants-Private Persons","Y005","28/02/2017","1034162 - 0","3675.00","Capital","20012692","FREECHOICE GROUP"
"Environmental Development","Grants-Private Persons","Y005","10/01/2017","1034295 - 0","1150.00","Capital","20016167","MR P A SMITH"
"Environmental Development","Grants-Private Persons","Y005","28/02/2017","1034822 - 0","1660.00","Capital","20012692","FREECHOICE GROUP"
"Environmental Development","Grants-Private Persons","Y005","31/01/2017","1034823 - 0","1748.00","Capital","20012692","FREECHOICE GROUP"
"Environmental Development","Grants-Private Persons","Y005","31/01/2017","1034825 - 0","950.00","Capital","20012692","FREECHOICE GROUP"
"Environmental Development","Grants-Private Persons","Y005","14/02/2017","1035111 - 0","4050.00","Capital","20014420","C M RAYSON BUILDERS"
"Environmental Development","Grants-Private Persons","Y005","21/02/2017","1035137 - 0","1114.11","Capital","20018869","ATHEY & MASON PLUMBING & HEATING LTD"
"Environmental Development","Grants-Private Persons","Y005","07/03/2017","1035251 - 0","5948.60","Capital","20000222","ELLIOTT & JORDAN LTD"
"Environmental Development","Grants-Private Persons","Y005","28/02/2017","1035483 - 0","3950.00","Capital","20012692","FREECHOICE GROUP"
"Environmental Development","Grants-Private Persons","Y005","07/03/2017","1035541 - 0","2850.00","Capital","20015923","ABLE LIVING SOLUTIONS"
"Environmental Development","Grants-Private Persons","Y005","14/03/2017","1035640 - 0","7390.00","Capital","20010352","DOMESTIC LIFT SERVICES LTD"
"Environmental Development","Grants-Private Persons","Y005","07/03/2017","1035659 - 0","1254.15","Capital","20018869","ATHEY & MASON PLUMBING & HEATING LTD"
"Environmental Development","Grants-Private Persons","Y005","07/03/2017","1035670 - 0","4995.00","Capital","20014420","C M RAYSON BUILDERS"
"Environmental Development","Grants-Private Persons","Y005","07/03/2017","1035676 - 0","6000.00","Capital","20019448","GORDON DAVIS"
"Environmental Development","Grants-Private Persons","Y005","14/03/2017","1035691 - 0","20000.00","Capital","20017827","OWEN CASHELL GENERAL BUILDER"
"Environmental Development","Grants-Private Persons","Y005","14/03/2017","1035692 - 0","4830.00","Capital","20012692","FREECHOICE GROUP"
"Environmental Development","Grants-Private Persons","Y005","14/03/2017","1035739 - 0","9667.00","Capital","20000222","ELLIOTT & JORDAN LTD"
"Environmental Development","Grants-Private Persons","Y005","21/03/2017","1035782 - 0","3573.68","Capital","20000222","ELLIOTT & JORDAN LTD"
"Environmental Development","Grants-Private Persons","Y005","21/03/2017","1035831 - 1","4276.00","Capital","20016993","OXFORDSHIRE WET ROOMS & SHOWERS"
"Environmental Development","Grants-Private Persons","Y005","21/03/2017","1035952 - 0","800.00","Capital","20016167","MR P A SMITH"
"Environmental Development","Grants-Private Persons","Y005","21/03/2017","1035958 - 0","4550.00","Capital","20014420","C M RAYSON BUILDERS"
"Environmental Development","Grants-Private Persons","Y005","21/03/2017","1035959 - 0","6222.00","Capital","20014420","C M RAYSON BUILDERS"
"Environmental Development","Grants-Private Persons","Y005","21/03/2017","1036002 - 0","1077.36","Capital","20012692","FREECHOICE GROUP"
"Environmental Development","Grants-Private Persons","Y005","28/03/2017","1036070 - 0","5128.00","Capital","20015923","ABLE LIVING SOLUTIONS"
"Environmental Development","Grants-Private Persons","Y005","28/03/2017","1036099 - 0","4124.81","Capital","20012692","FREECHOICE GROUP"
"Environmental Development","Grants-Private Persons","Y005","24/01/2017","48021806 - 1","10000.00","Capital","20019448","GORDON DAVIS"
"Environmental Development","Grants-Private Persons","Y005","31/01/2017","48021807 - 1","10285.00","Capital","20000000","GENERAL EXPENSES"
"Environmental Development","Grants-Private Persons","Y005","21/02/2017","48021814 - 1","2169.20","Capital","20000000","GENERAL EXPENSES"
"Housing and Property","Temporary Bureau Staffing","A0108","10/01/2017","1033933 - 0","1063.75","Revenue","20018833","JAMES ANDREWS RECRUITMENT SOLUTIONS LTD"
"Housing and Property","Temporary Bureau Staffing","A0108","10/01/2017","1033934 - 0","942.02","Revenue","20018833","JAMES ANDREWS RECRUITMENT SOLUTIONS LTD"
"Housing and Property","Rent","B1701","10/01/2017","1033967 - 1","14890.00","Revenue","20017686","WORKMAN LLP"
"Housing and Property","Rent","B1701","10/01/2017","1033968 - 1","5505.47","Revenue","20017686","WORKMAN LLP"
"Housing and Property","General Contracted Services","D3401","10/01/2017","1033976 - 0","2674.00","Revenue","20019395","SWINDON COLLEGE"
"Housing and Property","Services Maintenance (Planned)","B1103","24/01/2017","1034031 - 2","40.00","Revenue","20013614","SMS ENVIRONMENTAL LIMITED"
"Housing and Property","Services Maintenance (Planned)","B1103","24/01/2017","1034031 - 3","20.00","Revenue","20013614","SMS ENVIRONMENTAL LIMITED"
"Housing and Property","Services Maintenance (Planned)","B1103","24/01/2017","1034031 - 4","542.00","Revenue","20013614","SMS ENVIRONMENTAL LIMITED"
"Housing and Property","Services Maintenance (Planned)","B1103","24/01/2017","1034031 - 5","20.00","Revenue","20013614","SMS ENVIRONMENTAL LIMITED"
"Housing and Property","Services Maintenance (Planned)","B1103","24/01/2017","1034031 - 6","20.00","Revenue","20013614","SMS ENVIRONMENTAL LIMITED"
"Housing and Property","Services Maintenance (Planned)","B1103","24/01/2017","1034031 - 7","20.00","Revenue","20013614","SMS ENVIRONMENTAL LIMITED"
"Housing and Property","Consultants Fees","D3411","17/01/2017","1034105 - 0","1416.67","Revenue","20003549","BOSSOMS BOATYARD LTD"
"Housing and Property","Homelessness Accommodation Lease Payments","D3611","10/01/2017","1034106 - 1","4980.00","Revenue","20007933","LETTING & PROPERTY MANAGEMENT"
"Housing and Property","Homelessness Accommodation Lease Payments","D3611","10/01/2017","1034107 - 1","2475.00","Revenue","20007933","LETTING & PROPERTY MANAGEMENT"
"Housing and Property","Homelessness Accommodation Lease Payments","D3611","10/01/2017","1034108 - 1","4680.00","Revenue","20007933","LETTING & PROPERTY MANAGEMENT"
"Housing and Property","Homelessness Accommodation Lease Payments","D3611","10/01/2017","1034109 - 1","2850.00","Revenue","20007933","LETTING & PROPERTY MANAGEMENT"
"Housing and Property","Homelessness Accommodation Lease Payments","D3611","10/01/2017","1034110 - 1","3000.00","Revenue","20007933","LETTING & PROPERTY MANAGEMENT"
"Housing and Property","Homelessness Accommodation Lease Payments","D3611","10/01/2017","1034111 - 1","2850.00","Revenue","20007933","LETTING & PROPERTY MANAGEMENT"
"Housing and Property","Temporary Bureau Staffing","A0108","17/01/2017","1034116 - 0","1063.75","Revenue","20018833","JAMES ANDREWS RECRUITMENT SOLUTIONS LTD"
"Housing and Property","Temporary Bureau Staffing","A0108","17/01/2017","1034117 - 0","1040.44","Revenue","20018833","JAMES ANDREWS RECRUITMENT SOLUTIONS LTD"
"Housing and Property","Consultants Fees","D3411","10/01/2017","1034123 - 0","1427.00","Revenue","20018047","TURLEY ASSOCIATES"
"Housing and Property","Reactive Maintenance & Minor Repairs","B1101","10/01/2017","1034137 - 0","14019.63","Revenue","20019359","MITIE PROPERTY SERVICES (UK) LTD"
"Housing and Property","Services Maintenance (Planned)","B1103","10/01/2017","1034176 - 1","1184.10","Revenue","20000249","SSE CONTRACTING LTD"
"Housing and Property","Services Maintenance (Planned)","B1103","10/01/2017","1034176 - 2","75.00","Revenue","20000249","SSE CONTRACTING LTD"
"Housing and Property","Consultants Fees","D3411","17/01/2017","1034203 - 0","5805.00","Revenue","20010039","MARRIOTTS"
"Housing and Property","Consultants Fees","D3411","10/01/2017","1034215 - 0","2290.00","Revenue","20008541","KEMP & KEMP LLP T/AS KEMP & KEMP PROPERTY CONSULTANCY"
"Housing and Property","Main Contractor","Y021","10/01/2017","1034219 - 0","2900.00","Capital","20002369","RIDGE & PARTNERS LLP"
"Housing and Property","Consultants Fees","D3411","17/01/2017","1034258 - 0","7000.00","Revenue","20016567","CARTER JONAS"
"Housing and Property","Temporary Bureau Staffing","A0108","31/01/2017","1034290 - 0","1063.75","Revenue","20018833","JAMES ANDREWS RECRUITMENT SOLUTIONS LTD"
"Housing and Property","Temporary Bureau Staffing","A0108","31/01/2017","1034291 - 0","1040.44","Revenue","20018833","JAMES ANDREWS RECRUITMENT SOLUTIONS LTD"
"Housing and Property","General Contracted Services","D3401","10/01/2017","1034299 - 0","1017.32","Revenue","20016705","SOUTHERN ELECTRIC POWER DISTRIBUTION PLC"
"Housing and Property","Furniture & Equipment Purchase","D3001","17/01/2017","1034312 - 0","1290.00","Revenue","20007932","FURNISHED HOMES (UNDERLEY FURNISHINGS) LTD"
"Housing and Property","General Stationery Supplies","D3301","31/01/2017","1034332 - 0","443.91","Revenue","20010534","XMA LIMITED"
"Housing and Property","Reactive Maintenance & Minor Repairs","B1101","24/01/2017","1034354 - 0","1300.00","Revenue","20013257","CITY INSULATION CONTRACTORS LIMITED"
"Housing and Property","Reactive Maintenance & Minor Repairs","B1101","24/01/2017","1034358 - 0","997.00","Revenue","20013257","CITY INSULATION CONTRACTORS LIMITED"
"Housing and Property","Reactive Maintenance & Minor Repairs","B1101","24/01/2017","1034360 - 0","790.00","Revenue","20013257","CITY INSULATION CONTRACTORS LIMITED"
"Housing and Property","Furniture & Equipment Purchase","D3001","17/01/2017","1034393 - 0","462.00","Revenue","20019169","PAUL BIRTLES T/A THE GARDEN"
"Housing and Property","Reactive Maintenance & Minor Repairs","B1101","17/01/2017","1034408 - 0","18470.37","Revenue","20019359","MITIE PROPERTY SERVICES (UK) LTD"
"Housing and Property","Reactive Maintenance & Minor Repairs","B1101","21/03/2017","1034409 - 0","6850.93","Revenue","20019359","MITIE PROPERTY SERVICES (UK) LTD"
"Housing and Property","CBL Scheme Costs","D3015","17/01/2017","1034424 - 1","15704.00","Revenue","20013716","ABRITAS LTD"
"Housing and Property","Reactive Maintenance & Minor Repairs","B1101","17/01/2017","1034466 - 0","4529.00","Revenue","20011508","D A MILES & SONS"
"Housing and Property","General Contracted Services","D3401","17/01/2017","1034474 - 0","20000.00","Revenue","20013694","SHELTER"
"Housing and Property","Rent","B1701","28/03/2017","1034485 - 1","1687.50","Revenue","20017686","WORKMAN LLP"
"Housing and Property","Bond Payments Homeless","D3600","17/01/2017","1034488 - 0","1374.17","Revenue","20011218","FOCUSPLAIN LIMITED"
"Housing and Property","Temporary Bureau Staffing","A0108","07/02/2017","1034500 - 0","876.88","Revenue","20018833","JAMES ANDREWS RECRUITMENT SOLUTIONS LTD"
"Housing and Property","Consultants Fees","D3411","24/01/2017","1034545 - 0","541.15","Revenue","20017937","FISHER GERMAN LLP"
"Housing and Property","Reactive Maintenance & Minor Repairs","B1101","07/02/2017","1034548 - 0","850.00","Revenue","20019275","SFK Consulting LLP"
"Housing and Property","Reactive Maintenance & Minor Repairs","B1101","07/02/2017","1034549 - 0","900.00","Revenue","20019275","SFK Consulting LLP"
"Housing and Property","Temporary Bureau Staffing","A0108","24/01/2017","1034591 - 0","648.00","Revenue","20018827","THE OYSTER PARTNERSHIP LTD"
"Housing and Property","Temporary Bureau Staffing","A0108","14/02/2017","1034627 - 0","1019.35","Revenue","20018833","JAMES ANDREWS RECRUITMENT SOLUTIONS LTD"
"Housing and Property","Temporary Bureau Staffing","A0108","14/02/2017","1034628 - 0","1063.75","Revenue","20018833","JAMES ANDREWS RECRUITMENT SOLUTIONS LTD"
"Housing and Property","Homelessness Accommodation Lease Payments","D3611","31/01/2017","1034641 - 1","12000.00","Revenue","20012518","JAMES  C.  PENNY ESTATE AGENTS LTD"
"Housing and Property","Services Maintenance (Planned)","B1103","24/01/2017","1034651 - 0","20.00","Revenue","20013614","SMS ENVIRONMENTAL LIMITED"
"Housing and Property","Services Maintenance (Planned)","B1103","24/01/2017","1034651 - 1","185.00","Revenue","20013614","SMS ENVIRONMENTAL LIMITED"
"Housing and Property","Services Maintenance (Planned)","B1103","24/01/2017","1034651 - 2","1000.00","Revenue","20013614","SMS ENVIRONMENTAL LIMITED"
"Housing and Property","Services Maintenance (Planned)","B1103","24/01/2017","1034651 - 3","1011.00","Revenue","20013614","SMS ENVIRONMENTAL LIMITED"
"Housing and Property","Services Maintenance (Planned)","B1103","21/02/2017","1034652 - 1","1420.00","Revenue","20013614","SMS ENVIRONMENTAL LIMITED"
"Housing and Property","Services Maintenance (Planned)","B1103","21/02/2017","1034652 - 2","6588.24","Revenue","20013614","SMS ENVIRONMENTAL LIMITED"
"Housing and Property","Services Maintenance (Planned)","B1103","21/02/2017","1034652 - 3","1400.00","Revenue","20013614","SMS ENVIRONMENTAL LIMITED"
"Housing and Property","Services Maintenance (Planned)","B1103","21/02/2017","1034652 - 4","98.00","Revenue","20013614","SMS ENVIRONMENTAL LIMITED"
"Housing and Property","Temporary Bureau Staffing","A0108","14/02/2017","1034682 - 0","711.00","Revenue","20018827","THE OYSTER PARTNERSHIP LTD"
"Housing and Property","Services Maintenance (Planned)","B1103","07/02/2017","1034688 - 1","155.00","Revenue","20000210","BARKER & EVANS LTD"
"Housing and Property","Services Maintenance (Planned)","B1103","07/02/2017","1034688 - 2","535.28","Revenue","20000210","BARKER & EVANS LTD"
"Housing and Property","Services Maintenance (Planned)","B1103","07/02/2017","1034688 - 3","175.00","Revenue","20000210","BARKER & EVANS LTD"
"Housing and Property","Services Maintenance (Planned)","B1103","07/02/2017","1034688 - 4","175.00","Revenue","20000210","BARKER & EVANS LTD"
"Housing and Property","Services Maintenance (Planned)","B1103","31/01/2017","1034730 - 0","2620.80","Revenue","20002633","ADT FIRE & SECURITY"
"Housing and Property","Temporary Bureau Staffing","A0108","07/02/2017","1034739 - 0","738.00","Revenue","20018827","THE OYSTER PARTNERSHIP LTD"
"Housing and Property","Temporary Bureau Staffing","A0108","31/01/2017","1034740 - 0","765.00","Revenue","20018827","THE OYSTER PARTNERSHIP LTD"
"Housing and Property","Advertising & Publicity","D3802","31/01/2017","1034749 - 0","550.00","Revenue","20003025","PETE RUSSELL"
"Housing and Property","Homelessness Accommodation Lease Payments","D3611","31/01/2017","1034766 - 1","25000.00","Revenue","20010426","OXFORD REAL LIMITED"
"Housing and Property","General Contracted Services","D3401","21/02/2017","1034767 - 0","3446.00","Revenue","20019307","DAKIN SERVICE STATION CONTRACTORS LTD"
"Housing and Property","Temporary Bureau Staffing","A0108","21/02/2017","1034781 - 0","1063.75","Revenue","20018833","JAMES ANDREWS RECRUITMENT SOLUTIONS LTD"
"Housing and Property","Services Maintenance (Planned)","B1103","31/01/2017","1034832 - 0","5746.00","Revenue","20000210","BARKER & EVANS LTD"
"Housing and Property","Services Maintenance (Planned)","B1103","31/01/2017","1034833 - 0","14932.00","Revenue","20000210","BARKER & EVANS LTD"
"Housing and Property","Services Maintenance (Planned)","B1103","31/01/2017","1034834 - 0","3453.00","Revenue","20000210","BARKER & EVANS LTD"
"Housing and Property","General Contracted Services","D3401","14/02/2017","1034835 - 0","2861.84","Revenue","20019050","SMS CONNECTIONS LTD"
"Housing and Property","Services Maintenance (Planned)","B1103","31/01/2017","1034848 - 0","9422.35","Revenue","20000210","BARKER & EVANS LTD"
"Housing and Property","Consultants Fees","D3411","21/02/2017","1034867 - 0","1070.00","Revenue","20015341","DAVIS COFFER LYONS"
"Housing and Property","Reactive Maintenance & Minor Repairs","B1101","07/02/2017","1034879 - 0","950.00","Revenue","20006929","ISIS SCAFFOLDING LTD"
"Housing and Property","Reactive Maintenance & Minor Repairs","B1101","14/02/2017","1034884 - 0","625.00","Revenue","20006929","ISIS SCAFFOLDING LTD"
"Housing and Property","Reactive Maintenance & Minor Repairs","B1101","14/02/2017","1034885 - 0","500.00","Revenue","20006929","ISIS SCAFFOLDING LTD"
"Housing and Property","Consultants Fees","D3411","07/02/2017","1034888 - 0","1416.67","Revenue","20003549","BOSSOMS BOATYARD LTD"
"Housing and Property","Services Maintenance (Planned)","B1103","07/02/2017","1034922 - 0","1166.68","Revenue","20000210","BARKER & EVANS LTD"
"Housing and Property","Services Maintenance (Planned)","B1103","07/02/2017","1034923 - 0","782.01","Revenue","20000210","BARKER & EVANS LTD"
"Housing and Property","General Contracted Services","D3401","07/02/2017","1034935 - 0","495.00","Revenue","20008015","M TECH COMUNICATIONS BRISTOL LTD"
"Housing and Property","Software Maintenance/Running Costs","D3513","07/02/2017","1034939 - 1","1655.00","Revenue","20003397","CITIZENS ADVICE BUREAU"
"Housing and Property","Reactive Maintenance & Minor Repairs","B1101","07/02/2017","1034949 - 0","4165.00","Revenue","20000210","BARKER & EVANS LTD"
"Housing and Property","Equipment Hire Charges","D3006","07/02/2017","1034954 - 0","555.00","Revenue","20017509","HARWELL TECHNICAL SERVICES LTD"
"Housing and Property","Temporary Bureau Staffing","A0108","28/02/2017","1034959 - 0","1063.75","Revenue","20018833","JAMES ANDREWS RECRUITMENT SOLUTIONS LTD"
"Housing and Property","Reactive Maintenance & Minor Repairs","B1101","07/02/2017","1034964 - 0","10950.00","Revenue","20019040","CRYSTAL LITE CHANDELIERS LTD"
"Housing and Property","Energy Conservation","B1165","28/02/2017","1034978 - 0","1900.00","Revenue","20019431","ELLIPSE ENERGY LIMITED"
"Housing and Property","Services Maintenance (Planned)","B1103","14/02/2017","1035018 - 2","52.50","Revenue","20000210","BARKER & EVANS LTD"
"Housing and Property","Services Maintenance (Planned)","B1103","14/02/2017","1035018 - 3","185.25","Revenue","20000210","BARKER & EVANS LTD"
"Housing and Property","Services Maintenance (Planned)","B1103","07/02/2017","1035033 - 1","267.50","Revenue","20000249","SSE CONTRACTING LTD"
"Housing and Property","Services Maintenance (Planned)","B1103","07/02/2017","1035033 - 2","2280.30","Revenue","20000249","SSE CONTRACTING LTD"
"Housing and Property","Services Maintenance (Planned)","B1103","07/02/2017","1035033 - 3","75.00","Revenue","20000249","SSE CONTRACTING LTD"
"Housing and Property","Reactive Maintenance & Minor Repairs","B1101","28/02/2017","1035075 - 0","560.00","Revenue","20006929","ISIS SCAFFOLDING LTD"
"Housing and Property","Reactive Maintenance & Minor Repairs","B1101","14/02/2017","1035082 - 0","7960.00","Revenue","20019316","TRUTH LTD T/A KJC FELT ROOFING"
"Housing and Property","Reactive Maintenance & Minor Repairs","B1101","14/02/2017","1035096 - 0","750.00","Revenue","20019316","TRUTH LTD T/A KJC FELT ROOFING"
"Housing and Property","Reactive Maintenance & Minor Repairs","B1101","14/02/2017","1035097 - 0","600.00","Revenue","20019316","TRUTH LTD T/A KJC FELT ROOFING"
"Housing and Property","Reactive Maintenance & Minor Repairs","B1101","14/02/2017","1035116 - 0","1987.00","Revenue","20000397","WINDRUSH DOOR & WINDOW SERVICES LTD"
"Housing and Property","Reactive Maintenance & Minor Repairs","B1101","14/02/2017","1035127 - 0","850.00","Revenue","20019316","TRUTH LTD T/A KJC FELT ROOFING"
"Housing and Property","Reactive Maintenance & Minor Repairs","B1101","14/02/2017","1035129 - 0","875.00","Revenue","20019316","TRUTH LTD T/A KJC FELT ROOFING"
"Housing and Property","Reactive Maintenance & Minor Repairs","B1101","14/02/2017","1035130 - 0","898.00","Revenue","20019316","TRUTH LTD T/A KJC FELT ROOFING"
"Housing and Property","Consultants Fees","D3411","28/02/2017","1035156 - 0","5624.00","Revenue","20018753","BUTLER SHERBORN"
"Housing and Property","Energy Conservation","B1165","21/02/2017","1035159 - 0","2592.00","Revenue","20018537","AGILITY SURVEY LTD"
"Housing and Property","Reactive Maintenance & Minor Repairs","B1101","14/02/2017","1035163 - 0","10452.72","Revenue","20000278","B & M ENGINEERS LIMITED"
"Housing and Property","Temporary Bureau Staffing","A0108","07/03/2017","1035171 - 0","1063.75","Revenue","20018833","JAMES ANDREWS RECRUITMENT SOLUTIONS LTD"
"Housing and Property","Short Courses","A0622","14/02/2017","1035174 - 0","2310.00","Revenue","20009599","ABINGDON & WITNEY COLLEGE"
"Housing and Property","Services Maintenance (Planned)","B1103","14/02/2017","1035240 - 0","2069.60","Revenue","20000210","BARKER & EVANS LTD"
"Housing and Property","Main Contractor","Y021","28/02/2017","1035271 - 0","550.00","Capital","20019402","ASBESTOS CONSULTANTSEUROPE LTD"
"Housing and Property","Energy Conservation","B1165","28/02/2017","1035285 - 0","1880.00","Revenue","20019044","COMPLIANCE365"
"Housing and Property","Services Maintenance (Planned)","B1103","28/02/2017","1035311 - 0","700.00","Revenue","20013614","SMS ENVIRONMENTAL LIMITED"
"Housing and Property","Services Maintenance (Planned)","B1103","28/02/2017","1035311 - 2","1200.00","Revenue","20013614","SMS ENVIRONMENTAL LIMITED"
"Housing and Property","Services Maintenance (Planned)","B1103","28/02/2017","1035311 - 3","189.00","Revenue","20013614","SMS ENVIRONMENTAL LIMITED"
"Housing and Property","Services Maintenance (Planned)","B1103","28/02/2017","1035314 - 2","910.00","Revenue","20013614","SMS ENVIRONMENTAL LIMITED"
"Housing and Property","Services Maintenance (Planned)","B1103","28/02/2017","1035314 - 3","570.00","Revenue","20013614","SMS ENVIRONMENTAL LIMITED"
"Housing and Property","Services Maintenance (Planned)","B1103","28/02/2017","1035314 - 4","4408.30","Revenue","20013614","SMS ENVIRONMENTAL LIMITED"
"Housing and Property","Services Maintenance (Planned)","B1103","28/02/2017","1035314 - 5","622.00","Revenue","20013614","SMS ENVIRONMENTAL LIMITED"
"Housing and Property","Services Maintenance (Planned)","B1103","28/02/2017","1035314 - 6","230.00","Revenue","20013614","SMS ENVIRONMENTAL LIMITED"
"Housing and Property","Services Maintenance (Planned)","B1103","28/02/2017","1035314 - 7","765.00","Revenue","20013614","SMS ENVIRONMENTAL LIMITED"
"Housing and Property","Services Maintenance (Planned)","B1103","28/02/2017","1035314 - 14","620.00","Revenue","20013614","SMS ENVIRONMENTAL LIMITED"
"Housing and Property","Reactive Maintenance & Minor Repairs","B1101","21/02/2017","1035317 - 0","2311.00","Revenue","20011508","D A MILES & SONS"
"Housing and Property","Reactive Maintenance & Minor Repairs","B1101","21/02/2017","1035319 - 0","1818.00","Revenue","20011508","D A MILES & SONS"
"Housing and Property","Reactive Maintenance & Minor Repairs","B1101","21/02/2017","1035320 - 0","4888.00","Revenue","20011508","D A MILES & SONS"
"Housing and Property","Reactive Maintenance & Minor Repairs","B1101","21/02/2017","1035321 - 0","1795.00","Revenue","20011508","D A MILES & SONS"
"Housing and Property","Counsel & External Legal Fees","D3417","21/02/2017","1035344 - 0","527.00","Revenue","20018250","PINSENT MASONS LLP"
"Housing and Property","Temporary Bureau Staffing","A0108","21/03/2017","1035348 - 0","1063.75","Revenue","20018833","JAMES ANDREWS RECRUITMENT SOLUTIONS LTD"
"Housing and Property","Homelessness Accommodation Lease Payments","D3611","28/02/2017","1035390 - 1","17290.00","Revenue","20011218","FOCUSPLAIN LIMITED"
"Housing and Property","Homelessness Accommodation Lease Payments","D3611","28/02/2017","1035391 - 1","17680.00","Revenue","20011218","FOCUSPLAIN LIMITED"
"Housing and Property","Homelessness Accommodation Lease Payments","D3611","28/02/2017","1035392 - 1","19760.00","Revenue","20011218","FOCUSPLAIN LIMITED"
"Housing and Property","Services Maintenance (Planned)","B1103","28/02/2017","1035402 - 0","450.00","Revenue","20017892","TRIPLE POLE ELECTRICS LTD"
"Housing and Property","Reactive Maintenance & Minor Repairs","B1101","28/02/2017","1035406 - 0","905.00","Revenue","20000397","WINDRUSH DOOR & WINDOW SERVICES LTD"
"Housing and Property","Reactive Maintenance & Minor Repairs","B1101","28/02/2017","1035407 - 0","1235.00","Revenue","20000397","WINDRUSH DOOR & WINDOW SERVICES LTD"
"Housing and Property","Services Maintenance (Planned)","B1103","07/03/2017","1035408 - 0","1214.74","Revenue","20000210","BARKER & EVANS LTD"
"Housing and Property","Reactive Maintenance & Minor Repairs","B1101","28/02/2017","1035416 - 0","720.00","Revenue","20002568","PYROTEC SERVICES LTD"
"Housing and Property","Reactive Maintenance & Minor Repairs","B1101","28/02/2017","1035450 - 0","448.50","Revenue","20000397","WINDRUSH DOOR & WINDOW SERVICES LTD"
"Housing and Property","Training Short Courses","A0602","28/02/2017","1035459 - 1","480.00","Revenue","20002984","CHARTERED INSTITUTE HOUSING"
"Housing and Property","Services Maintenance (Planned)","B1103","14/03/2017","1035482 - 0","550.00","Revenue","20012389","PUMPING  SOLUTIONS  (UK)  LTD"
"Housing and Property","Reactive Maintenance & Minor Repairs","B1101","21/03/2017","1035500 - 0","950.00","Revenue","20013257","CITY INSULATION CONTRACTORS LIMITED"
"Housing and Property","Temporary Bureau Staffing","A0108","28/03/2017","1035516 - 0","1063.75","Revenue","20018833","JAMES ANDREWS RECRUITMENT SOLUTIONS LTD"
"Housing and Property","Services Maintenance (Planned)","B1103","07/03/2017","1035539 - 0","1644.78","Revenue","20000210","BARKER & EVANS LTD"
"Housing and Property","Services Maintenance (Planned)","B1103","07/03/2017","1035539 - 1","587.32","Revenue","20000210","BARKER & EVANS LTD"
"Housing and Property","Services Maintenance (Planned)","B1103","07/03/2017","1035539 - 2","653.00","Revenue","20000210","BARKER & EVANS LTD"
"Housing and Property","Services Maintenance (Planned)","B1103","07/03/2017","1035539 - 3","1453.59","Revenue","20000210","BARKER & EVANS LTD"
"Housing and Property","Homelessness Accommodation Lease Payments","D3611","23/02/2017","1035554 - 1","12000.00","Revenue","20012518","JAMES  C.  PENNY ESTATE AGENTS LTD"
"Housing and Property","Homelessness Accommodation Lease Payments","D3611","23/02/2017","1035555 - 1","12000.00","Revenue","20012518","JAMES  C.  PENNY ESTATE AGENTS LTD"
"Housing and Property","Homelessness Accommodation Lease Payments","D3611","07/03/2017","1035556 - 1","12000.00","Revenue","20012518","JAMES  C.  PENNY ESTATE AGENTS LTD"
"Housing and Property","Services Maintenance (Planned)","B1103","07/03/2017","1035581 - 0","526.50","Revenue","20000249","SSE CONTRACTING LTD"
"Housing and Property","Furniture & Equipment Purchase","D3001","07/03/2017","1035591 - 0","880.00","Revenue","20007932","FURNISHED HOMES (UNDERLEY FURNISHINGS) LTD"
"Housing and Property","Furniture & Equipment Purchase","D3001","07/03/2017","1035592 - 0","1260.00","Revenue","20007932","FURNISHED HOMES (UNDERLEY FURNISHINGS) LTD"
"Housing and Property","Temporary Bureau Staffing","A0108","28/03/2017","1035595 - 0","1063.75","Revenue","20018833","JAMES ANDREWS RECRUITMENT SOLUTIONS LTD"
"Housing and Property","Energy Conservation","B1165","28/03/2017","1035634 - 0","1440.00","Revenue","20019044","COMPLIANCE365"
"Housing and Property","Energy Conservation","B1165","28/03/2017","1035641 - 0","1175.00","Revenue","20019431","ELLIPSE ENERGY LIMITED"
"Housing and Property","Reactive Maintenance & Minor Repairs","B1101","14/03/2017","1035667 - 0","479.00","Revenue","20016518","BESPOKE STONEMASONRY SERVICES LTD"
"Housing and Property","Consultants Fees","D3411","14/03/2017","1035669 - 0","1416.67","Revenue","20003549","BOSSOMS BOATYARD LTD"
"Housing and Property","Energy Conservation","B1165","14/03/2017","1035749 - 0","2304.00","Revenue","20018537","AGILITY SURVEY LTD"
"Housing and Property","Reactive Maintenance & Minor Repairs","B1101","14/03/2017","1035757 - 0","750.00","Revenue","20019316","TRUTH LTD T/A KJC FELT ROOFING"
"Housing and Property","Reactive Maintenance & Minor Repairs","B1101","14/03/2017","1035758 - 0","500.00","Revenue","20019316","TRUTH LTD T/A KJC FELT ROOFING"
"Housing and Property","Reactive Maintenance & Minor Repairs","B1101","14/03/2017","1035759 - 0","450.00","Revenue","20019316","TRUTH LTD T/A KJC FELT ROOFING"
"Housing and Property","Consultants Fees","D3411","14/03/2017","1035779 - 0","2000.00","Revenue","20017937","FISHER GERMAN LLP"
"Housing and Property","Controlled Entry Maintenance","B1243","28/03/2017","1035798 - 0","3477.60","Revenue","20015630","BAYDALE CONTROL SYSTEMS"
"Housing and Property","Consultants Fees","D3411","28/03/2017","1035816 - 0","1770.00","Revenue","20010039","MARRIOTTS"
"Housing and Property","Consultants Fees","D3411","21/03/2017","1035818 - 1","2250.00","Revenue","20008541","KEMP & KEMP LLP T/AS KEMP & KEMP PROPERTY CONSULTANCY"
"Housing and Property","Consultants Fees","D3411","14/03/2017","1035846 - 0","2250.00","Revenue","20008541","KEMP & KEMP LLP T/AS KEMP & KEMP PROPERTY CONSULTANCY"
"Housing and Property","Service Charges","B1821","21/03/2017","1035879 - 1","2251.99","Revenue","20016303","AMAS LTD NONRENT A/C"
"Housing and Property","Homelessness Accommodation Lease Payments","D3611","21/03/2017","1035891 - 1","5025.00","Revenue","20010650","MR J KEOWN"
"Housing and Property","Homelessness Accommodation Lease Payments","D3611","21/03/2017","1035892 - 1","5361.00","Revenue","20010650","MR J KEOWN"
"Housing and Property","Homelessness Accommodation Lease Payments","D3611","21/03/2017","1035893 - 1","5361.00","Revenue","20010650","MR J KEOWN"
"Housing and Property","Rent","B1701","28/03/2017","1035901 - 1","5487.48","Revenue","20017686","WORKMAN LLP"
"Housing and Property","Rent","B1701","28/03/2017","1035902 - 1","14890.00","Revenue","20017686","WORKMAN LLP"
"Housing and Property","Homelessness Accommodation Lease Payments","D3611","21/03/2017","1035913 - 1","2850.00","Revenue","20007933","LETTING & PROPERTY MANAGEMENT"
"Housing and Property","Homelessness Accommodation Lease Payments","D3611","21/03/2017","1035914 - 1","3000.00","Revenue","20007933","LETTING & PROPERTY MANAGEMENT"
"Housing and Property","Homelessness Accommodation Lease Payments","D3611","21/03/2017","1035915 - 1","2850.00","Revenue","20007933","LETTING & PROPERTY MANAGEMENT"
"Housing and Property","Homelessness Accommodation Lease Payments","D3611","21/03/2017","1035916 - 1","4680.00","Revenue","20007933","LETTING & PROPERTY MANAGEMENT"
"Housing and Property","Homelessness Accommodation Lease Payments","D3611","21/03/2017","1035917 - 1","2475.00","Revenue","20007933","LETTING & PROPERTY MANAGEMENT"
"Housing and Property","Homelessness Accommodation Lease Payments","D3611","21/03/2017","1035918 - 1","4980.00","Revenue","20007933","LETTING & PROPERTY MANAGEMENT"
"Housing and Property","Reactive Maintenance & Minor Repairs","B1101","21/03/2017","1035982 - 0","685.00","Revenue","20000210","BARKER & EVANS LTD"
"Housing and Property","Counsel & External Legal Fees","D3417","21/03/2017","1036061 - 0","2611.84","Revenue","20008923","TROWERS & HAMLINS"
"Housing and Property","Main Contractor","Y021","28/03/2017","1036078 - 0","965.00","Capital","20019100","PROJECT MANAGEMENT SERVICES OXFORD"
"Housing and Property","Reactive Maintenance & Minor Repairs","B1101","28/03/2017","1036096 - 0","3755.00","Revenue","20011508","D A MILES & SONS"
"Housing and Property","Reactive Maintenance & Minor Repairs","B1101","28/03/2017","1036210 - 0","476.56","Revenue","20000210","BARKER & EVANS LTD"
"Housing and Property","Books & Publications","D3302","28/03/2017","1036272 - 4","62.31","Revenue","20007625","MR TIM GRESSWELL"
"Housing and Property","Rent Allowance Cheques (Home Choice)","F5033","10/01/2017","46292204 - 1","1275.00","Revenue","20000010","HOUSING PAYMENTS"
"Housing and Property","Rent Allowance Cheques (Home Choice)","F5033","10/01/2017","46292236 - 1","1315.00","Revenue","20000010","HOUSING PAYMENTS"
"Housing and Property","Rent Allowance Cheques (Home Choice)","F5033","10/01/2017","46292237 - 1","2034.00","Revenue","20000010","HOUSING PAYMENTS"
"Housing and Property","Rent Allowance Cheques (Home Choice)","F5033","10/01/2017","46292238 - 1","1221.30","Revenue","20000010","HOUSING PAYMENTS"
"Housing and Property","Rent Allowance Cheques (Home Choice)","F5033","10/01/2017","46292239 - 1","1594.04","Revenue","20000010","HOUSING PAYMENTS"
"Housing and Property","Rent Allowance Cheques (Home Choice)","F5033","10/01/2017","46292240 - 1","1875.00","Revenue","20000010","HOUSING PAYMENTS"
"Housing and Property","Rent Allowance Cheques (Home Choice)","F5033","10/01/2017","46292241 - 1","3191.04","Revenue","20000018","Homelessness Holding Fee Misc Account"
"Housing and Property","Other Miscellaneous Expenses","D3811","10/01/2017","46292242 - 1","1000.00","Revenue","20000018","Homelessness Holding Fee Misc Account"
"Housing and Property","Homeless Prevention","D3426","10/01/2017","46292244 - 1","1400.00","Revenue","20000018","Homelessness Holding Fee Misc Account"
"Housing and Property","Homeless Prevention","D3426","10/01/2017","46292246 - 1","600.00","Revenue","20000018","Homelessness Holding Fee Misc Account"
"Housing and Property","Homeless Prevention","D3426","10/01/2017","46292247 - 1","680.00","Revenue","20000018","Homelessness Holding Fee Misc Account"
"Housing and Property","Homeless Prevention","D3426","10/01/2017","46292247 - 2","102.92","Revenue","20000018","Homelessness Holding Fee Misc Account"
"Housing and Property","Other Miscellaneous Expenses","D3811","10/01/2017","46292248 - 1","1000.00","Revenue","20000018","Homelessness Holding Fee Misc Account"
"Housing and Property","Other Miscellaneous Expenses","D3811","17/01/2017","46292260 - 1","500.00","Revenue","20009273","ASYLUM WELCOME"
"Housing and Property","Other Miscellaneous Expenses","D3811","17/01/2017","46292261 - 1","600.00","Revenue","20009273","ASYLUM WELCOME"
"Housing and Property","Homeless Prevention","D3426","17/01/2017","46292280 - 1","600.00","Revenue","20000018","Homelessness Holding Fee Misc Account"
"Housing and Property","Homeless Prevention","D3426","17/01/2017","46292294 - 1","900.00","Revenue","20000018","Homelessness Holding Fee Misc Account"
"Housing and Property","Rent Allowance Cheques (Home Choice)","F5033","17/01/2017","46292297 - 1","1550.00","Revenue","20000010","HOUSING PAYMENTS"
"Housing and Property","Rent Allowance Cheques (Home Choice)","F5033","17/01/2017","46292297 - 2","1400.00","Revenue","20000010","HOUSING PAYMENTS"
"Housing and Property","Rent Allowance Cheques (Home Choice)","F5033","17/01/2017","46292297 - 3","200.00","Revenue","20000010","HOUSING PAYMENTS"
"Housing and Property","Grants","D3701","17/01/2017","46292298 - 1","13725.75","Revenue","20008698","OXFORD HOMELESS PATHWAYS"
"Housing and Property","Grants","D3701","17/01/2017","46292299 - 1","8907.50","Revenue","20004323","ELMORE COMMUNITY SERVICES"
"Housing and Property","Grants","D3701","17/01/2017","46292300 - 2","18447.85","Revenue","20011006","ASPIRE OXFORDSHIRE COMMUNITY ENTERPRISE LTD"
"Housing and Property","Rent Allowance Cheques (Home Choice)","F5033","17/01/2017","46292302 - 1","1472.76","Revenue","20000010","HOUSING PAYMENTS"
"Housing and Property","Rent Allowance Cheques (Home Choice)","F5033","17/01/2017","46292302 - 2","2240.00","Revenue","20000010","HOUSING PAYMENTS"
"Housing and Property","Rent Allowance Cheques (Home Choice)","F5033","17/01/2017","46292302 - 3","2240.00","Revenue","20000010","HOUSING PAYMENTS"
"Housing and Property","Temporary Bureau Staffing","A0108","17/01/2017","46292313 - 7","13342.38","Revenue","20018053","REED SPECIALIST RECRUITMENT LTD"
"Housing and Property","Grants","D3701","17/01/2017","46292316 - 1","1395.00","Revenue","20004324","THE GATEHOUSE"
"Housing and Property","Grants","D3701","17/01/2017","46292317 - 1","1395.00","Revenue","20004324","THE GATEHOUSE"
"Housing and Property","Grants","D3701","17/01/2017","46292318 - 1","14690.00","Revenue","20009273","ASYLUM WELCOME"
"Housing and Property","Rent Allowance Cheques (Home Choice)","F5033","24/01/2017","46292344 - 1","3300.00","Revenue","20019428","FRANCIS PEARSON"
"Housing and Property","Rent Allowance Cheques (Home Choice)","F5033","24/01/2017","46292345 - 1","4125.00","Revenue","20016904","CHARLIE MCDONAGH"
"Housing and Property","Homeless Prevention","D3426","24/01/2017","46292349 - 1","750.00","Revenue","20000010","HOUSING PAYMENTS"
"Housing and Property","Homeless Prevention","D3426","24/01/2017","46292364 - 1","1250.00","Revenue","20019368","MR JOHN S & MRS VERONICA T WALTERS"
"Housing and Property","Grants","D3701","24/01/2017","46292371 - 1","3125.00","Revenue","20016020","BIG ISSUE FOUNDATION"
"Housing and Property","Homeless Prevention","D3426","31/01/2017","46292399 - 1","621.14","Revenue","20015871","MR W MUELLER"
"Housing and Property","Void Tenant Choice","B1186","31/01/2017","46292424 - 1","1052.11","Revenue","20000000","GENERAL EXPENSES"
"Housing and Property","Rent Allowance Cheques (Home Choice)","F5033","31/01/2017","46292425 - 1","1832.76","Revenue","20014702","PREMIER LETTING"
"Housing and Property","Homeless Prevention","D3426","31/01/2017","46292435 - 1","791.04","Revenue","20019459","MR IAN TURNER"
"Housing and Property","Void Tenant Choice","B1186","31/01/2017","46292445 - 1","5800.00","Revenue","20000000","GENERAL EXPENSES"
"Housing and Property","Void Tenant Choice","B1186","31/01/2017","46292445 - 2","125.00","Revenue","20000000","GENERAL EXPENSES"
"Housing and Property","Rent Allowance Cheques (Home Choice)","F5033","31/01/2017","46292455 - 1","2775.00","Revenue","20015351","ADMIRAL HOMES"
"Housing and Property","Rent Allowance Cheques (Home Choice)","F5033","31/01/2017","46292456 - 1","500.00","Revenue","20019446","MR E ALDWORTH"
"Housing and Property","Rent Allowance Cheques (Home Choice)","F5033","31/01/2017","46292457 - 1","900.00","Revenue","20015351","ADMIRAL HOMES"
"Housing and Property","Homeless Prevention","D3426","31/01/2017","46292459 - 1","731.04","Revenue","20019468","MR MARK HUNT"
"Housing and Property","Rent Allowance Cheques (Home Choice)","F5033","31/01/2017","46292460 - 1","1700.00","Revenue","20019467","MS JULIE PRITCHARD"
"Housing and Property","Homeless Prevention","D3426","31/01/2017","46292461 - 1","1091.04","Revenue","20019466","MR PETER BENNETT"
"Housing and Property","Fire Alarms and Emergency Lighting","B1241","07/02/2017","46292476 - 3","245.50","Revenue","20002568","PYROTEC SERVICES LTD"
"Housing and Property","Fire Alarms and Emergency Lighting","B1241","07/02/2017","46292476 - 4","140.00","Revenue","20002568","PYROTEC SERVICES LTD"
"Housing and Property","Services Maintenance (Planned)","B1103","07/02/2017","46292477 - 4","160.00","Revenue","20004494","COTSWOLD LIFTS LTD"
"Housing and Property","Services Maintenance (Planned)","B1103","07/02/2017","46292477 - 5","130.00","Revenue","20004494","COTSWOLD LIFTS LTD"
"Housing and Property","Services Maintenance (Planned)","B1103","07/02/2017","46292477 - 6","40.00","Revenue","20004494","COTSWOLD LIFTS LTD"
"Housing and Property","Services Maintenance (Planned)","B1103","07/02/2017","46292477 - 7","40.00","Revenue","20004494","COTSWOLD LIFTS LTD"
"Housing and Property","Grants","D3701","07/02/2017","46292506 - 1","27000.00","Revenue","20007948","CHENEY SCHOOL ACADEMY TRUST"
"Housing and Property","Rent Allowance Cheques (Home Choice)","F5033","07/02/2017","46292532 - 1","2775.00","Revenue","20019371","MR FINBARR CALNAN"
"Housing and Property","Homeless Prevention","D3426","14/02/2017","46292553 - 1","680.00","Revenue","20019476","PROPERTY PLUS"
"Housing and Property","Homeless Prevention","D3426","14/02/2017","46292553 - 2","102.92","Revenue","20019476","PROPERTY PLUS"
"Housing and Property","Homeless Prevention","D3426","14/02/2017","46292558 - 1","900.00","Revenue","20019475","AMY TERBLANCHE & REAGAN HOOPER"
"Housing and Property","Homeless Prevention","D3426","14/02/2017","46292558 - 2","121.52","Revenue","20019475","AMY TERBLANCHE & REAGAN HOOPER"
"Housing and Property","Grants","D3701","14/02/2017","46292567 - 1","13750.00","Revenue","20004327","THE PORCH"
"Housing and Property","Void Tenant Choice","B1186","14/02/2017","46292570 - 1","5800.00","Revenue","20000010","HOUSING PAYMENTS"
"Housing and Property","Grants","D3701","14/02/2017","46292571 - 1","2081.00","Revenue","20000000","GENERAL EXPENSES"
"Housing and Property","Homeless Prevention","D3426","14/02/2017","46292594 - 1","570.00","Revenue","20019369","MR N & MRS S CHAMBERS"
"Housing and Property","Rent Allowance Cheques (Home Choice)","F5033","14/02/2017","46292603 - 1","995.00","Revenue","20019477","MISS HASNA ELMOUMANE"
"Housing and Property","Rent Allowance Cheques (Home Choice)","F5033","14/02/2017","46292604 - 1","1550.12","Revenue","20019477","MISS HASNA ELMOUMANE"
"Housing and Property","Homeless Prevention","D3426","14/02/2017","46292606 - 1","1200.00","Revenue","20000010","HOUSING PAYMENTS"
"Housing and Property","Temporary Bureau Staffing","A0108","14/02/2017","46292607 - 6","20110.38","Revenue","20018053","REED SPECIALIST RECRUITMENT LTD"
"Housing and Property","Consultants Fees","D3411","21/02/2017","46292620 - 1","7046.00","Revenue","20008184","CITIZENS ADVICE BUREAU"
"Housing and Property","Window Cleaning","B1606","07/03/2017","46292635 - 3","585.00","Revenue","20008024","KINGS SERVICES"
"Housing and Property","Void Tenant Choice","B1186","21/02/2017","46292644 - 1","5800.00","Revenue","20000010","HOUSING PAYMENTS"
"Housing and Property","Grants","D3701","07/03/2017","46292645 - 1","70178.60","Revenue","20019143","ST MUNGOS"
"Housing and Property","Grants","D3701","07/03/2017","46292646 - 1","24737.96","Revenue","20019143","ST MUNGOS"
"Housing and Property","Homeless Prevention","D3426","21/02/2017","46292649 - 1","1242.60","Revenue","20019483","MR HASSAN OMAR"
"Housing and Property","Homeless Prevention","D3426","21/02/2017","46292661 - 1","695.52","Revenue","20000010","HOUSING PAYMENTS"
"Housing and Property","Other Miscellaneous Expenses","D3811","28/02/2017","46292678 - 1","500.00","Revenue","20009273","ASYLUM WELCOME"
"Housing and Property","Rent Allowance Cheques (Home Choice)","F5033","28/02/2017","46292720 - 1","2775.00","Revenue","20019469","MS EMMA MCLEOD"
"Housing and Property","Homeless Prevention","D3426","21/03/2017","46292724 - 1","302.47","Revenue","20019143","ST MUNGOS"
"Housing and Property","Homeless Prevention","D3426","21/03/2017","46292724 - 2","585.22","Revenue","20019143","ST MUNGOS"
"Housing and Property","Fire Alarms and Emergency Lighting","B1241","28/02/2017","46292747 - 3","1515.77","Revenue","20002568","PYROTEC SERVICES LTD"
"Housing and Property","Fire Alarms and Emergency Lighting","B1241","28/02/2017","46292747 - 4","137.49","Revenue","20002568","PYROTEC SERVICES LTD"
"Housing and Property","Fire Alarms and Emergency Lighting","B1241","28/02/2017","46292747 - 5","237.50","Revenue","20002568","PYROTEC SERVICES LTD"
"Housing and Property","Fire Alarms and Emergency Lighting","B1241","28/02/2017","46292747 - 6","50.00","Revenue","20002568","PYROTEC SERVICES LTD"
"Housing and Property","Fire Alarms and Emergency Lighting","B1241","28/02/2017","46292747 - 7","200.00","Revenue","20002568","PYROTEC SERVICES LTD"
"Housing and Property","Fire Alarms and Emergency Lighting","B1241","28/02/2017","46292747 - 8","2099.99","Revenue","20002568","PYROTEC SERVICES LTD"
"Housing and Property","Fire Alarms and Emergency Lighting","B1241","28/02/2017","46292747 - 10","813.00","Revenue","20002568","PYROTEC SERVICES LTD"
"Housing and Property","Fire Alarms and Emergency Lighting","B1241","28/02/2017","46292747 - 11","40.00","Revenue","20002568","PYROTEC SERVICES LTD"
"Housing and Property","Fire Alarms and Emergency Lighting","B1241","28/02/2017","46292747 - 12","11414.00","Revenue","20002568","PYROTEC SERVICES LTD"
"Housing and Property","Services Maintenance (Planned)","B1103","28/02/2017","46292749 - 4","200.00","Revenue","20004494","COTSWOLD LIFTS LTD"
"Housing and Property","Services Maintenance (Planned)","B1103","28/02/2017","46292749 - 5","40.00","Revenue","20004494","COTSWOLD LIFTS LTD"
"Housing and Property","Services Maintenance (Planned)","B1103","28/02/2017","46292749 - 6","40.00","Revenue","20004494","COTSWOLD LIFTS LTD"
"Housing and Property","Services Maintenance (Planned)","B1103","28/02/2017","46292749 - 7","40.00","Revenue","20004494","COTSWOLD LIFTS LTD"
"Housing and Property","Other Miscellaneous Expenses","D3811","28/02/2017","46292754 - 1","1870.00","Revenue","20019493","CONNELLS RESIDENTIAL LETTINGS"
"Housing and Property","Rent Allowance Cheques (Home Choice)","F5033","28/02/2017","46292755 - 1","500.00","Revenue","20000010","HOUSING PAYMENTS"
"Housing and Property","Grants","D3701","07/03/2017","46292780 - 1","3286.98","Revenue","20008698","OXFORD HOMELESS PATHWAYS"
"Housing and Property","Professional Fees","A0151","07/03/2017","46292792 - 1","2400.00","Revenue","20010898","CLUTTONS"
"Housing and Property","Grants","D3701","07/03/2017","46292795 - 1","4500.00","Revenue","20008586","THE CHERWELL SCHOOL ACADEMY TRUST"
"Housing and Property","Rent Allowance Cheques (Home Choice)","F5033","07/03/2017","46292825 - 1","4125.00","Revenue","20019472","APQ PROPERTIES LTD"
"Housing and Property","Rent Allowance Cheques (Home Choice)","F5033","07/03/2017","46292831 - 1","1140.00","Revenue","20019369","MR N & MRS S CHAMBERS"
"Housing and Property","Rent Allowance Cheques (Home Choice)","F5033","07/03/2017","46292833 - 1","570.00","Revenue","20019369","MR N & MRS S CHAMBERS"
"Housing and Property","Homeless Prevention","D3426","07/03/2017","46292834 - 1","1200.00","Revenue","20016378","LETSCO"
"Housing and Property","Homeless Prevention","D3426","07/03/2017","46292837 - 1","1250.00","Revenue","20019368","MR JOHN S & MRS VERONICA T WALTERS"
"Housing and Property","Rent Allowance Cheques (Home Choice)","F5033","07/03/2017","46292862 - 1","4232.76","Revenue","20019505","PENNY & SINCLAIR LTD"
"Housing and Property","Homeless Prevention","D3426","07/03/2017","46292863 - 1","1092.00","Revenue","20019506","COLLEEN ASHBEE"
"Housing and Property","Homeless Prevention","D3426","07/03/2017","46292864 - 1","1232.76","Revenue","20019507","MISS MARTINE GREENWOOD"
"Housing and Property","Rent Allowance Cheques (Home Choice)","F5033","07/03/2017","46292866 - 1","2775.00","Revenue","20000018","Homelessness Holding Fee Misc Account"
"Housing and Property","Rent Allowance Cheques (Home Choice)","F5033","07/03/2017","46292868 - 1","1000.12","Revenue","20016485","JENKINS & WATERS T/A DOWNSIDE PROPERTY DEVELOPMENTS"
"Housing and Property","Rent Allowance Cheques (Home Choice)","F5033","07/03/2017","46292868 - 2","925.00","Revenue","20016485","JENKINS & WATERS T/A DOWNSIDE PROPERTY DEVELOPMENTS"
"Housing and Property","Rent Allowance Cheques (Home Choice)","F5033","07/03/2017","46292868 - 3","1850.00","Revenue","20016485","JENKINS & WATERS T/A DOWNSIDE PROPERTY DEVELOPMENTS"
"Housing and Property","Temporary Bureau Staffing","A0108","14/03/2017","46292899 - 8","12257.03","Revenue","20018053","REED SPECIALIST RECRUITMENT LTD"
"Housing and Property","Consultants Fees","D3411","28/03/2017","46292939 - 12","141.00","Revenue","20011499","TOPS"
"Housing and Property","Homeless Prevention","D3426","14/03/2017","46292949 - 1","1091.04","Revenue","20014495","GRANDE PROPERTY SERVICES"
"Housing and Property","Rent Allowance Cheques (Home Choice)","F5033","14/03/2017","46292951 - 1","2775.00","Revenue","20015351","ADMIRAL HOMES"
"Housing and Property","Rent Allowance Cheques (Home Choice)","F5033","14/03/2017","46292973 - 1","3900.00","Revenue","20019518","S ALI MOHAMED"
"Housing and Property","Grants","D3701","21/03/2017","46292976 - 1","4000.00","Revenue","20010170","CONNECTION SUPPORT"
"Housing and Property","Homeless Prevention","D3426","21/03/2017","46292987 - 1","545.52","Revenue","20015204","A B I PROPERTIES"
"Housing and Property","Rent Allowance Cheques (Home Choice)","F5033","21/03/2017","46293024 - 1","1476.00","Revenue","20019523","MR RICHARD LOHMAN"
"Housing and Property","Homeless Prevention","D3426","21/03/2017","46293034 - 1","900.00","Revenue","20019475","AMY TERBLANCHE & REAGAN HOOPER"
"Housing and Property","Homeless Prevention","D3426","21/03/2017","46293034 - 2","121.52","Revenue","20019475","AMY TERBLANCHE & REAGAN HOOPER"
"Housing and Property","Rent Allowance Cheques (Home Choice)","F5033","21/03/2017","46293035 - 1","3300.00","Revenue","20019428","FRANCIS PEARSON"
"Housing and Property","Rent Allowance Cheques (Home Choice)","F5033","21/03/2017","46293041 - 1","1370.00","Revenue","20000010","HOUSING PAYMENTS"
"Housing and Property","Rent Allowance Cheques (Home Choice)","F5033","28/03/2017","46293058 - 1","1812.60","Revenue","20019421","ALEXANDRA HELENE NOBLE"
"Housing and Property","Grants","D3701","28/03/2017","46293067 - 1","3893.85","Revenue","20004327","THE PORCH"
"Housing and Property","Other Miscellaneous Expenses","D3811","28/03/2017","46293073 - 1","1250.00","Revenue","20014702","PREMIER LETTING"
"Housing and Property","Cycle Scheme 2008/09","A0965","28/03/2017","46293083 - 2","3.00","Revenue","20014779","CYCLESCHEME LIMITED"
"Housing and Property","Rent Allowance Cheques (Home Choice)","F5033","28/03/2017","46293089 - 1","820.00","Revenue","20016682","MR MANESH GANDHI"
"Housing and Property","Homeless Prevention","D3426","28/03/2017","46293091 - 1","500.00","Revenue","20000010","HOUSING PAYMENTS"
"Housing and Property","Homeless Prevention","D3426","28/03/2017","46293099 - 1","600.00","Revenue","20000010","HOUSING PAYMENTS"
"Housing and Property","Homeless Prevention","D3426","28/03/2017","46293106 - 1","1527.30","Revenue","20014495","GRANDE PROPERTY SERVICES"
"Housing and Property","Services Maintenance (Planned)","B1103","28/03/2017","46293142 - 4","984.00","Revenue","20004494","COTSWOLD LIFTS LTD"
"Housing and Property","Services Maintenance (Planned)","B1103","28/03/2017","46293142 - 5","80.00","Revenue","20004494","COTSWOLD LIFTS LTD"
"Housing and Property","Services Maintenance (Planned)","B1103","28/03/2017","46293142 - 6","40.00","Revenue","20004494","COTSWOLD LIFTS LTD"
"Housing and Property","Services Maintenance (Planned)","B1103","28/03/2017","46293142 - 7","720.00","Revenue","20004494","COTSWOLD LIFTS LTD"
"Housing and Property","Fire Alarms and Emergency Lighting","B1241","28/03/2017","46293143 - 2","1515.05","Revenue","20002568","PYROTEC SERVICES LTD"
"Housing and Property","Fire Alarms and Emergency Lighting","B1241","28/03/2017","46293143 - 6","2225.00","Revenue","20002568","PYROTEC SERVICES LTD"
"Housing and Property","Fire Alarms and Emergency Lighting","B1241","28/03/2017","46293143 - 9","825.00","Revenue","20002568","PYROTEC SERVICES LTD"
"Housing and Property","Fire Alarms and Emergency Lighting","B1241","28/03/2017","46293143 - 11","9705.63","Revenue","20002568","PYROTEC SERVICES LTD"
"Housing and Property","Fire Alarms and Emergency Lighting","B1241","28/03/2017","46293143 - 12","29.00","Revenue","20002568","PYROTEC SERVICES LTD"
"Housing and Property","Gas","B1502","21/02/2017","47016502 - 0","687.58","Revenue","20007602","TOTAL GAS & POWER LTD"
"Housing and Property","Gas","B1502","24/01/2017","47017937 - 1","436.03","Revenue","20002402","SOUTHERN ELECTRIC PLC"
"Housing and Property","Gas","B1502","24/01/2017","47017938 - 0","456.89","Revenue","20002402","SOUTHERN ELECTRIC PLC"
"Housing and Property","Gas","B1502","24/01/2017","47017942 - 0","422.72","Revenue","20002402","SOUTHERN ELECTRIC PLC"
"Housing and Property","Electricity","B1501","24/01/2017","47018293 - 0","1187.57","Revenue","20002402","SOUTHERN ELECTRIC PLC"
"Housing and Property","Water & Sewerage Charges","B1830","07/02/2017","47018418 - 1","1687.81","Revenue","20002423","THAMES WATER UTILITIES LTD"
"Housing and Property","Electricity","B1501","21/02/2017","47018496 - 0","1790.22","Revenue","20002402","SOUTHERN ELECTRIC PLC"
"Housing and Property","Electricity","B1501","21/02/2017","47018497 - 1","1062.81","Revenue","20002402","SOUTHERN ELECTRIC PLC"
"Housing and Property","Gas","B1502","21/02/2017","47018514 - 0","422.33","Revenue","20002402","SOUTHERN ELECTRIC PLC"
"Housing and Property","Electricity","B1501","21/02/2017","47018546 - 0","1955.17","Revenue","20002402","SOUTHERN ELECTRIC PLC"
"Housing and Property","Gas","B1502","21/03/2017","47018817 - 1","501.77","Revenue","20002402","SOUTHERN ELECTRIC PLC"
"Housing and Property","Gas","B1502","21/03/2017","47018820 - 0","8407.91","Revenue","20002402","SOUTHERN ELECTRIC PLC"
"Housing and Property","Electricity","B1501","28/03/2017","47018888 - 0","4369.78","Revenue","20011411","NPOWER"
"Housing and Property","Electricity","B1501","28/03/2017","47018889 - 1","4758.17","Revenue","20011411","NPOWER"
"Housing and Property","Electricity","B1501","28/03/2017","47018891 - 1","4570.44","Revenue","20011411","NPOWER"
"Housing and Property","Electricity","B1501","28/03/2017","47018893 - 1","4663.24","Revenue","20011411","NPOWER"
"Housing and Property","Electricity","B1501","28/03/2017","47018904 - 1","4361.66","Revenue","20011411","NPOWER"
"Housing and Property","Water & Sewerage Charges","B1830","28/03/2017","47018915 - 1","511.50","Revenue","20002423","THAMES WATER UTILITIES LTD"
"Housing and Property","Water & Sewerage Charges","B1830","28/03/2017","47018916 - 0","554.70","Revenue","20002423","THAMES WATER UTILITIES LTD"
"Housing and Property","Water & Sewerage Charges","B1830","28/03/2017","47018923 - 1","554.70","Revenue","20002423","THAMES WATER UTILITIES LTD"
"Housing and Property","Water & Sewerage Charges","B1830","28/03/2017","47018940 - 1","527.47","Revenue","20019401","CASTLE WATER"
"Housing and Property","Water & Sewerage Charges","B1830","28/03/2017","47018943 - 0","783.77","Revenue","20019401","CASTLE WATER"
"Housing and Property","Water & Sewerage Charges","B1830","28/03/2017","47018945 - 1","511.50","Revenue","20002423","THAMES WATER UTILITIES LTD"
"Housing and Property","Water & Sewerage Charges","B1830","28/03/2017","47018947 - 1","545.30","Revenue","20002423","THAMES WATER UTILITIES LTD"
"Housing and Property","Reactive Maintenance & Minor Repairs","B1101","31/01/2017","60067882 - 1","1256.00","Revenue","20008181","EXECUTIVE ALARMS LTD"
"Housing and Property","Reactive Maintenance & Minor Repairs","B1101","07/02/2017","60068273 - 0","1890.00","Revenue","20008181","EXECUTIVE ALARMS LTD"
"Housing and Property","Reactive Maintenance & Minor Repairs","B1101","21/02/2017","60069080 - 1","875.00","Revenue","20007609","EXECUTIVE FIRE PROTECTION LTD"
"Housing and Property","Reactive Maintenance & Minor Repairs","B1101","21/03/2017","60070375 - 0","1203.00","Revenue","20008181","EXECUTIVE ALARMS LTD"
"Regeneration and Major Projects Team","Main Contractor","Y021","10/01/2017","1034104 - 0","29925.93","Capital","20002494","E W BEARD LTD"
"Regeneration and Major Projects Team","Main Contractor","Y021","24/01/2017","1034245 - 0","1000.00","Capital","20018107","PURCELL MILLER TRITTON LLP T/A PURCELL"
"Regeneration and Major Projects Team","Main Contractor","Y021","14/03/2017","1034910 - 1","1500.00","Capital","20018107","PURCELL MILLER TRITTON LLP T/A PURCELL"
"Regeneration and Major Projects Team","Main Contractor","Y021","14/02/2017","1035022 - 0","4180.50","Capital","20013684","ATKINS LIMITED"
"Regeneration and Major Projects Team","Main Contractor","Y021","21/03/2017","1035025 - 0","1930.00","Capital","20018996","ROBINSON LOW FRANCIS LLP"
"Regeneration and Major Projects Team","Main Contractor","Y021","28/02/2017","1035118 - 0","11430.65","Capital","20017269","CROFT BUILDING & CONSERVATION LTD"
"Regeneration and Major Projects Team","Main Contractor","Y021","28/02/2017","1035160 - 0","3432.50","Capital","20018728","SUBADRA CONSULTING LTD"
"Regeneration and Major Projects Team","Main Contractor","Y021","21/03/2017","1035685 - 0","3146.25","Capital","20018996","ROBINSON LOW FRANCIS LLP"
"Regeneration and Major Projects Team","Main Contractor","Y021","28/03/2017","1035786 - 0","36102.23","Capital","20017269","CROFT BUILDING & CONSERVATION LTD"
"Regeneration and Major Projects Team","Main Contractor","Y021","28/03/2017","1036057 - 0","4000.00","Capital","20018107","PURCELL MILLER TRITTON LLP T/A PURCELL"
"Regeneration and Major Projects Team","Main Contractor","Y021","28/03/2017","1036206 - 0","110071.04","Capital","20019490","SUPPORT IN SPORT (UK)LTD"
"Regeneration and Major Projects Team","Direct Services","Y237","28/02/2017","60069293 - 0","5105.00","Capital","20019425","MARKFIELD WOODWORKING MACHINERYLTD"
"Regeneration and Major Projects Team","Direct Services","Y237","28/03/2017","60070820 - 1","663.00","Capital","20018512","JOHN PENNY WOODWORKING MACHINERY LTD"
"Environmental Sustainability","Miscellaneous Fees","Y173","10/01/2017","1033917 - 1","4750.00","Capital","20013684","ATKINS LIMITED"
"Environmental Sustainability","Consultants Fees","D3411","17/01/2017","1034135 - 0","2500.00","Revenue","20018808","AETHER"
"Environmental Sustainability","Consultants Fees","D3411","17/01/2017","1034370 - 0","2967.18","Revenue","20016360","STARK SOFTWARE INTERNATIONAL LTD"
"Environmental Sustainability","Miscellaneous Fees","Y173","07/02/2017","1034526 - 0","1000.00","Capital","20013684","ATKINS LIMITED"
"Environmental Sustainability","General Contracted Services","D3401","07/02/2017","1034744 - 0","1750.00","Revenue","20019415","SYNAPSYS SOLUTIONS LTD"
"Environmental Sustainability","Postage & Carriage","D3501","07/02/2017","1034744 - 1","15.00","Revenue","20019415","SYNAPSYS SOLUTIONS LTD"
"Environmental Sustainability","General Contracted Services","D3401","07/02/2017","1034792 - 0","2275.00","Revenue","20009400","ENVIRO TECHNOLOGY SERVICES PLC"
"Environmental Sustainability","Consultants Fees","D3411","28/02/2017","1034821 - 0","7493.75","Revenue","20017818","RICARDO-AEA LTD"
"Environmental Sustainability","Consultants Fees","D3411","14/02/2017","1034881 - 0","550.00","Revenue","20016360","STARK SOFTWARE INTERNATIONAL LTD"
"Environmental Sustainability","Consultants Fees","D3411","07/02/2017","1034936 - 0","2665.00","Revenue","20002930","OXFORDSHIRE COUNTY COUNCIL"
"Environmental Sustainability","General Contracted Services","D3401","28/02/2017","1034971 - 0","450.00","Revenue","20019415","SYNAPSYS SOLUTIONS LTD"
"Environmental Sustainability","General Contracted Services","D3401","28/02/2017","1034971 - 1","922.40","Revenue","20019415","SYNAPSYS SOLUTIONS LTD"
"Environmental Sustainability","General Contracted Services","D3401","07/03/2017","1035277 - 0","1015.00","Revenue","20019415","SYNAPSYS SOLUTIONS LTD"
"Environmental Sustainability","Miscellaneous Fees","Y173","14/03/2017","1035343 - 0","2950.00","Capital","20013684","ATKINS LIMITED"
"Environmental Sustainability","Main Contractor","Y021","21/02/2017","1035355 - 0","4800.00","Capital","20013684","ATKINS LIMITED"
"Environmental Sustainability","Main Contractor","Y021","28/02/2017","1035393 - 0","2679.61","Capital","20016705","SOUTHERN ELECTRIC POWER DISTRIBUTION PLC"
"Environmental Sustainability","Data Charges (Solar PV)","B1505","21/03/2017","1035525 - 1","65.40","Revenue","20018468","ORSIS (UK) LTD"
"Environmental Sustainability","Main Contractor","Y021","21/03/2017","1035585 - 0","4400.00","Capital","20012389","PUMPING  SOLUTIONS  (UK)  LTD"
"Environmental Sustainability","General Contracted Services","D3401","14/03/2017","1035639 - 0","2899.12","Revenue","20009808","BRE LTD"
"Environmental Sustainability","General Contracted Services","D3401","28/03/2017","1035815 - 0","2500.00","Revenue","20009045","TOWN & COUNTRY PLANNING ASSOCI"
"Environmental Sustainability","General Contracted Services","D3401","21/03/2017","1035822 - 1","850.00","Revenue","20011419","EXOVA  (UK) LTD"
"Environmental Sustainability","Special Events","D3807","28/03/2017","1036146 - 0","800.00","Revenue","20019147","SEVERN WYE ENERGY AGENCY LTD"
"Environmental Sustainability","Temporary Bureau Staffing","A0108","17/01/2017","46292313 - 20","849.89","Revenue","20018053","REED SPECIALIST RECRUITMENT LTD"
"Environmental Sustainability","Temporary Bureau Staffing","A0108","14/02/2017","46292607 - 15","201.71","Revenue","20018053","REED SPECIALIST RECRUITMENT LTD"
"Environmental Sustainability","Fire Alarms and Emergency Lighting","B1241","28/02/2017","46292747 - 9","40.00","Revenue","20002568","PYROTEC SERVICES LTD"
"Environmental Sustainability","Hospitality","D3803","28/03/2017","46293084 - 1","870.00","Revenue","20000000","GENERAL EXPENSES"
"Environmental Sustainability","Main Contractor","Y021","17/01/2017","48021804 - 1","650.00","Capital","20000000","GENERAL EXPENSES"
"Community Services","General Contracted Services","D3401","10/01/2017","1033345 - 1","500.00","Revenue","20019272","DIVERSITI UK"
"Community Services","General Contracted Services","D3401","10/01/2017","1033612 - 1","714.00","Revenue","20018479","GET SUPPORT IT SERVICES LIMITED"
"Community Services","Awards / Prizes","D3705","25/01/2017","1033826 - 0","1125.00","Revenue","20017543","NOORANI EVENTS"
"Community Services","Instructors & Coaching Fees","D3413","10/01/2017","1033843 - 0","989.00","Revenue","20012225","VAGA ASSOCIATES"
"Community Services","Management Development","A0637","10/01/2017","1033892 - 0","1200.00","Revenue","20013218","WALLINGFORD SCHOOL"
"Community Services","Consultants Fees","D3411","10/01/2017","1033895 - 0","7408.85","Revenue","20018703","ZEST CONSULTANCY"
"Community Services","Security Services","D3418","10/01/2017","1033896 - 0","6817.50","Revenue","20016981","SCOPE SECURITY LTD"
"Community Services","General Contracted Services","D3401","10/01/2017","1033935 - 0","1378.00","Revenue","20016989","BACKSTAGE SUPPLIES LTD"
"Community Services","Main Contractor","Y021","10/01/2017","1033943 - 0","3520.00","Capital","20011767","ABACUS LIGHTING LIMITED"
"Community Services","General Contracted Services","D3401","10/01/2017","1033951 - 0","2600.70","Revenue","20019399","WENDY FLINT"
"Community Services","Instructors & Coaching Fees","D3413","10/01/2017","1033961 - 0","500.00","Revenue","20007366","THE HENLEY COLLEGE"
"Community Services","Instructors & Coaching Fees","D3413","10/01/2017","1033978 - 0","3000.00","Revenue","20018579","OXFORDSHIRE BADMINTON ASSOCIATION"
"Community Services","Special Events","D3807","10/01/2017","1033987 - 0","5169.50","Revenue","20017894","OTHC LEMON ZEST"
"Community Services","Security Services","D3418","10/01/2017","1034001 - 0","566.00","Revenue","20018420","SHOWSEC INTERNATIONAL LTD"
"Community Services","Provisions","D3101","10/01/2017","1034002 - 0","882.50","Revenue","20009224","LAMB CATERING LTD"
"Community Services","Security Services","D3418","10/01/2017","1034008 - 0","451.15","Revenue","20018420","SHOWSEC INTERNATIONAL LTD"
"Community Services","Special Events","D3807","10/01/2017","1034020 - 0","500.00","Revenue","20019332","THE HORNIMAN MUSEUM AND PUBLIC PARK TRUST"
"Community Services","General Contracted Services","D3401","10/01/2017","1034056 - 0","502.17","Revenue","20018903","ANNE-MARIE CADMAN"
"Community Services","Furniture & Equipment Purchase","D3001","24/01/2017","1034060 - 0","2399.50","Revenue","20014286","ELMER COTTON SPORTS"
"Community Services","Main Contractor","Y021","17/01/2017","1034096 - 0","1839.12","Capital","20011767","ABACUS LIGHTING LIMITED"
"Community Services","Main Contractor","Y021","17/01/2017","1034097 - 0","2929.92","Capital","20011767","ABACUS LIGHTING LIMITED"
"Community Services","Main Contractor","Y021","17/01/2017","1034098 - 0","1425.62","Capital","20011767","ABACUS LIGHTING LIMITED"
"Community Services","Cleaning Materials","B1601","17/01/2017","1034102 - 0","513.58","Revenue","20018021","UNISAN"
"Community Services","Consultants Fees","D3411","10/01/2017","1034152 - 0","1973.80","Revenue","20018107","PURCELL MILLER TRITTON LLP T/A PURCELL"
"Community Services","Special Events","D3807","10/01/2017","1034155 - 0","1239.68","Revenue","20017894","OTHC LEMON ZEST"
"Community Services","Furniture & Equipment Purchase","D3001","10/01/2017","1034197 - 0","3483.71","Revenue","20002568","PYROTEC SERVICES LTD"
"Community Services","Instructors & Coaching Fees","D3413","17/01/2017","1034201 - 0","530.00","Revenue","20016254","CONFLICT RESOLUTION LTD"
"Community Services","Uniforms","D3202","10/01/2017","1034213 - 0","637.00","Revenue","20016219","WALTERS & CO (OXFORD) LTD"
"Community Services","Town Hall Catering Recharge","D3104","10/01/2017","1034222 - 0","3745.15","Revenue","20017894","OTHC LEMON ZEST"
"Community Services","Provisions","D3101","10/01/2017","1034222 - 1","687.30","Revenue","20017894","OTHC LEMON ZEST"
"Community Services","Reactive Maintenance & Minor Repairs","B1101","10/01/2017","1034257 - 1","30000.00","Revenue","20015211","FUSION LIFESTYLE"
"Community Services","General Contracted Services","D3401","31/01/2017","1034263 - 0","950.00","Revenue","20017863","MALLARD CONSULTANCY LTD"
"Community Services","General Contracted Services","D3401","31/01/2017","1034265 - 0","1000.00","Revenue","20019422","RICHARD J CHAPPELL"
"Community Services","Subscriptions","D3703","10/01/2017","1034298 - 0","1000.00","Revenue","20018548","RIVER THAMES ALLIANCE"
"Community Services","Photocopying/Paper Supplies","D3306","24/01/2017","1034336 - 1","996.94","Revenue","20002121","CANON (UK) LTD"
"Community Services","Photocopying/Paper Supplies","D3306","24/01/2017","1034337 - 1","923.78","Revenue","20002121","CANON (UK) LTD"
"Community Services","Photocopying/Paper Supplies","D3306","24/01/2017","1034338 - 1","523.27","Revenue","20002121","CANON (UK) LTD"
"Community Services","Security Services","D3418","17/01/2017","1034346 - 0","566.00","Revenue","20018420","SHOWSEC INTERNATIONAL LTD"
"Community Services","Security Services","D3418","24/01/2017","1034372 - 0","551.85","Revenue","20018420","SHOWSEC INTERNATIONAL LTD"
"Community Services","Main Contractor","Y021","17/01/2017","1034384 - 0","1503.00","Capital","20013489","BAKER SHEPHERD GILLESPIE"
"Community Services","Main Contractor","Y021","17/01/2017","1034385 - 0","2097.41","Capital","20013489","BAKER SHEPHERD GILLESPIE"
"Community Services","Consultants Fees","D3411","17/01/2017","1034388 - 0","1670.00","Revenue","20019317","NEIL STEVENSON"
"Community Services","Security Services","D3418","31/01/2017","1034396 - 0","2754.00","Revenue","20016981","SCOPE SECURITY LTD"
"Community Services","Main Contractor","Y021","17/01/2017","1034406 - 0","8164.75","Capital","20011767","ABACUS LIGHTING LIMITED"
"Community Services","Main Contractor","Y021","17/01/2017","1034407 - 0","1992.00","Capital","20011767","ABACUS LIGHTING LIMITED"
"Community Services","General Contracted Services","D3401","17/01/2017","1034467 - 0","1000.00","Revenue","20018343","EUTON DALEY"
"Community Services","General Contracted Services","D3401","07/02/2017","1034491 - 0","3833.60","Revenue","20015211","FUSION LIFESTYLE"
"Community Services","Consultants Fees","D3411","24/01/2017","1034504 - 0","1470.00","Revenue","20019305","BELVEDERE PROJECT SOLUTIONS LLP"
"Community Services","Awards / Prizes","D3705","07/02/2017","1034508 - 0","1000.00","Revenue","20018503","THE GIFT VOUCHER SHOP"
"Community Services","Furniture & Equipment Purchase","D3001","07/02/2017","1034513 - 0","2000.00","Revenue","20019414","PHOENIX SPORTING GOODS LTD"
"Community Services","Instructors & Coaching Fees","D3413","07/02/2017","1034600 - 0","580.00","Revenue","20009533","AYLESBURY VALE DISTRICT COUNCIL"
"Community Services","Advertising & Publicity","D3802","14/02/2017","1034613 - 0","720.00","Revenue","20018196","CUTTLEFISH MULTIMEDIA LTD"
"Community Services","Services Maintenance (Planned)","B1103","24/01/2017","1034619 - 0","6313.00","Revenue","20015211","FUSION LIFESTYLE"
"Community Services","Main Contractor","Y021","31/01/2017","1034634 - 0","7720.00","Capital","20015951","MACE LIMITED"
"Community Services","Main Contractor","Y021","24/01/2017","1034648 - 0","2462.00","Capital","20013489","BAKER SHEPHERD GILLESPIE"
"Community Services","General Contracted Services","D3401","14/02/2017","1034657 - 0","500.00","Revenue","20019272","DIVERSITI UK"
"Community Services","Consultants Fees","D3411","31/01/2017","1034683 - 0","6729.00","Revenue","20009686","M.E.L. RESEARCH LTD"
"Community Services","Security Services","D3418","07/02/2017","1034692 - 0","452.80","Revenue","20018420","SHOWSEC INTERNATIONAL LTD"
"Community Services","Security Services","D3418","14/02/2017","1034696 - 0","566.00","Revenue","20018420","SHOWSEC INTERNATIONAL LTD"
"Community Services","Advertising & Publicity","D3802","31/01/2017","1034750 - 0","1200.00","Revenue","20003025","PETE RUSSELL"
"Community Services","Advertising & Publicity","D3802","31/01/2017","1034752 - 0","1080.00","Revenue","20003025","PETE RUSSELL"
"Community Services","Awards / Prizes","D3705","07/03/2017","1034761 - 0","1304.25","Revenue","20012816","RUNNING IMP INTERNATIONAL SPORTS LTD"
"Community Services","Cleaning Materials","B1601","14/02/2017","1034769 - 0","424.08","Revenue","20018021","UNISAN"
"Community Services","Photocopying/Paper Supplies","D3306","14/02/2017","1034775 - 1","2155.05","Revenue","20002121","CANON (UK) LTD"
"Community Services","Consultants Fees","D3411","31/01/2017","1034789 - 0","1854.00","Revenue","20016762","IAN NOLAN EVENTS LTD"
"Community Services","Services Maintenance (Planned)","B1103","31/01/2017","1034793 - 0","2120.86","Revenue","20015211","FUSION LIFESTYLE"
"Community Services","Consultants Fees","D3411","14/02/2017","1034826 - 0","2500.00","Revenue","20019306","MUSEOPHILE LTD"
"Community Services","Main Contractor","Y021","31/01/2017","1034838 - 0","7720.00","Capital","20015951","MACE LIMITED"
"Community Services","Main Contractor","Y021","31/01/2017","1034839 - 0","7720.00","Capital","20015951","MACE LIMITED"
"Community Services","General Contracted Services","D3401","31/01/2017","1034850 - 0","420.00","Revenue","20014935","COMPUTERISED & DIGITAL SECURITY SYSTEMS LTD"
"Community Services","General Contracted Services","D3401","07/02/2017","1034864 - 0","510.00","Revenue","20015921","RIGHT ANGLE DESIGN"
"Community Services","Instructors & Coaching Fees","D3413","31/01/2017","1034869 - 0","4000.00","Revenue","20002893","CHERWELL DISTRICT COUNCIL"
"Community Services","General Contracted Services","D3401","21/02/2017","1034912 - 0","798.00","Revenue","20017887","CREATE DEVELOPMENT"
"Community Services","Instructors & Coaching Fees","D3413","07/02/2017","1034916 - 0","3500.00","Revenue","20007892","VALE OF WHITE HORSE DC"
"Community Services","Instructors & Coaching Fees","D3413","07/02/2017","1034917 - 0","4000.00","Revenue","20007892","VALE OF WHITE HORSE DC"
"Community Services","Instructors & Coaching Fees","D3413","07/02/2017","1034918 - 0","3000.00","Revenue","20002401","SOUTH OXFORDSHIRE DISTRICT COUNCIL"
"Community Services","Instructors & Coaching Fees","D3413","07/02/2017","1034919 - 0","3000.00","Revenue","20002401","SOUTH OXFORDSHIRE DISTRICT COUNCIL"
"Community Services","Conferences","D3602","07/02/2017","1034927 - 0","1580.00","Revenue","20019377","RESOLVE ASB"
"Community Services","Consultants Fees","D3411","07/02/2017","1034952 - 0","2153.70","Revenue","20018107","PURCELL MILLER TRITTON LLP T/A PURCELL"
"Community Services","Furniture & Equipment Purchase","D3001","28/02/2017","1034969 - 0","764.00","Revenue","20008259","EVAC+CHAIR  INTERNATIONAL LTD"
"Community Services","Provisions","D3101","07/02/2017","1034981 - 0","364.70","Revenue","20017894","OTHC LEMON ZEST"
"Community Services","Town Hall Catering Recharge","D3104","07/02/2017","1034981 - 1","2146.55","Revenue","20017894","OTHC LEMON ZEST"
"Community Services","Consultants Fees","D3411","28/02/2017","1034984 - 0","3800.00","Revenue","20017380","NATALIE CHAMBERS"
"Community Services","Instructors & Coaching Fees","D3413","07/02/2017","1035023 - 0","658.78","Revenue","20002401","SOUTH OXFORDSHIRE DISTRICT COUNCIL"
"Community Services","Consultants Fees","D3411","07/02/2017","1035026 - 0","3240.00","Revenue","20019294","Simon Leach Design"
"Community Services","Cleaning Materials","B1601","28/02/2017","1035030 - 0","429.01","Revenue","20016920","ALLIANCE DISPOSABLES LTD"
"Community Services","Furniture & Equipment Purchase","D3001","14/02/2017","1035032 - 0","2128.01","Revenue","20017460","ACDISCO LIGHT  AND PA HIRE"
"Community Services","General Contracted Services","D3401","14/02/2017","1035035 - 0","1656.00","Revenue","20018218","THE SPORT FOR STREETS INITIATIVE"
"Community Services","General Contracted Services","D3401","14/02/2017","1035051 - 0","1350.00","Revenue","20016981","SCOPE SECURITY LTD"
"Community Services","Security Services","D3418","14/02/2017","1035052 - 0","1050.00","Revenue","20016981","SCOPE SECURITY LTD"
"Community Services","General Contracted Services","D3401","14/02/2017","1035053 - 0","1350.00","Revenue","20016981","SCOPE SECURITY LTD"
"Community Services","General Contracted Services","D3401","14/02/2017","1035054 - 0","1350.00","Revenue","20016981","SCOPE SECURITY LTD"
"Community Services","Instructors & Coaching Fees","D3413","14/02/2017","1035072 - 0","4530.00","Revenue","20018218","THE SPORT FOR STREETS INITIATIVE"
"Community Services","Conferences","D3602","14/02/2017","1035084 - 0","4960.00","Revenue","20013769","FIROKA (OXFORD UNITED STADIUM) LTD"
"Community Services","General Contracted Services","D3401","14/02/2017","1035110 - 0","3300.00","Revenue","20015597","OXFORDSHIRE MIND"
"Community Services","Goods For Resale","D3011","07/03/2017","1035131 - 0","2100.00","Revenue","20019374","JOEDAISY STUDIO"
"Community Services","Management Development","A0637","28/02/2017","1035151 - 0","742.81","Revenue","20018260","K R JOHNSTON"
"Community Services","Security Services","D3418","28/02/2017","1035157 - 0","566.00","Revenue","20018420","SHOWSEC INTERNATIONAL LTD"
"Community Services","Security Services","D3418","21/02/2017","1035161 - 0","566.00","Revenue","20018420","SHOWSEC INTERNATIONAL LTD"
"Community Services","Security Services","D3418","21/03/2017","1035190 - 0","690.00","Revenue","20009730","R & R FRONTLINE SERVICES LTD"
"Community Services","Security Services","D3418","28/02/2017","1035209 - 0","4063.50","Revenue","20016981","SCOPE SECURITY LTD"
"Community Services","Advertising & Publicity","D3802","07/03/2017","1035245 - 0","641.67","Revenue","20014286","ELMER COTTON SPORTS"
"Community Services","Consultants Fees","D3411","28/02/2017","1035249 - 0","1470.00","Revenue","20019305","BELVEDERE PROJECT SOLUTIONS LLP"
"Community Services","General Contracted Services","D3401","21/02/2017","1035260 - 0","1200.00","Revenue","20018343","EUTON DALEY"
"Community Services","Consultants Fees","D3411","21/02/2017","1035262 - 0","1000.00","Revenue","20019429","OXFORD IMPACT CONSULTANCY"
"Community Services","General Contracted Services","D3401","17/02/2017","1035264 - 0","13004.26","Revenue","20018633","PIGGOTTS COMPANY LTD"
"Community Services","Contract Printing (External)","D3303","21/02/2017","1035273 - 0","452.06","Revenue","20007876","SIEMENS FINANCIAL SERVICES LTD"
"Community Services","General Contracted Services","D3401","07/03/2017","1035276 - 0","48409.00","Revenue","20015211","FUSION LIFESTYLE"
"Community Services","Contract Cleaning","B1602","21/02/2017","1035281 - 0","557.36","Revenue","20003172","RENTOKIL INITIAL SERVICES NO1"
"Community Services","Provisions","D3101","07/03/2017","1035303 - 0","882.50","Revenue","20009224","LAMB CATERING LTD"
"Community Services","Consultants Fees","D3411","28/02/2017","1035316 - 0","2500.00","Revenue","20019306","MUSEOPHILE LTD"
"Community Services","Consultants Fees","D3411","14/03/2017","1035332 - 0","2700.00","Revenue","20019300","Katie Norgrove T/A Cultural Consulting"
"Community Services","Consultants Fees","D3411","14/03/2017","1035333 - 0","1950.00","Revenue","20019300","Katie Norgrove T/A Cultural Consulting"
"Community Services","Consultants Fees","D3411","28/02/2017","1035351 - 0","1740.94","Revenue","20019317","NEIL STEVENSON"
"Community Services","Cleaning Materials","B1601","14/03/2017","1035354 - 0","521.75","Revenue","20016920","ALLIANCE DISPOSABLES LTD"
"Community Services","General Contracted Services","D3401","28/02/2017","1035369 - 0","7004.26","Revenue","20018633","PIGGOTTS COMPANY LTD"
"Community Services","Performance Fees","D3412","14/03/2017","1035434 - 0","19719.83","Revenue","20012562","OXFORD SPORTING FACILITIES TRUST"
"Community Services","Provisions","D3101","28/02/2017","1035448 - 0","91.50","Revenue","20017894","OTHC LEMON ZEST"
"Community Services","Town Hall Catering Recharge","D3104","28/02/2017","1035448 - 1","3845.50","Revenue","20017894","OTHC LEMON ZEST"
"Community Services","Main Contractor","Y021","28/02/2017","1035473 - 0","7720.00","Capital","20015951","MACE LIMITED"
"Community Services","General Contracted Services","D3401","14/03/2017","1035479 - 0","1000.00","Revenue","20016762","IAN NOLAN EVENTS LTD"
"Community Services","General Contracted Services","D3401","21/03/2017","1035486 - 0","2200.00","Revenue","20012539","BAY MEDIA LTD"
"Community Services","General Contracted Services","D3401","28/02/2017","1035487 - 0","740.00","Revenue","20009932","CONTINENTAL DRIFTS LTD"
"Community Services","General Contracted Services","D3401","14/03/2017","1035565 - 0","1000.00","Revenue","20016762","IAN NOLAN EVENTS LTD"
"Community Services","Consultants Fees","D3411","07/03/2017","1035576 - 0","2973.80","Revenue","20018107","PURCELL MILLER TRITTON LLP T/A PURCELL"
"Community Services","Cleaning Materials","B1601","28/03/2017","1035584 - 0","570.45","Revenue","20016920","ALLIANCE DISPOSABLES LTD"
"Community Services","General Contracted Services","D3401","21/03/2017","1035588 - 0","515.00","Revenue","20009730","R & R FRONTLINE SERVICES LTD"
"Community Services","Special Events","D3807","28/03/2017","1035590 - 0","625.00","Revenue","20019332","THE HORNIMAN MUSEUM AND PUBLIC PARK TRUST"
"Community Services","General Contracted Services","D3401","28/03/2017","1035608 - 0","18363.00","Revenue","20013923","SUTCLIFFE PLAY SOUTH WEST"
"Community Services","Subscriptions","D3703","07/03/2017","1035618 - 1","2000.00","Revenue","20016534","COUNTY SPORTS PARTNERSHIP NETWORK"
"Community Services","Management Development","A0637","07/03/2017","1035619 - 0","2000.00","Revenue","20016534","COUNTY SPORTS PARTNERSHIP NETWORK"
"Community Services","General Contracted Services","D3401","07/03/2017","1035625 - 0","2200.00","Revenue","20002930","OXFORDSHIRE COUNTY COUNCIL"
"Community Services","Special Events","D3807","07/03/2017","1035653 - 0","1125.00","Revenue","20017543","NOORANI EVENTS"
"Community Services","Instructors & Coaching Fees","D3413","21/03/2017","1035665 - 0","550.00","Revenue","20018516","PANATHLON FOUNDATIONS LTD"
"Community Services","General Contracted Services","D3401","14/03/2017","1035674 - 0","800.00","Revenue","20018825","INFUSEDANCE LTD"
"Community Services","General Contracted Services","D3401","07/03/2017","1035678 - 0","1500.00","Revenue","20019487","JONATHAN RUFFLE T/A FRESH FX"
"Community Services","General Contracted Services","D3401","14/03/2017","1035687 - 0","895.00","Revenue","20008015","M TECH COMUNICATIONS BRISTOL LTD"
"Community Services","General Contracted Services","D3401","07/03/2017","1035689 - 0","1750.00","Revenue","20002930","OXFORDSHIRE COUNTY COUNCIL"
"Community Services","Photocopying/Paper Supplies","D3306","21/03/2017","1035705 - 1","862.58","Revenue","20002121","CANON (UK) LTD"
"Community Services","Photocopying/Paper Supplies","D3306","21/03/2017","1035706 - 1","1484.58","Revenue","20002121","CANON (UK) LTD"
"Community Services","Photocopying/Paper Supplies","D3306","21/03/2017","1035713 - 1","569.46","Revenue","20002121","CANON (UK) LTD"
"Community Services","Consultants Fees","D3411","28/03/2017","1035741 - 0","1470.00","Revenue","20019305","BELVEDERE PROJECT SOLUTIONS LLP"
"Community Services","Grants","D3701","14/03/2017","1035746 - 0","3000.00","Revenue","20002893","CHERWELL DISTRICT COUNCIL"
"Community Services","General Contracted Services","D3401","14/03/2017","1035750 - 0","1350.00","Revenue","20016981","SCOPE SECURITY LTD"
"Community Services","Security Services","D3418","28/03/2017","1035760 - 0","3915.00","Revenue","20016981","SCOPE SECURITY LTD"
"Community Services","Security Services","D3418","28/03/2017","1035781 - 0","780.00","Revenue","20009730","R & R FRONTLINE SERVICES LTD"
"Community Services","Consultants Fees","D3411","21/03/2017","1035784 - 0","1724.86","Revenue","20019317","NEIL STEVENSON"
"Community Services","General Contracted Services","D3401","28/03/2017","1035787 - 0","2343.00","Revenue","20015058","CLEAR CHANNEL UK LTD"
"Community Services","General Contracted Services","D3401","28/03/2017","1035789 - 0","4602.05","Revenue","20019399","WENDY FLINT"
"Community Services","Instructors & Coaching Fees","D3413","28/03/2017","1035792 - 0","618.00","Revenue","20007924","SOUTH CENTRAL AMBULANCE SERVICE"
"Community Services","Subscriptions","D3703","28/03/2017","1035794 - 0","600.00","Revenue","20016048","INSTITUTE OF LICENSING (EVENTS) LTD"
"Community Services","Licences (Non-Transport)","D3804","14/03/2017","1035799 - 0","1880.00","Revenue","20016534","COUNTY SPORTS PARTNERSHIP NETWORK"
"Community Services","Security Services","D3418","28/03/2017","1035836 - 0","452.80","Revenue","20018420","SHOWSEC INTERNATIONAL LTD"
"Community Services","Security Services","D3418","28/03/2017","1035838 - 0","800.40","Revenue","20018420","SHOWSEC INTERNATIONAL LTD"
"Community Services","Provisions","D3101","21/03/2017","1035839 - 1","882.50","Revenue","20009224","LAMB CATERING LTD"
"Community Services","General Contracted Services","D3401","21/03/2017","1035844 - 0","1000.00","Revenue","20019512","JUSTICE IN MOTION"
"Community Services","Consultants Fees","D3411","21/03/2017","1035859 - 0","6729.00","Revenue","20009686","M.E.L. RESEARCH LTD"
"Community Services","Contract Cleaning","B1602","21/03/2017","1035861 - 0","1010.00","Revenue","20018746","FLOOR RESTORE OXFORD LTD"
"Community Services","General Contracted Services","D3401","21/03/2017","1035869 - 0","450.00","Revenue","20003025","PETE RUSSELL"
"Community Services","General Contracted Services","D3401","21/03/2017","1035869 - 1","200.00","Revenue","20003025","PETE RUSSELL"
"Community Services","General Contracted Services","D3401","21/03/2017","1035870 - 0","2660.00","Revenue","20003025","PETE RUSSELL"
"Community Services","Short Courses","A0622","14/03/2017","1035889 - 0","2558.00","Revenue","20019489","LIVE & LEARN"
"Community Services","Furniture & Equipment Purchase","D3001","14/03/2017","1035896 - 0","6468.00","Revenue","20008520","NEWAUTO LTD"
"Community Services","General Contracted Services","D3401","21/03/2017","1035924 - 0","2070.00","Revenue","20019192","YMCA GEORGE WILLIAMS COLLEGE"
"Community Services","Consultants Fees","D3411","21/03/2017","1035927 - 0","1500.00","Revenue","20018796","MATERIALS SCIENCE CONSULTANTS LTD"
"Community Services","Security Services","D3418","21/03/2017","1035975 - 0","3786.79","Revenue","20011183","SELECT SECURITY & STEWARDING LIMITED"
"Community Services","Books & Publications","D3302","21/03/2017","1035984 - 0","1000.00","Revenue","20008780","LEYS NEWS LTD"
"Community Services","Instructors & Coaching Fees","D3413","21/03/2017","1036000 - 0","960.00","Revenue","20002930","OXFORDSHIRE COUNTY COUNCIL"
"Community Services","General Contracted Services","D3401","21/03/2017","1036042 - 0","10822.67","Revenue","20013769","FIROKA (OXFORD UNITED STADIUM) LTD"
"Community Services","Grants","D3701","21/03/2017","1036059 - 0","2725.00","Revenue","20019186","RUGBY LEAGUE INSPIRES"
"Community Services","Instructors & Coaching Fees","D3413","28/03/2017","1036068 - 0","6236.50","Revenue","20018888","OXFORDSHIRE YOUTH"
"Community Services","Advertising & Publicity","D3802","28/03/2017","1036082 - 0","999.00","Revenue","20018382","EXPERIENCE OXFORDSHIRE"
"Community Services","Contributions","D3702","28/03/2017","1036087 - 0","2056.25","Revenue","20018434","NHS OXFORDSHIRE CCG"
"Community Services","Instructors & Coaching Fees","D3413","28/03/2017","1036090 - 0","1000.00","Revenue","20019186","RUGBY LEAGUE INSPIRES"
"Community Services","General Contracted Services","D3401","28/03/2017","1036100 - 0","750.00","Revenue","20002930","OXFORDSHIRE COUNTY COUNCIL"
"Community Services","General Contracted Services","D3401","28/03/2017","1036105 - 0","3600.00","Revenue","20018478","MYCALIBRATIONS.COM.LTD"
"Community Services","General Contracted Services","D3401","28/03/2017","1036108 - 0","955.50","Revenue","20018320","ABINGDON SCHOOL"
"Community Services","Instructors & Coaching Fees","D3413","28/03/2017","1036113 - 0","3200.00","Revenue","20008178","WEST OXFORDSHIRE DISTRICT COUNCIL GENERAL A/C"
"Community Services","General Contracted Services","D3401","28/03/2017","1036161 - 0","2050.00","Revenue","20019533","PRACTICALPARTICIPATION LTD"
"Community Services","Public Transport","C2501","28/03/2017","1036227 - 0","808.00","Revenue","20006596","OXFORD BUS COMPANY LTD"
"Community Services","Public Transport","C2501","28/03/2017","1036227 - 1","2424.00","Revenue","20006596","OXFORD BUS COMPANY LTD"
"Community Services","Public Transport","C2501","28/03/2017","1036227 - 2","202.00","Revenue","20006596","OXFORD BUS COMPANY LTD"
"Community Services","Public Transport","C2501","28/03/2017","1036227 - 3","202.00","Revenue","20006596","OXFORD BUS COMPANY LTD"
"Community Services","Books & Publications","D3302","28/03/2017","1036272 - 7","14.95","Revenue","20007625","MR TIM GRESSWELL"
"Community Services","Contributions","D3702","10/01/2017","46292173 - 1","1325.00","Revenue","20017901","WOLVERCOTE NEIGHBOURHOOD FORUM"
"Community Services","Contributions","D3702","10/01/2017","46292174 - 1","1325.00","Revenue","20017901","WOLVERCOTE NEIGHBOURHOOD FORUM"
"Community Services","Contributions","D3702","10/01/2017","46292175 - 1","500.00","Revenue","20017842","WOLVERCOTE YOUNG PEOPLES CLUB LTD"
"Community Services","Contributions","D3702","10/01/2017","46292176 - 1","500.00","Revenue","20017842","WOLVERCOTE YOUNG PEOPLES CLUB LTD"
"Community Services","Contributions","D3702","10/01/2017","46292180 - 1","600.00","Revenue","20000019","GRANT PAYMENTS"
"Community Services","Grants","D3701","10/01/2017","46292211 - 1","8907.50","Revenue","20004323","ELMORE COMMUNITY SERVICES"
"Community Services","Consultants Fees","D3411","24/01/2017","46292212 - 9","129.00","Revenue","20011499","TOPS"
"Community Services","Temporary Bureau Staffing","A0108","17/01/2017","46292253 - 18","102.80","Revenue","20000200","CHAMPION EMPLOYMENT LTD"
"Community Services","Grants","D3701","17/01/2017","46292255 - 1","10458.00","Revenue","20008698","OXFORD HOMELESS PATHWAYS"
"Community Services","Grants","D3701","17/01/2017","46292256 - 1","11962.50","Revenue","20008698","OXFORD HOMELESS PATHWAYS"
"Community Services","Grants","D3701","17/01/2017","46292257 - 1","19510.00","Revenue","20010077","BLACKBIRD LEYS N""HOOD SUPPORT SCHEME"
"Community Services","Instructors & Coaching Fees","D3413","17/01/2017","46292258 - 1","1000.00","Revenue","20000019","GRANT PAYMENTS"
"Community Services","Grants","D3701","31/01/2017","46292278 - 1","70178.60","Revenue","20019143","ST MUNGOS"
"Community Services","Grants","D3701","17/01/2017","46292293 - 1","5000.00","Revenue","20014454","EMMAUS OXFORD (STORE) LIMITED"
"Community Services","Grants","D3701","17/01/2017","46292300 - 1","957.90","Revenue","20011006","ASPIRE OXFORDSHIRE COMMUNITY ENTERPRISE LTD"
"Community Services","Contributions","D3702","17/01/2017","46292303 - 1","500.00","Revenue","20005002","WEST OXFORD COMMUNITY ASSOC."
"Community Services","Grants","D3701","17/01/2017","46292305 - 1","50000.00","Revenue","20008184","CITIZENS ADVICE BUREAU"
"Community Services","Grants","D3701","17/01/2017","46292306 - 1","50000.00","Revenue","20008184","CITIZENS ADVICE BUREAU"
"Community Services","Grants","D3701","17/01/2017","46292310 - 1","500.00","Revenue","20005129","BLACKBIRD LEYS CREDIT UNION"
"Community Services","Temporary Bureau Staffing","A0108","17/01/2017","46292313 - 1","574.26","Revenue","20018053","REED SPECIALIST RECRUITMENT LTD"
"Community Services","Temporary Bureau Staffing","A0108","17/01/2017","46292313 - 2","2419.77","Revenue","20018053","REED SPECIALIST RECRUITMENT LTD"
"Community Services","Temporary Bureau Staffing","A0108","17/01/2017","46292313 - 5","2037.89","Revenue","20018053","REED SPECIALIST RECRUITMENT LTD"
"Community Services","Temporary Bureau Staffing","A0108","17/01/2017","46292313 - 6","1107.36","Revenue","20018053","REED SPECIALIST RECRUITMENT LTD"
"Community Services","Temporary Bureau Staffing","A0108","17/01/2017","46292313 - 38","2103.39","Revenue","20018053","REED SPECIALIST RECRUITMENT LTD"
"Community Services","Grants","D3701","24/01/2017","46292363 - 1","500.00","Revenue","20000019","GRANT PAYMENTS"
"Community Services","Grants","D3701","24/01/2017","46292367 - 1","1000.00","Revenue","20000019","GRANT PAYMENTS"
"Community Services","Grants","D3701","24/01/2017","46292368 - 1","984.50","Revenue","20000019","GRANT PAYMENTS"
"Community Services","Grants","D3701","24/01/2017","46292382 - 1","3750.00","Revenue","20010187","OSARCC"
"Community Services","Grants","D3701","24/01/2017","46292383 - 1","3750.00","Revenue","20010187","OSARCC"
"Community Services","Grants","D3701","24/01/2017","46292384 - 1","800.00","Revenue","20000019","GRANT PAYMENTS"
"Community Services","Grants","D3701","31/01/2017","46292406 - 1","932.00","Revenue","20015423","ANGELA CONLAN"
"Community Services","Grants","D3701","31/01/2017","46292430 - 1","8770.50","Revenue","20015408","A2 DOMINION NORTH LTD"
"Community Services","Grants","D3701","31/01/2017","46292431 - 1","8770.50","Revenue","20015408","A2 DOMINION NORTH LTD"
"Community Services","Grants","D3701","07/02/2017","46292478 - 1","10884.00","Revenue","20012251","OXFORDSHIRE COMMUNITY VOLUNTARY ACTION (OCVA)"
"Community Services","Instructors & Coaching Fees","D3413","14/02/2017","46292550 - 1","1540.00","Revenue","20000019","GRANT PAYMENTS"
"Community Services","Consultants Fees","D3411","28/02/2017","46292552 - 8","84.00","Revenue","20011499","TOPS"
"Community Services","Grants","D3701","14/02/2017","46292578 - 1","21869.50","Revenue","20009161","ROSE HILL & DONNINGTON ADVICE CENTRE LTD"
"Community Services","Grants","D3701","21/02/2017","46292595 - 1","1000.00","Revenue","20018343","EUTON DALEY"
"Community Services","Temporary Bureau Staffing","A0108","14/02/2017","46292607 - 1","456.73","Revenue","20018053","REED SPECIALIST RECRUITMENT LTD"
"Community Services","Temporary Bureau Staffing","A0108","14/02/2017","46292607 - 2","2027.20","Revenue","20018053","REED SPECIALIST RECRUITMENT LTD"
"Community Services","Temporary Bureau Staffing","A0108","14/02/2017","46292607 - 4","2309.14","Revenue","20018053","REED SPECIALIST RECRUITMENT LTD"
"Community Services","Temporary Bureau Staffing","A0108","14/02/2017","46292607 - 5","507.13","Revenue","20018053","REED SPECIALIST RECRUITMENT LTD"
"Community Services","Temporary Bureau Staffing","A0108","14/02/2017","46292607 - 36","2328.63","Revenue","20018053","REED SPECIALIST RECRUITMENT LTD"
"Community Services","Grants","D3701","21/02/2017","46292612 - 1","5375.00","Revenue","20012913","FCC RECYCLING (UK) LTD"
"Community Services","Grants","D3701","21/02/2017","46292613 - 1","5375.00","Revenue","20012913","FCC RECYCLING (UK) LTD"
"Community Services","Awards / Prizes","D3705","21/02/2017","46292636 - 1","5000.00","Revenue","20009538","CUTTESLOWE COMMUNITY ASSOCIATION"
"Community Services","Contributions","D3702","21/02/2017","46292638 - 1","2500.00","Revenue","20000018","Homelessness Holding Fee Misc Account"
"Community Services","Contributions","D3702","07/03/2017","46292782 - 1","500.00","Revenue","20000019","GRANT PAYMENTS"
"Community Services","Contributions","D3702","07/03/2017","46292785 - 1","500.00","Revenue","20000019","GRANT PAYMENTS"
"Community Services","Contributions","D3702","07/03/2017","46292786 - 1","500.00","Revenue","20015863","COWLEY ROAD WORKS (EAST OXFORD ACTION CHARITY)"
"Community Services","Grants","D3701","07/03/2017","46292793 - 1","1222.00","Revenue","20000019","GRANT PAYMENTS"
"Community Services","Security Services","D3418","21/03/2017","46292872 - 1","7573.61","Revenue","20011183","SELECT SECURITY & STEWARDING LIMITED"
"Community Services","Temporary Bureau Staffing","A0108","14/03/2017","46292899 - 1","457.24","Revenue","20018053","REED SPECIALIST RECRUITMENT LTD"
"Community Services","Temporary Bureau Staffing","A0108","14/03/2017","46292899 - 2","2373.71","Revenue","20018053","REED SPECIALIST RECRUITMENT LTD"
"Community Services","Temporary Bureau Staffing","A0108","14/03/2017","46292899 - 6","1700.80","Revenue","20018053","REED SPECIALIST RECRUITMENT LTD"
"Community Services","Temporary Bureau Staffing","A0108","14/03/2017","46292899 - 7","718.57","Revenue","20018053","REED SPECIALIST RECRUITMENT LTD"
"Community Services","Temporary Bureau Staffing","A0108","14/03/2017","46292899 - 23","2230.41","Revenue","20018053","REED SPECIALIST RECRUITMENT LTD"
"Community Services","Temporary Bureau Staffing","A0108","14/03/2017","46292899 - 41","2588.50","Revenue","20018053","REED SPECIALIST RECRUITMENT LTD"
"Community Services","Grants","D3701","14/03/2017","46292900 - 1","500.00","Revenue","20009501","THE LEYS CDI"
"Community Services","Grants","D3701","14/03/2017","46292901 - 1","1282.00","Revenue","20018888","OXFORDSHIRE YOUTH"
"Community Services","Grants","D3701","14/03/2017","46292902 - 1","1000.00","Revenue","20018888","OXFORDSHIRE YOUTH"
"Community Services","Grants","D3701","14/03/2017","46292903 - 1","1000.00","Revenue","20019273","VIVA NETWORK"
"Community Services","Grants","D3701","14/03/2017","46292904 - 1","1000.00","Revenue","20018891","OXFORD AGAINST CUTTING"
"Community Services","Grants","D3701","14/03/2017","46292905 - 1","2000.00","Revenue","20008209","DONNINGTON DOORSTEP"
"Community Services","Grants","D3701","14/03/2017","46292906 - 1","2000.00","Revenue","20008209","DONNINGTON DOORSTEP"
"Community Services","Grants","D3701","21/03/2017","46292956 - 1","500.00","Revenue","20015250","OXFORD PHILHARMONIC ORCHESTRA TRUST"
"Community Services","Grants","D3701","21/03/2017","46292958 - 1","500.00","Revenue","20019320","HOST OXFORD LTD"
"Community Services","Grants","D3701","14/03/2017","46292959 - 1","500.00","Revenue","20016573","COMMUNITY EMERGENCY FOODBANK"
"Community Services","Grants","D3701","21/03/2017","46292979 - 1","500.00","Revenue","20009717","ARK T CENTRE"
"Community Services","Grants","D3701","21/03/2017","46292980 - 1","500.00","Revenue","20009717","ARK T CENTRE"
"Community Services","Grants","D3701","21/03/2017","46292991 - 1","28627.75","Revenue","20009163","OXFORD COMMUNITY WORK AGENCY L"
"Community Services","Contributions","D3702","21/03/2017","46292998 - 1","500.00","Revenue","20000019","GRANT PAYMENTS"
"Community Services","Grants","D3701","21/03/2017","46293000 - 1","740.00","Revenue","20008142","TRAX"
"Community Services","Grants","D3701","21/03/2017","46293014 - 1","750.00","Revenue","20011181","OXFORD INTERNATIONAL LINKS"
"Community Services","Grants","D3701","21/03/2017","46293015 - 1","1000.00","Revenue","20009273","ASYLUM WELCOME"
"Community Services","Grants","D3701","21/03/2017","46293016 - 1","500.00","Revenue","20009501","THE LEYS CDI"
"Community Services","Grants","D3701","21/03/2017","46293017 - 1","500.00","Revenue","20004720","THE ARCHWAY FOUNDATION"
"Community Services","Grants","D3701","21/03/2017","46293018 - 1","3000.00","Revenue","20016440","ARTS AT THE OLD FIRE STATION"
"Community Services","Grants","D3701","21/03/2017","46293020 - 1","1000.00","Revenue","20017627","INNOVISTA INTERNATIONAL"
"Community Services","Grants","D3701","21/03/2017","46293021 - 1","500.00","Revenue","20009133","BLACKBIRD LEYS ADVENTURE PLAYGROUND"
"Community Services","Grants","D3701","21/03/2017","46293022 - 1","1000.00","Revenue","20009501","THE LEYS CDI"
"Community Services","Grants","D3701","21/03/2017","46293026 - 1","1000.00","Revenue","20013231","WOOD FARM YOUTH CENTRE"
"Community Services","Grants","D3701","21/03/2017","46293027 - 1","500.00","Revenue","20008780","LEYS NEWS LTD"
"Community Services","Grants","D3701","21/03/2017","46293028 - 1","1000.00","Revenue","20016059","ROSE HILL JUNIOR YOUTH CLUB"
"Community Services","Grants","D3701","21/03/2017","46293029 - 1","500.00","Revenue","20016059","ROSE HILL JUNIOR YOUTH CLUB"
"Community Services","General Contracted Services","D3401","21/03/2017","46293050 - 1","500.00","Revenue","20000000","GENERAL EXPENSES"
"Community Services","Grants","D3701","28/03/2017","46293068 - 1","660.50","Revenue","20004327","THE PORCH"
"Community Services","Grants","D3701","28/03/2017","46293075 - 1","1000.00","Revenue","20009134","OXFORD PLAYHOUSE TRUST"
"Community Services","Grants","D3701","28/03/2017","46293076 - 1","500.00","Revenue","20011717","OVADA LIMITED"
"Community Services","Grants","D3701","28/03/2017","46293077 - 1","500.00","Revenue","20011717","OVADA LIMITED"
"Community Services","Grants","D3701","28/03/2017","46293078 - 1","2000.00","Revenue","20008713","OXFORD CONTEMPORARY MUSIC"
"Community Services","Grants","D3701","28/03/2017","46293079 - 1","1000.00","Revenue","20008713","OXFORD CONTEMPORARY MUSIC"
"Community Services","Contributions","D3702","28/03/2017","46293082 - 1","1500.00","Revenue","20008209","DONNINGTON DOORSTEP"
"Community Services","Grants","D3701","28/03/2017","46293086 - 1","500.00","Revenue","20018674","WORKERS EDUCATIONAL ASSOCIATION"
"Community Services","Grants","D3701","28/03/2017","46293113 - 1","3000.00","Revenue","20009385","THE PARASOL PROJECT"
"Community Services","Grants","D3701","28/03/2017","46293114 - 1","4796.34","Revenue","20009501","THE LEYS CDI"
"Community Services","Grants","D3701","28/03/2017","46293115 - 1","2700.00","Revenue","20009847","DOVECOTE VOLUNTARY PARENT COMMITTEE"
"Community Services","General Contracted Services","D3401","28/03/2017","46293118 - 1","500.00","Revenue","20000018","Homelessness Holding Fee Misc Account"
"Community Services","General Contracted Services","D3401","28/03/2017","46293119 - 1","500.00","Revenue","20000019","GRANT PAYMENTS"
"Community Services","Grants","D3701","24/03/2017","46293134 - 1","4000.00","Revenue","20014213","ST GREGORY THE GREAT SCHOOL"
"Community Services","Grants","D3701","28/03/2017","46293135 - 1","6921.60","Revenue","20014363","OCC ROSE HILL PRIMARY SCHOOL"
"Community Services","Grants","D3701","28/03/2017","46293136 - 1","4796.34","Revenue","20009133","BLACKBIRD LEYS ADVENTURE PLAYGROUND"
"Community Services","Grants","D3701","28/03/2017","46293139 - 1","3045.60","Revenue","20000019","GRANT PAYMENTS"
"Community Services","Grants","D3701","28/03/2017","46293150 - 1","1500.00","Revenue","20009134","OXFORD PLAYHOUSE TRUST"
"Community Services","Grants","D3701","28/03/2017","46293151 - 1","1000.00","Revenue","20009134","OXFORD PLAYHOUSE TRUST"
"Community Services","Grants","D3701","23/03/2017","46293154 - 1","1000.00","Revenue","20009131","FILM OXFORD"
"Community Services","Grants","D3701","28/03/2017","46293155 - 1","500.00","Revenue","20008209","DONNINGTON DOORSTEP"
"Community Services","Grants","D3701","28/03/2017","46293157 - 1","7000.00","Revenue","20002085","FUSION-OXFORD'S COMMUNITY ARTS AGENCY LIMITED"
"Community Services","Grants","D3701","28/03/2017","46293158 - 1","1000.00","Revenue","20009131","FILM OXFORD"
"Community Services","Grants","D3701","28/03/2017","46293159 - 1","2000.00","Revenue","20009131","FILM OXFORD"
"Community Services","Gas","B1502","21/02/2017","47017431 - 1","501.72","Revenue","20007602","TOTAL GAS & POWER LTD"
"Community Services","Gas","B1502","21/02/2017","47017434 - 1","421.40","Revenue","20007602","TOTAL GAS & POWER LTD"
"Community Services","Gas","B1502","21/02/2017","47017444 - 1","470.24","Revenue","20007602","TOTAL GAS & POWER LTD"
"Community Services","Gas","B1502","21/02/2017","47017447 - 0","484.22","Revenue","20007602","TOTAL GAS & POWER LTD"
"Community Services","Gas","B1502","21/02/2017","47017453 - 0","4016.07","Revenue","20007602","TOTAL GAS & POWER LTD"
"Community Services","Electricity","B1501","17/01/2017","47017879 - 0","10799.26","Revenue","20011411","NPOWER"
"Community Services","Gas","B1502","21/02/2017","47017883 - 1","1401.14","Revenue","20007602","TOTAL GAS & POWER LTD"
"Community Services","Gas","B1502","21/02/2017","47017886 - 0","603.28","Revenue","20007602","TOTAL GAS & POWER LTD"
"Community Services","Gas","B1502","21/02/2017","47017910 - 0","781.04","Revenue","20007602","TOTAL GAS & POWER LTD"
"Community Services","Electricity","B1501","24/01/2017","47017931 - 1","558.67","Revenue","20007269","E.ON"
"Community Services","Electricity","B1501","24/01/2017","47018407 - 1","6820.11","Revenue","20011411","NPOWER"
"Community Services","Water & Sewerage Charges","B1830","14/02/2017","47018428 - 1","570.04","Revenue","20019401","CASTLE WATER"
"Community Services","Electricity","B1501","21/02/2017","47018485 - 0","10686.24","Revenue","20011411","NPOWER"
"Community Services","Electricity","B1501","21/02/2017","47018486 - 1","7546.28","Revenue","20011411","NPOWER"
"Community Services","Gas","B1502","21/02/2017","47018526 - 1","1482.68","Revenue","20002402","SOUTHERN ELECTRIC PLC"
"Community Services","Electricity","B1501","21/02/2017","47018559 - 0","990.01","Revenue","20002402","SOUTHERN ELECTRIC PLC"
"Community Services","Gas","B1502","21/02/2017","47018590 - 0","1047.38","Revenue","20007602","TOTAL GAS & POWER LTD"
"Community Services","Gas","B1502","21/02/2017","47018591 - 1","563.71","Revenue","20007602","TOTAL GAS & POWER LTD"
"Community Services","Electricity","B1501","21/03/2017","47018843 - 0","2255.16","Revenue","20002402","SOUTHERN ELECTRIC PLC"
"Community Services","Gas","B1502","21/03/2017","47018846 - 1","3033.71","Revenue","20002402","SOUTHERN ELECTRIC PLC"
"Community Services","Electricity","B1501","21/03/2017","47018863 - 0","471.31","Revenue","20002402","SOUTHERN ELECTRIC PLC"
"Community Services","Electricity","B1501","21/03/2017","47018881 - 0","1165.29","Revenue","20002402","SOUTHERN ELECTRIC PLC"
"Community Services","Electricity","B1501","28/03/2017","47018885 - 1","1002.52","Revenue","20007269","E.ON"
"Community Services","Electricity","B1501","28/03/2017","47018886 - 0","10123.65","Revenue","20011411","NPOWER"
"Community Services","Electricity","B1501","28/03/2017","47018887 - 1","4901.63","Revenue","20011411","NPOWER"
"Community Services","Electricity","B1501","28/03/2017","47018890 - 0","4926.91","Revenue","20011411","NPOWER"
"Community Services","Electricity","B1501","28/03/2017","47018892 - 0","5251.36","Revenue","20011411","NPOWER"
"Community Services","Electricity","B1501","28/03/2017","47018894 - 0","5158.99","Revenue","20011411","NPOWER"
"Community Services","Electricity","B1501","28/03/2017","47018901 - 0","7072.54","Revenue","20011411","NPOWER"
"Community Services","Electricity","B1501","28/03/2017","47018903 - 0","5225.39","Revenue","20011411","NPOWER"
"Direct Services","Short Courses","A0622","07/03/2017","1032901 - 0","1500.00","Revenue","20002331","OXFORD BROOKES UNIVERSITY"
"Direct Services","Reactive Maintenance & Minor Repairs","B1101","10/01/2017","1033273 - 1","428.35","Revenue","20010599","GB SPORT & LEISURE UK LTD"
"Direct Services","Rent","B1701","10/01/2017","1033283 - 1","22210.50","Revenue","20019125","PEARTREE OXFORD LTD"
"Direct Services","Online Services","D3510","10/01/2017","1033883 - 1","1500.00","Revenue","20019403","ASSERTIVE MEDIA SOLUTIONS LTD"
"Direct Services","Online Services","D3510","24/01/2017","1033884 - 1","1500.00","Revenue","20019403","ASSERTIVE MEDIA SOLUTIONS LTD"
"Direct Services","Protective Clothing","D3201","10/01/2017","1033899 - 0","165.01","Revenue","20002034","ARCO LTD"
"Direct Services","Protective Clothing","D3201","10/01/2017","1033899 - 1","173.00","Revenue","20002034","ARCO LTD"
"Direct Services","Protective Clothing","D3201","10/01/2017","1033899 - 2","27.00","Revenue","20002034","ARCO LTD"
"Direct Services","Protective Clothing","D3201","10/01/2017","1033899 - 3","159.90","Revenue","20002034","ARCO LTD"
"Direct Services","Materials","D3021","10/01/2017","1033900 - 0","788.53","Revenue","20018307","BARRETTINE ENVIRONMENTAL HEALTH (J.V. BARRETT CO)"
"Direct Services","Tools","D3023","10/01/2017","1033942 - 1","437.03","Revenue","20002434","TOOLMASTER (OXFORD) LTD"
"Direct Services","Waste Disposal & Skip Hire","D3420","10/01/2017","1033963 - 0","600.00","Revenue","20002279","M & M SKIP HIRE LTD"
"Direct Services","Short Courses","A0622","10/01/2017","1033983 - 0","535.00","Revenue","20015755","JLD DRIVER TRAINING LTD"
"Direct Services","Services Maintenance (Planned)","B1103","24/01/2017","1034031 - 1","2090.00","Revenue","20013614","SMS ENVIRONMENTAL LIMITED"
"Direct Services","Furniture & Equipment Purchase","D3001","10/01/2017","1034064 - 0","2871.00","Revenue","20016006","HAGS-SMP LTD"
"Direct Services","Services Maintenance (Planned)","B1103","10/01/2017","1034086 - 1","8650.70","Revenue","20002351","PHS GROUP PLC"
"Direct Services","Short Courses","A0622","10/01/2017","1034087 - 0","1236.00","Revenue","20009350","APSE"
"Direct Services","Short Courses","A0622","10/01/2017","1034149 - 0","1245.00","Revenue","20015755","JLD DRIVER TRAINING LTD"
"Direct Services","Services Maintenance (Planned)","B1103","10/01/2017","1034176 - 0","245.00","Revenue","20000249","SSE CONTRACTING LTD"
"Direct Services","Services Maintenance (Planned)","B1103","10/01/2017","1034176 - 3","448.70","Revenue","20000249","SSE CONTRACTING LTD"
"Direct Services","Postage & Carriage","D3501","10/01/2017","1034192 - 1","512.00","Revenue","20008154","FRANCOTYP-POSTALIA TELESET - POSTAGE"
"Direct Services","Subscriptions","D3703","10/01/2017","1034193 - 0","6000.00","Revenue","20012480","HOUSEMARK LTD"
"Direct Services","General Contracted Services","D3401","24/01/2017","1034195 - 0","4449.11","Revenue","20002120","OCS GROUP UK LTD T/A CANNON"
"Direct Services","General Contracted Services","D3401","24/01/2017","1034196 - 0","456.23","Revenue","20002120","OCS GROUP UK LTD T/A CANNON"
"Direct Services","Materials","D3021","17/01/2017","1034238 - 0","423.70","Revenue","20002467","AWBS LTD"
"Direct Services","Services Maintenance (Planned)","B1103","24/01/2017","1034270 - 1","1849.53","Revenue","20002351","PHS GROUP PLC"
"Direct Services","Services Maintenance (Planned)","B1103","24/01/2017","1034271 - 1","719.74","Revenue","20002351","PHS GROUP PLC"
"Direct Services","Materials","D3021","24/01/2017","1034276 - 1","823.45","Revenue","20003218","BOC LTD"
"Direct Services","General Stationery Supplies","D3301","24/01/2017","1034293 - 0","426.80","Revenue","20007849","LYRECO UK LTD"
"Direct Services","General Stationery Supplies","D3301","24/01/2017","1034293 - 1","115.49","Revenue","20007849","LYRECO UK LTD"
"Direct Services","Plants","D3025","07/02/2017","1034294 - 0","8070.00","Revenue","20003592","BARCHAM TREES PLC"
"Direct Services","Materials","D3021","31/01/2017","1034300 - 0","637.12","Revenue","20002467","AWBS LTD"
"Direct Services","Materials","D3021","31/01/2017","1034301 - 1","596.64","Revenue","20002467","AWBS LTD"
"Direct Services","General Contracted Services","D3401","24/01/2017","1034355 - 0","2389.20","Revenue","20016581","JADE SECURITY SERVICES LTD"
"Direct Services","Waste Disposal & Skip Hire","D3420","24/01/2017","1034365 - 0","820.15","Revenue","20000263","SHEEHAN HAULAGE & PLANT HIRE LTD"
"Direct Services","Waste Disposal & Skip Hire","D3420","17/01/2017","1034366 - 0","1313.10","Revenue","20002279","M & M SKIP HIRE LTD"
"Direct Services","Consultants Fees","D3411","31/01/2017","1034376 - 0","2195.00","Revenue","20018546","JAAMA LTD"
"Direct Services","General Contracted Services","D3401","17/01/2017","1034394 - 0","7611.00","Revenue","20000253","S. J.  MCBRIDE  LTD.  T/A  WAREFENCE"
"Direct Services","General Contracted Services","D3401","07/02/2017","1034410 - 0","3450.00","Revenue","20019077","COMPLETE TREE SERVICES (UK) LTD"
"Direct Services","General Contracted Services","D3401","17/01/2017","1034463 - 0","3002.79","Revenue","20016581","JADE SECURITY SERVICES LTD"
"Direct Services","Materials","D3021","17/01/2017","1034470 - 0","487.80","Revenue","20008003","ADHECTIC LTD"
"Direct Services","Short Courses","A0622","07/02/2017","1034489 - 0","745.00","Revenue","20009091","TMS CONSULTANCY"
"Direct Services","Short Courses","A0622","07/02/2017","1034489 - 1","745.00","Revenue","20009091","TMS CONSULTANCY"
"Direct Services","Waste Disposal & Skip Hire","D3420","24/01/2017","1034503 - 0","1586.76","Revenue","20002222","GRUNDON WASTE MANAGEMENT LTD"
"Direct Services","Materials","D3021","07/02/2017","1034516 - 0","466.56","Revenue","20008377","FLEET (LINE MARKERS) LTD"
"Direct Services","Materials External","D3029","07/02/2017","1034530 - 0","2583.33","Revenue","20018900","HANSON GARAGES LTD"
"Direct Services","Services Maintenance (Planned)","B1103","24/01/2017","1034535 - 1","1843.60","Revenue","20002351","PHS GROUP PLC"
"Direct Services","Temporary Bureau Staffing","A0108","24/01/2017","1034547 - 0","611.08","Revenue","20011406","HAYS SPECIALIST RECRUITMENT LTD"
"Direct Services","Contract Plant Hire","C2402","14/02/2017","1034554 - 1","836.00","Revenue","20015309","GAP GROUP LTD"
"Direct Services","Contract Plant Hire","C2402","14/02/2017","1034557 - 1","512.00","Revenue","20015309","GAP GROUP LTD"
"Direct Services","Short Courses","A0622","31/01/2017","1034608 - 0","890.00","Revenue","20011791","GOVNET COMMUNICATIONS"
"Direct Services","Postage & Carriage","D3501","24/01/2017","1034621 - 0","1443.34","Revenue","20008022","NEOPOST FINANCE LIMITED"
"Direct Services","Photocopying/Paper Supplies","D3306","07/02/2017","1034638 - 1","455.35","Revenue","20002121","CANON (UK) LTD"
"Direct Services","Photocopying/Paper Supplies","D3306","07/02/2017","1034639 - 1","455.35","Revenue","20002121","CANON (UK) LTD"
"Direct Services","Materials","D3021","07/02/2017","1034646 - 0","500.00","Revenue","20002335","OXFORD FENCING SUPPLIES"
"Direct Services","Services Maintenance (Planned)","B1103","24/01/2017","1034650 - 0","20.00","Revenue","20013614","SMS ENVIRONMENTAL LIMITED"
"Direct Services","Services Maintenance (Planned)","B1103","24/01/2017","1034650 - 1","20.00","Revenue","20013614","SMS ENVIRONMENTAL LIMITED"
"Direct Services","Services Maintenance (Planned)","B1103","24/01/2017","1034650 - 2","100.00","Revenue","20013614","SMS ENVIRONMENTAL LIMITED"
"Direct Services","Services Maintenance (Planned)","B1103","24/01/2017","1034650 - 3","412.00","Revenue","20013614","SMS ENVIRONMENTAL LIMITED"
"Direct Services","Services Maintenance (Planned)","B1103","24/01/2017","1034650 - 4","20.00","Revenue","20013614","SMS ENVIRONMENTAL LIMITED"
"Direct Services","Services Maintenance (Planned)","B1103","24/01/2017","1034651 - 4","1000.00","Revenue","20013614","SMS ENVIRONMENTAL LIMITED"
"Direct Services","Services Maintenance (Planned)","B1103","24/01/2017","1034651 - 5","4000.00","Revenue","20013614","SMS ENVIRONMENTAL LIMITED"
"Direct Services","Services Maintenance (Planned)","B1103","21/02/2017","1034652 - 0","388.76","Revenue","20013614","SMS ENVIRONMENTAL LIMITED"
"Direct Services","Services Maintenance (Planned)","B1103","21/02/2017","1034652 - 5","20.00","Revenue","20013614","SMS ENVIRONMENTAL LIMITED"
"Direct Services","Services Maintenance (Planned)","B1103","21/02/2017","1034652 - 6","173.00","Revenue","20013614","SMS ENVIRONMENTAL LIMITED"
"Direct Services","Services Maintenance (Planned)","B1103","21/02/2017","1034652 - 7","20.00","Revenue","20013614","SMS ENVIRONMENTAL LIMITED"
"Direct Services","Services Maintenance (Planned)","B1103","21/02/2017","1034652 - 10","436.50","Revenue","20013614","SMS ENVIRONMENTAL LIMITED"
"Direct Services","Waste Disposal & Skip Hire","D3420","21/02/2017","1034653 - 0","4111.40","Revenue","20002279","M & M SKIP HIRE LTD"
"Direct Services","Services Maintenance (Planned)","B1103","07/02/2017","1034688 - 0","140.00","Revenue","20000210","BARKER & EVANS LTD"
"Direct Services","Services Maintenance (Planned)","B1103","07/02/2017","1034688 - 5","105.00","Revenue","20000210","BARKER & EVANS LTD"
"Direct Services","Short Courses","A0622","14/02/2017","1034741 - 0","1300.00","Revenue","20019452","MASTER LOCKSMITHS ASSOCIATION"
"Direct Services","General Contracted Services","D3401","31/01/2017","1034756 - 1","865.00","Revenue","20013173","MACCABEE PETS HOTEL"
"Direct Services","Temporary Bureau Staffing","A0108","31/01/2017","1034760 - 0","625.64","Revenue","20011406","HAYS SPECIALIST RECRUITMENT LTD"
"Direct Services","Short Courses","A0622","14/02/2017","1034773 - 0","2200.00","Revenue","20007924","SOUTH CENTRAL AMBULANCE SERVICE"
"Direct Services","Waste Disposal & Skip Hire","D3420","21/02/2017","1034786 - 0","4063.50","Revenue","20002279","M & M SKIP HIRE LTD"
"Direct Services","Waste Disposal & Skip Hire","D3420","14/02/2017","1034795 - 0","1900.00","Revenue","20009586","JRB ENTERPRISE LTD"
"Direct Services","Postage & Carriage","D3501","14/02/2017","1034795 - 1","38.50","Revenue","20009586","JRB ENTERPRISE LTD"
"Direct Services","Engineering Internal Works","B1302","21/02/2017","1034796 - 0","308.96","Revenue","20002296","METRIC GROUP LIMITED"
"Direct Services","Engineering Internal Works","B1302","21/02/2017","1034796 - 1","337.84","Revenue","20002296","METRIC GROUP LIMITED"
"Direct Services","Short Courses","A0622","14/02/2017","1034820 - 0","2960.00","Revenue","20018865","CITY OF BRISTOL COLLEGE"
"Direct Services","Short Courses","A0622","21/02/2017","1034828 - 0","595.00","Revenue","20015755","JLD DRIVER TRAINING LTD"
"Direct Services","Short Courses","A0622","21/02/2017","1034829 - 0","745.00","Revenue","20015755","JLD DRIVER TRAINING LTD"
"Direct Services","Short Courses","A0622","21/02/2017","1034830 - 0","745.00","Revenue","20015755","JLD DRIVER TRAINING LTD"
"Direct Services","Short Courses","A0622","21/02/2017","1034831 - 0","745.00","Revenue","20015755","JLD DRIVER TRAINING LTD"
"Direct Services","General Contracted Services","D3401","07/02/2017","1034842 - 0","960.00","Revenue","20017563","WALSH HAULAGE (OXFORD)"
"Direct Services","Photocopying/Paper Supplies","D3306","21/02/2017","1034846 - 1","835.00","Revenue","20015632","MULTIFLOW PRINT LIMITED"
"Direct Services","Rent","B1701","31/01/2017","1034847 - 1","96675.22","Revenue","20009954","NUFFIELD COLLEGE"
"Direct Services","Short Courses","A0622","14/02/2017","1034849 - 0","525.00","Revenue","20009350","APSE"
"Direct Services","Photocopying/Paper Supplies","D3306","21/02/2017","1034870 - 1","461.58","Revenue","20002121","CANON (UK) LTD"
"Direct Services","Postage & Carriage","D3501","07/02/2017","1034913 - 1","500.00","Revenue","20008154","FRANCOTYP-POSTALIA TELESET - POSTAGE"
"Direct Services","Materials External","D3029","21/02/2017","1034924 - 0","2583.33","Revenue","20018900","HANSON GARAGES LTD"
"Direct Services","Short Courses","A0622","07/02/2017","1034928 - 0","575.00","Revenue","20010620","CIM  HOLDINGS  LIMITED"
"Direct Services","Short Courses","A0622","21/02/2017","1034931 - 0","1096.00","Revenue","20018213","VEHICLE TECHNOLOGY SOLUTIONS LTD"
"Direct Services","Short Courses","A0622","21/02/2017","1034932 - 0","900.00","Revenue","20018213","VEHICLE TECHNOLOGY SOLUTIONS LTD"
"Direct Services","Reactive Maintenance & Minor Repairs","B1101","07/02/2017","1034934 - 0","11622.00","Revenue","20004960","SI PUMPS LTD"
"Direct Services","General Contracted Services","D3401","21/02/2017","1034943 - 0","35544.50","Revenue","20011393","USTIGATE"
"Direct Services","Materials","D3021","21/02/2017","1034947 - 0","520.00","Revenue","20002467","AWBS LTD"
"Direct Services","Waste Disposal & Skip Hire","D3420","07/02/2017","1034957 - 0","460.00","Revenue","20002279","M & M SKIP HIRE LTD"
"Direct Services","Materials","D3021","21/02/2017","1034962 - 0","1327.00","Revenue","20003954","J TOMS LIMITED"
"Direct Services","Postage & Carriage","D3501","21/02/2017","1034962 - 1","16.00","Revenue","20003954","J TOMS LIMITED"
"Direct Services","Services Maintenance (Planned)","B1103","07/02/2017","1034970 - 0","498.00","Revenue","20000244","OXFORD REFRIGERATION LTD"
"Direct Services","Advertising & Publicity","D3802","28/02/2017","1034975 - 0","515.00","Revenue","20016950","LIMPET LABLES UK LTD"
"Direct Services","Materials","D3021","21/02/2017","1034982 - 0","960.06","Revenue","20008752","BARLOW & SONS (HERMITAGE) LTD"
"Direct Services","Materials","D3021","21/02/2017","1034983 - 0","1031.52","Revenue","20008752","BARLOW & SONS (HERMITAGE) LTD"
"Direct Services","Short Courses","A0622","07/02/2017","1034986 - 0","863.04","Revenue","20008229","SITESAFE UK LTD"
"Direct Services","General Contracted Services","D3401","28/02/2017","1034991 - 0","456.23","Revenue","20002120","OCS GROUP UK LTD T/A CANNON"
"Direct Services","General Contracted Services","D3401","28/02/2017","1034992 - 0","4449.11","Revenue","20002120","OCS GROUP UK LTD T/A CANNON"
"Direct Services","Waste Disposal & Skip Hire","D3420","07/02/2017","1034995 - 0","460.00","Revenue","20002279","M & M SKIP HIRE LTD"
"Direct Services","Photocopying/Paper Supplies","D3306","21/02/2017","1035013 - 1","632.65","Revenue","20002121","CANON (UK) LTD"
"Direct Services","Services Maintenance (Planned)","B1103","14/02/2017","1035018 - 1","356.00","Revenue","20000210","BARKER & EVANS LTD"
"Direct Services","General Contracted Services","D3401","28/02/2017","1035031 - 0","1895.00","Revenue","20019077","COMPLETE TREE SERVICES (UK) LTD"
"Direct Services","Services Maintenance (Planned)","B1103","07/02/2017","1035033 - 0","95.00","Revenue","20000249","SSE CONTRACTING LTD"
"Direct Services","Services Maintenance (Planned)","B1103","07/02/2017","1035033 - 4","470.00","Revenue","20000249","SSE CONTRACTING LTD"
"Direct Services","Services Maintenance (Planned)","B1103","07/02/2017","1035033 - 5","146.25","Revenue","20000249","SSE CONTRACTING LTD"
"Direct Services","Services Maintenance (Planned)","B1103","07/02/2017","1035033 - 6","75.00","Revenue","20000249","SSE CONTRACTING LTD"
"Direct Services","Services Maintenance (Planned)","B1103","07/02/2017","1035033 - 7","75.00","Revenue","20000249","SSE CONTRACTING LTD"
"Direct Services","Materials","D3021","28/02/2017","1035064 - 0","427.90","Revenue","20017252","CHERWELL PACKAGING LTD"
"Direct Services","General Contracted Services","D3401","14/02/2017","1035073 - 0","2180.00","Revenue","20013173","MACCABEE PETS HOTEL"
"Direct Services","Tools","D3023","07/03/2017","1035081 - 1","635.25","Revenue","20002919","HONEY BROTHERS LTD"
"Direct Services","Postage & Carriage","D3501","07/03/2017","1035081 - 2","7.95","Revenue","20002919","HONEY BROTHERS LTD"
"Direct Services","Waste Disposal & Skip Hire","D3420","21/02/2017","1035089 - 0","1836.80","Revenue","20002279","M & M SKIP HIRE LTD"
"Direct Services","Plants","D3025","14/02/2017","1035105 - 0","1098.54","Revenue","20018850","WYEVALE NURSERIES"
"Direct Services","Materials","D3021","07/03/2017","1035108 - 0","646.00","Revenue","20011174","KILLGERM CHEMICALS LIMITED"
"Direct Services","Short Courses","A0622","14/02/2017","1035132 - 0","565.00","Revenue","20013617","SWAN FIRE (UK) LIMITED"
"Direct Services","Short Courses","A0622","14/02/2017","1035133 - 0","565.00","Revenue","20013617","SWAN FIRE (UK) LIMITED"
"Direct Services","General Contracted Services","D3401","28/02/2017","1035140 - 0","2362.05","Revenue","20016581","JADE SECURITY SERVICES LTD"
"Direct Services","Waste Disposal & Skip Hire","D3420","21/02/2017","1035141 - 0","460.00","Revenue","20002279","M & M SKIP HIRE LTD"
"Direct Services","Concierge & CCTV","D3507","21/02/2017","1035144 - 0","909.00","Revenue","20012009","COTSWOLD SECURITY SYSTEMS LIMITED"
"Direct Services","Concierge & CCTV","D3507","21/02/2017","1035145 - 0","596.00","Revenue","20012009","COTSWOLD SECURITY SYSTEMS LIMITED"
"Direct Services","Concierge & CCTV","D3507","21/02/2017","1035146 - 0","715.00","Revenue","20012009","COTSWOLD SECURITY SYSTEMS LIMITED"
"Direct Services","Concierge & CCTV","D3507","21/02/2017","1035150 - 0","900.00","Revenue","20012009","COTSWOLD SECURITY SYSTEMS LIMITED"
"Direct Services","Waste Disposal & Skip Hire","D3420","28/02/2017","1035184 - 0","824.80","Revenue","20000263","SHEEHAN HAULAGE & PLANT HIRE LTD"
"Direct Services","Short Courses","A0622","07/03/2017","1035203 - 0","3990.00","Revenue","20009697","CIWM ENTERPRISES LTD"
"Direct Services","Waste Disposal & Skip Hire","D3420","28/02/2017","1035241 - 0","939.74","Revenue","20002222","GRUNDON WASTE MANAGEMENT LTD"
"Direct Services","Reactive Maintenance & Minor Repairs","B1101","21/02/2017","1035244 - 0","3285.00","Revenue","20015392","CPA HORTICULTURE LTD"
"Direct Services","Short Courses","A0622","07/03/2017","1035255 - 0","903.00","Revenue","20009350","APSE"
"Direct Services","Services Maintenance (Planned)","B1103","28/02/2017","1035310 - 0","1005.50","Revenue","20013614","SMS ENVIRONMENTAL LIMITED"
"Direct Services","Services Maintenance (Planned)","B1103","28/02/2017","1035311 - 1","400.00","Revenue","20013614","SMS ENVIRONMENTAL LIMITED"
"Direct Services","Services Maintenance (Planned)","B1103","28/02/2017","1035311 - 4","330.00","Revenue","20013614","SMS ENVIRONMENTAL LIMITED"
"Direct Services","Services Maintenance (Planned)","B1103","28/02/2017","1035314 - 0","220.00","Revenue","20013614","SMS ENVIRONMENTAL LIMITED"
"Direct Services","Services Maintenance (Planned)","B1103","28/02/2017","1035314 - 1","65.20","Revenue","20013614","SMS ENVIRONMENTAL LIMITED"
"Direct Services","Services Maintenance (Planned)","B1103","28/02/2017","1035314 - 8","890.00","Revenue","20013614","SMS ENVIRONMENTAL LIMITED"
"Direct Services","Services Maintenance (Planned)","B1103","28/02/2017","1035314 - 9","2000.00","Revenue","20013614","SMS ENVIRONMENTAL LIMITED"
"Direct Services","Services Maintenance (Planned)","B1103","28/02/2017","1035314 - 11","6074.50","Revenue","20013614","SMS ENVIRONMENTAL LIMITED"
"Direct Services","Services Maintenance (Planned)","B1103","28/02/2017","1035314 - 12","1780.00","Revenue","20013614","SMS ENVIRONMENTAL LIMITED"
"Direct Services","Services Maintenance (Planned)","B1103","28/02/2017","1035314 - 13","1167.00","Revenue","20013614","SMS ENVIRONMENTAL LIMITED"
"Direct Services","Advertising & Publicity","D3802","28/02/2017","1035428 - 0","1900.00","Revenue","20019372","RICHARD SCOTT DESIGN LTD"
"Direct Services","Short Courses","A0622","28/02/2017","1035431 - 0","1125.00","Revenue","20013617","SWAN FIRE (UK) LIMITED"
"Direct Services","Short Courses","A0622","28/02/2017","1035432 - 0","750.00","Revenue","20013617","SWAN FIRE (UK) LIMITED"
"Direct Services","Short Courses","A0622","07/03/2017","1035441 - 0","4225.00","Revenue","20008002","FREIGHT TRANSPORT ASSOCIATION"
"Direct Services","Consultants Fees","D3411","28/02/2017","1035447 - 0","737.91","Revenue","20018748","OPTUM HEALTH SOLUTIONS (UK) LTD"
"Direct Services","Postage & Carriage","D3501","28/02/2017","1035451 - 1","500.00","Revenue","20008154","FRANCOTYP-POSTALIA TELESET - POSTAGE"
"Direct Services","Waste Disposal & Skip Hire","D3420","28/02/2017","1035452 - 0","460.00","Revenue","20002279","M & M SKIP HIRE LTD"
"Direct Services","Rent","B1701","07/03/2017","1035472 - 1","22210.50","Revenue","20019125","PEARTREE OXFORD LTD"
"Direct Services","Waste Disposal & Skip Hire","D3420","14/03/2017","1035476 - 0","1038.00","Revenue","20002279","M & M SKIP HIRE LTD"
"Direct Services","Waste Disposal & Skip Hire","D3420","07/03/2017","1035494 - 0","2362.50","Revenue","20002279","M & M SKIP HIRE LTD"
"Direct Services","Reactive Maintenance & Minor Repairs","B1101","21/03/2017","1035498 - 0","660.00","Revenue","20002296","METRIC GROUP LIMITED"
"Direct Services","Reactive Maintenance & Minor Repairs","B1101","07/03/2017","1035501 - 0","467.57","Revenue","20002241","HURLEY INDUSTRIAL CLEANING EQU"
"Direct Services","General Contracted Services","D3401","21/03/2017","1035520 - 0","595.00","Revenue","20019077","COMPLETE TREE SERVICES (UK) LTD"
"Direct Services","Waste Disposal & Skip Hire","D3420","28/02/2017","1035526 - 0","25000.00","Revenue","20002279","M & M SKIP HIRE LTD"
"Direct Services","Short Courses","A0622","21/03/2017","1035534 - 0","696.47","Revenue","20007924","SOUTH CENTRAL AMBULANCE SERVICE"
"Direct Services","Waste Disposal & Skip Hire","D3420","07/03/2017","1035557 - 0","90.00","Revenue","20002222","GRUNDON WASTE MANAGEMENT LTD"
"Direct Services","Waste Disposal & Skip Hire","D3420","07/03/2017","1035557 - 1","746.88","Revenue","20002222","GRUNDON WASTE MANAGEMENT LTD"
"Direct Services","Short Courses","A0622","07/03/2017","1035571 - 0","2981.25","Revenue","20008229","SITESAFE UK LTD"
"Direct Services","General Contracted Services","D3401","28/03/2017","1035574 - 0","4449.11","Revenue","20002120","OCS GROUP UK LTD T/A CANNON"
"Direct Services","General Contracted Services","D3401","28/03/2017","1035575 - 0","456.23","Revenue","20002120","OCS GROUP UK LTD T/A CANNON"
"Direct Services","Materials","D3021","14/03/2017","1035586 - 0","3796.00","Revenue","20000253","S. J.  MCBRIDE  LTD.  T/A  WAREFENCE"
"Direct Services","Waste Disposal & Skip Hire","D3420","28/03/2017","1035600 - 0","784.00","Revenue","20002712","CLEANSING SERVICE GROUP LTD"
"Direct Services","Materials","D3021","14/03/2017","1035613 - 0","755.00","Revenue","20002467","AWBS LTD"
"Direct Services","Materials","D3021","14/03/2017","1035614 - 0","1262.80","Revenue","20002467","AWBS LTD"
"Direct Services","Reactive Maintenance & Minor Repairs","B1101","28/03/2017","1035626 - 1","722.48","Revenue","20002296","METRIC GROUP LIMITED"
"Direct Services","Contract Printing (External)","D3303","07/03/2017","1035673 - 0","425.00","Revenue","20019101","CRITIQOM LTD"
"Direct Services","Photocopying/Paper Supplies","D3306","21/03/2017","1035708 - 1","1628.14","Revenue","20002121","CANON (UK) LTD"
"Direct Services","Photocopying/Paper Supplies","D3306","21/03/2017","1035712 - 1","1007.38","Revenue","20002121","CANON (UK) LTD"
"Direct Services","Online Services","D3510","28/03/2017","1035744 - 0","1500.00","Revenue","20019403","ASSERTIVE MEDIA SOLUTIONS LTD"
"Direct Services","Services Maintenance (Planned)","B1103","14/03/2017","1035756 - 0","2956.80","Revenue","20000216","CHRISTY LIGHTING LTD"
"Direct Services","Consultants Fees","D3411","28/03/2017","1035780 - 0","1200.00","Revenue","20016536","MK SURVEYS LTD"
"Direct Services","Materials","D3021","28/03/2017","1035801 - 0","475.00","Revenue","20002467","AWBS LTD"
"Direct Services","General Contracted Services","D3401","28/03/2017","1035807 - 0","2106.84","Revenue","20016581","JADE SECURITY SERVICES LTD"
"Direct Services","Tools","D3023","21/03/2017","1035812 - 0","649.42","Revenue","20002435","P A TURNEY LTD"
"Direct Services","Fundamental Service Review","D3314","28/03/2017","1035817 - 0","15343.80","Revenue","20018486","GRANT THORNTON UK LLP"
"Direct Services","Waste Disposal & Skip Hire","D3420","28/03/2017","1035823 - 0","759.70","Revenue","20000263","SHEEHAN HAULAGE & PLANT HIRE LTD"
"Direct Services","Short Courses","A0622","28/03/2017","1035824 - 1","676.50","Revenue","20002387","AEBI SCHMIDT UK LTD"
"Direct Services","Postage & Carriage","D3501","21/03/2017","1035931 - 1","500.00","Revenue","20008154","FRANCOTYP-POSTALIA TELESET - POSTAGE"
"Direct Services","Main Contractor","Y021","28/03/2017","1035998 - 0","5847.60","Capital","20015438","WYG ENVIRONMENT PLANNING TRANSPORT LTD"
"Direct Services","Short Courses","A0622","28/03/2017","1036043 - 0","1700.00","Revenue","20008229","SITESAFE UK LTD"
"Direct Services","Short Courses","A0622","28/03/2017","1036043 - 1","3400.00","Revenue","20008229","SITESAFE UK LTD"
"Direct Services","Main Contractor","Y021","28/03/2017","1036044 - 1","12348.23","Capital","20015438","WYG ENVIRONMENT PLANNING TRANSPORT LTD"
"Direct Services","Short Courses","A0622","28/03/2017","1036064 - 0","431.52","Revenue","20008229","SITESAFE UK LTD"
"Direct Services","Books & Publications","D3302","28/03/2017","1036076 - 0","646.80","Revenue","20007856","NEWSQUEST MIDLANDS, WALES & SOUTH WEST"
"Direct Services","Books & Publications","D3302","28/03/2017","1036077 - 0","485.10","Revenue","20007856","NEWSQUEST MIDLANDS, WALES & SOUTH WEST"
"Direct Services","Short Courses","A0622","28/03/2017","1036086 - 0","1920.00","Revenue","20008002","FREIGHT TRANSPORT ASSOCIATION"
"Direct Services","Materials","D3021","28/03/2017","1036138 - 0","1153.00","Revenue","20000253","S. J.  MCBRIDE  LTD.  T/A  WAREFENCE"
"Direct Services","Short Courses","A0622","28/03/2017","1036154 - 0","2375.00","Revenue","20018734","SMALLPLANET ASSESSORS"
"Direct Services","Short Courses","A0622","28/03/2017","1036169 - 0","1600.00","Revenue","20008229","SITESAFE UK LTD"
"Direct Services","Short Courses","A0622","28/03/2017","1036171 - 0","431.52","Revenue","20008229","SITESAFE UK LTD"
"Direct Services","Short Courses","A0622","28/03/2017","1036172 - 0","480.00","Revenue","20008229","SITESAFE UK LTD"
"Direct Services","Books & Publications","D3302","28/03/2017","1036272 - 6","62.31","Revenue","20007625","MR TIM GRESSWELL"
"Direct Services","Materials","D3021","10/01/2017","46292050 - 1","541.41","Revenue","20002387","AEBI SCHMIDT UK LTD"
"Direct Services","Consultants Fees","D3411","24/01/2017","46292212 - 1","42.00","Revenue","20011499","TOPS"
"Direct Services","Consultants Fees","D3411","24/01/2017","46292212 - 2","126.00","Revenue","20011499","TOPS"
"Direct Services","Consultants Fees","D3411","24/01/2017","46292212 - 4","42.00","Revenue","20011499","TOPS"
"Direct Services","Consultants Fees","D3411","24/01/2017","46292212 - 5","141.00","Revenue","20011499","TOPS"
"Direct Services","Consultants Fees","D3411","24/01/2017","46292212 - 6","198.00","Revenue","20011499","TOPS"
"Direct Services","Consultants Fees","D3411","24/01/2017","46292212 - 8","99.00","Revenue","20011499","TOPS"
"Direct Services","Consultants Fees","D3411","24/01/2017","46292212 - 10","99.00","Revenue","20011499","TOPS"
"Direct Services","Consultants Fees","D3411","24/01/2017","46292212 - 11","84.00","Revenue","20011499","TOPS"
"Direct Services","Pitch & Site Rents","K9534","10/01/2017","46292251 - 1","6875.00","Revenue","20012815","ST MICHAELS PCC"
"Direct Services","Temporary Bureau Staffing","A0108","17/01/2017","46292253 - 1","446.34","Revenue","20000200","CHAMPION EMPLOYMENT LTD"
"Direct Services","Temporary Bureau Staffing","A0108","17/01/2017","46292253 - 7","794.25","Revenue","20000200","CHAMPION EMPLOYMENT LTD"
"Direct Services","Temporary Bureau Staffing","A0108","17/01/2017","46292253 - 8","435.42","Revenue","20000200","CHAMPION EMPLOYMENT LTD"
"Direct Services","Temporary Bureau Staffing","A0108","17/01/2017","46292253 - 9","445.50","Revenue","20000200","CHAMPION EMPLOYMENT LTD"
"Direct Services","Temporary Bureau Staffing","A0108","17/01/2017","46292253 - 10","793.28","Revenue","20000200","CHAMPION EMPLOYMENT LTD"
"Direct Services","Temporary Bureau Staffing","A0108","17/01/2017","46292253 - 11","338.75","Revenue","20000200","CHAMPION EMPLOYMENT LTD"
"Direct Services","Temporary Bureau Staffing","A0108","17/01/2017","46292253 - 12","1350.00","Revenue","20000200","CHAMPION EMPLOYMENT LTD"
"Direct Services","Main Contractor","Y021","17/01/2017","46292253 - 13","525.18","Capital","20000200","CHAMPION EMPLOYMENT LTD"
"Direct Services","Temporary Bureau Staffing","A0108","17/01/2017","46292253 - 14","4950.30","Revenue","20000200","CHAMPION EMPLOYMENT LTD"
"Direct Services","Temporary Bureau Staffing","A0108","17/01/2017","46292253 - 15","372.29","Revenue","20000200","CHAMPION EMPLOYMENT LTD"
"Direct Services","Temporary Bureau Staffing","A0108","17/01/2017","46292253 - 16","966.06","Revenue","20000200","CHAMPION EMPLOYMENT LTD"
"Direct Services","Temporary Bureau Staffing","A0108","17/01/2017","46292253 - 17","363.44","Revenue","20000200","CHAMPION EMPLOYMENT LTD"
"Direct Services","Other Licences And Fees","C2203","17/01/2017","46292262 - 1","35000.00","Revenue","20018045","VEHICLE & OPERATOR SERVICES AGENCY"
"Direct Services","Postage & Carriage","D3501","17/01/2017","46292263 - 1","500.00","Revenue","20009008","NEOPOST LTD RCB CREDIFON  A/C"
"Direct Services","Waste Disposal & Skip Hire","D3420","17/01/2017","46292264 - 1","1583.70","Revenue","20002279","M & M SKIP HIRE LTD"
"Direct Services","Vehicle Excise Licences","C2202","13/01/2017","46292295 - 1","30.00","Revenue","20008465","POST OFFICE LTD"
"Direct Services","Vehicle Excise Licences","C2202","13/01/2017","46292295 - 2","230.00","Revenue","20008465","POST OFFICE LTD"
"Direct Services","Vehicle Excise Licences","C2202","13/01/2017","46292295 - 3","230.00","Revenue","20008465","POST OFFICE LTD"
"Direct Services","Vehicle Excise Licences","C2202","13/01/2017","46292295 - 4","650.00","Revenue","20008465","POST OFFICE LTD"
"Direct Services","Vehicle Excise Licences","C2202","13/01/2017","46292295 - 5","650.00","Revenue","20008465","POST OFFICE LTD"
"Direct Services","Vehicle Excise Licences","C2202","13/01/2017","46292295 - 6","650.00","Revenue","20008465","POST OFFICE LTD"
"Direct Services","Vehicle Excise Licences","C2202","13/01/2017","46292295 - 7","650.00","Revenue","20008465","POST OFFICE LTD"
"Direct Services","Vehicle Excise Licences","C2202","13/01/2017","46292295 - 8","650.00","Revenue","20008465","POST OFFICE LTD"
"Direct Services","Vehicle Excise Licences","C2202","13/01/2017","46292295 - 9","650.00","Revenue","20008465","POST OFFICE LTD"
"Direct Services","Vehicle Excise Licences","C2202","13/01/2017","46292295 - 10","230.00","Revenue","20008465","POST OFFICE LTD"
"Direct Services","Vehicle Excise Licences","C2202","13/01/2017","46292295 - 11","230.00","Revenue","20008465","POST OFFICE LTD"
"Direct Services","Vehicle Excise Licences","C2202","13/01/2017","46292295 - 12","230.00","Revenue","20008465","POST OFFICE LTD"
"Direct Services","Vehicle Excise Licences","C2202","13/01/2017","46292295 - 13","230.00","Revenue","20008465","POST OFFICE LTD"
"Direct Services","Vehicle Excise Licences","C2202","13/01/2017","46292295 - 14","230.00","Revenue","20008465","POST OFFICE LTD"
"Direct Services","Vehicle Excise Licences","C2202","13/01/2017","46292295 - 15","230.00","Revenue","20008465","POST OFFICE LTD"
"Direct Services","Vehicle Excise Licences","C2202","13/01/2017","46292295 - 16","230.00","Revenue","20008465","POST OFFICE LTD"
"Direct Services","Vehicle Excise Licences","C2202","13/01/2017","46292295 - 17","230.00","Revenue","20008465","POST OFFICE LTD"
"Direct Services","Vehicle Excise Licences","C2202","13/01/2017","46292295 - 18","230.00","Revenue","20008465","POST OFFICE LTD"
"Direct Services","Vehicle Excise Licences","C2202","13/01/2017","46292295 - 19","230.00","Revenue","20008465","POST OFFICE LTD"
"Direct Services","Vehicle Excise Licences","C2202","13/01/2017","46292295 - 20","230.00","Revenue","20008465","POST OFFICE LTD"
"Direct Services","Vehicle Excise Licences","C2202","13/01/2017","46292295 - 21","230.00","Revenue","20008465","POST OFFICE LTD"
"Direct Services","Vehicle Excise Licences","C2202","13/01/2017","46292295 - 22","10.00","Revenue","20008465","POST OFFICE LTD"
"Direct Services","Direct Services Supplies & Services","D3339","17/01/2017","46292308 - 1","7000.00","Revenue","20007578","BBOWT"
"Direct Services","General Contracted Services","D3401","17/01/2017","46292311 - 1","960.00","Revenue","20007847","OXFORD CONSERVATION VOLUNTEERS"
"Direct Services","Temporary Bureau Staffing","A0108","17/01/2017","46292313 - 3","1230.47","Revenue","20018053","REED SPECIALIST RECRUITMENT LTD"
"Direct Services","Temporary Bureau Staffing","A0108","17/01/2017","46292313 - 4","184.24","Revenue","20018053","REED SPECIALIST RECRUITMENT LTD"
"Direct Services","Temporary Bureau Staffing","A0108","17/01/2017","46292313 - 22","2931.80","Revenue","20018053","REED SPECIALIST RECRUITMENT LTD"
"Direct Services","Temporary Bureau Staffing","A0108","17/01/2017","46292313 - 26","1750.85","Revenue","20018053","REED SPECIALIST RECRUITMENT LTD"
"Direct Services","Temporary Bureau Staffing","A0108","17/01/2017","46292313 - 29","482.71","Revenue","20018053","REED SPECIALIST RECRUITMENT LTD"
"Direct Services","Temporary Bureau Staffing","A0108","17/01/2017","46292313 - 30","2263.23","Revenue","20018053","REED SPECIALIST RECRUITMENT LTD"
"Direct Services","Temporary Bureau Staffing","A0108","17/01/2017","46292313 - 31","632.78","Revenue","20018053","REED SPECIALIST RECRUITMENT LTD"
"Direct Services","Temporary Bureau Staffing","A0108","17/01/2017","46292313 - 32","3730.80","Revenue","20018053","REED SPECIALIST RECRUITMENT LTD"
"Direct Services","Main Contractor","Y021","17/01/2017","46292313 - 33","1540.65","Capital","20018053","REED SPECIALIST RECRUITMENT LTD"
"Direct Services","Temporary Bureau Staffing","A0108","17/01/2017","46292313 - 34","1659.31","Revenue","20018053","REED SPECIALIST RECRUITMENT LTD"
"Direct Services","Temporary Bureau Staffing","A0108","17/01/2017","46292313 - 35","16720.87","Revenue","20018053","REED SPECIALIST RECRUITMENT LTD"
"Direct Services","Temporary Bureau Staffing","A0108","17/01/2017","46292313 - 36","4361.99","Revenue","20018053","REED SPECIALIST RECRUITMENT LTD"
"Direct Services","Temporary Bureau Staffing","A0108","17/01/2017","46292313 - 37","3292.92","Revenue","20018053","REED SPECIALIST RECRUITMENT LTD"
"Direct Services","General Contracted Services","D3401","17/01/2017","46292325 - 1","59.63","Revenue","20014436","COBALT TELEPHONE TECHNOLOGIES"
"Direct Services","General Contracted Services","D3401","17/01/2017","46292325 - 2","5.42","Revenue","20014436","COBALT TELEPHONE TECHNOLOGIES"
"Direct Services","General Contracted Services","D3401","17/01/2017","46292325 - 3","21.68","Revenue","20014436","COBALT TELEPHONE TECHNOLOGIES"
"Direct Services","General Contracted Services","D3401","17/01/2017","46292325 - 4","124.68","Revenue","20014436","COBALT TELEPHONE TECHNOLOGIES"
"Direct Services","General Contracted Services","D3401","17/01/2017","46292325 - 5","596.30","Revenue","20014436","COBALT TELEPHONE TECHNOLOGIES"
"Direct Services","General Contracted Services","D3401","17/01/2017","46292325 - 6","406.57","Revenue","20014436","COBALT TELEPHONE TECHNOLOGIES"
"Direct Services","General Contracted Services","D3401","17/01/2017","46292325 - 7","21.68","Revenue","20014436","COBALT TELEPHONE TECHNOLOGIES"
"Direct Services","General Contracted Services","D3401","17/01/2017","46292325 - 8","542.09","Revenue","20014436","COBALT TELEPHONE TECHNOLOGIES"
"Direct Services","General Contracted Services","D3401","17/01/2017","46292325 - 9","5.42","Revenue","20014436","COBALT TELEPHONE TECHNOLOGIES"
"Direct Services","General Contracted Services","D3401","17/01/2017","46292325 - 10","287.31","Revenue","20014436","COBALT TELEPHONE TECHNOLOGIES"
"Direct Services","General Contracted Services","D3401","17/01/2017","46292325 - 11","75.89","Revenue","20014436","COBALT TELEPHONE TECHNOLOGIES"
"Direct Services","General Contracted Services","D3401","17/01/2017","46292325 - 12","428.25","Revenue","20014436","COBALT TELEPHONE TECHNOLOGIES"
"Direct Services","General Contracted Services","D3401","17/01/2017","46292325 - 13","140.94","Revenue","20014436","COBALT TELEPHONE TECHNOLOGIES"
"Direct Services","General Contracted Services","D3401","17/01/2017","46292325 - 14","59.63","Revenue","20014436","COBALT TELEPHONE TECHNOLOGIES"
"Direct Services","General Contracted Services","D3401","17/01/2017","46292325 - 15","1089.60","Revenue","20014436","COBALT TELEPHONE TECHNOLOGIES"
"Direct Services","General Contracted Services","D3401","17/01/2017","46292325 - 16","482.46","Revenue","20014436","COBALT TELEPHONE TECHNOLOGIES"
"Direct Services","General Contracted Services","D3401","17/01/2017","46292325 - 17","498.72","Revenue","20014436","COBALT TELEPHONE TECHNOLOGIES"
"Direct Services","General Contracted Services","D3401","17/01/2017","46292325 - 18","574.63","Revenue","20014436","COBALT TELEPHONE TECHNOLOGIES"
"Direct Services","Short Courses","A0622","07/02/2017","46292374 - 1","1180.00","Revenue","20011996","OAK LEAF TREE SERVICES LTD"
"Direct Services","Protective Clothing","D3201","07/02/2017","46292374 - 2","972.05","Revenue","20011996","OAK LEAF TREE SERVICES LTD"
"Direct Services","Temporary Bureau Staffing","A0108","24/01/2017","46292392 - 1","4152.32","Revenue","20016034","BLUE SKY DEVELOPMENT & REGENERATION"
"Direct Services","Temporary Bureau Staffing","A0108","24/01/2017","46292393 - 1","3909.56","Revenue","20016034","BLUE SKY DEVELOPMENT & REGENERATION"
"Direct Services","Temporary Bureau Staffing","A0108","24/01/2017","46292394 - 1","1987.83","Revenue","20016034","BLUE SKY DEVELOPMENT & REGENERATION"
"Direct Services","Materials","D3021","31/01/2017","46292404 - 1","630.00","Revenue","20010966","GEO BROWNS IMPLEMENTS LTD"
"Direct Services","Subscriptions","D3703","31/01/2017","46292422 - 1","600.00","Revenue","20000000","GENERAL EXPENSES"
"Direct Services","Staff Advertising","A0702","31/01/2017","46292444 - 1","3158.21","Revenue","20000000","GENERAL EXPENSES"
"Direct Services","Services Maintenance (Planned)","B1103","07/02/2017","46292477 - 2","70.00","Revenue","20004494","COTSWOLD LIFTS LTD"
"Direct Services","Advertising & Publicity","D3802","07/02/2017","46292479 - 1","5708.00","Revenue","20000000","GENERAL EXPENSES"
"Direct Services","Materials","D3021","07/02/2017","46292482 - 1","2872.86","Revenue","20011436","PACE FUEL CARE"
"Direct Services","Materials","D3021","07/02/2017","46292484 - 1","19181.42","Revenue","20011436","PACE FUEL CARE"
"Direct Services","Subscriptions","D3703","07/02/2017","46292524 - 1","536.25","Revenue","20016312","ECA LTD"
"Direct Services","Short Courses","A0622","07/02/2017","46292525 - 1","430.00","Revenue","20000000","GENERAL EXPENSES"
"Direct Services","Materials","D3021","21/02/2017","46292527 - 1","982.15","Revenue","20002033","Green Machines Sweepers UK Ltd"
"Direct Services","Protective Clothing","D3201","07/02/2017","46292534 - 1","626.22","Revenue","20002005","HANSON AGGREGATES"
"Direct Services","Materials","D3021","07/02/2017","46292536 - 1","877.37","Revenue","20002005","HANSON AGGREGATES"
"Direct Services","Materials","D3021","07/02/2017","46292537 - 1","1118.87","Revenue","20002005","HANSON AGGREGATES"
"Direct Services","Consultants Fees","D3411","28/02/2017","46292552 - 1","42.00","Revenue","20011499","TOPS"
"Direct Services","Consultants Fees","D3411","28/02/2017","46292552 - 2","438.00","Revenue","20011499","TOPS"
"Direct Services","Consultants Fees","D3411","28/02/2017","46292552 - 4","42.00","Revenue","20011499","TOPS"
"Direct Services","Consultants Fees","D3411","28/02/2017","46292552 - 5","225.00","Revenue","20011499","TOPS"
"Direct Services","Consultants Fees","D3411","28/02/2017","46292552 - 6","42.00","Revenue","20011499","TOPS"
"Direct Services","Consultants Fees","D3411","28/02/2017","46292552 - 7","99.00","Revenue","20011499","TOPS"
"Direct Services","Consultants Fees","D3411","28/02/2017","46292552 - 9","126.00","Revenue","20011499","TOPS"
"Direct Services","Consultants Fees","D3411","28/02/2017","46292552 - 10","42.00","Revenue","20011499","TOPS"
"Direct Services","Consultants Fees","D3411","28/02/2017","46292552 - 14","57.00","Revenue","20011499","TOPS"
"Direct Services","Vehicle Excise Licences","C2202","08/02/2017","46292561 - 1","230.00","Revenue","20008465","POST OFFICE LTD"
"Direct Services","Vehicle Excise Licences","C2202","08/02/2017","46292561 - 2","230.00","Revenue","20008465","POST OFFICE LTD"
"Direct Services","Vehicle Excise Licences","C2202","08/02/2017","46292561 - 3","165.00","Revenue","20008465","POST OFFICE LTD"
"Direct Services","Vehicle Excise Licences","C2202","08/02/2017","46292561 - 4","20.00","Revenue","20008465","POST OFFICE LTD"
"Direct Services","Vehicle Excise Licences","C2202","08/02/2017","46292561 - 5","230.00","Revenue","20008465","POST OFFICE LTD"
"Direct Services","Vehicle Excise Licences","C2202","08/02/2017","46292561 - 6","145.00","Revenue","20008465","POST OFFICE LTD"
"Direct Services","Vehicle Excise Licences","C2202","08/02/2017","46292561 - 7","230.00","Revenue","20008465","POST OFFICE LTD"
"Direct Services","Vehicle Excise Licences","C2202","08/02/2017","46292561 - 8","230.00","Revenue","20008465","POST OFFICE LTD"
"Direct Services","Vehicle Excise Licences","C2202","08/02/2017","46292561 - 9","165.00","Revenue","20008465","POST OFFICE LTD"
"Direct Services","Vehicle Excise Licences","C2202","08/02/2017","46292561 - 10","165.00","Revenue","20008465","POST OFFICE LTD"
"Direct Services","Vehicle Excise Licences","C2202","08/02/2017","46292561 - 11","230.00","Revenue","20008465","POST OFFICE LTD"
"Direct Services","Vehicle Excise Licences","C2202","08/02/2017","46292561 - 12","230.00","Revenue","20008465","POST OFFICE LTD"
"Direct Services","Vehicle Excise Licences","C2202","08/02/2017","46292561 - 13","230.00","Revenue","20008465","POST OFFICE LTD"
"Direct Services","Vehicle Excise Licences","C2202","08/02/2017","46292561 - 14","230.00","Revenue","20008465","POST OFFICE LTD"
"Direct Services","Vehicle Excise Licences","C2202","08/02/2017","46292561 - 15","230.00","Revenue","20008465","POST OFFICE LTD"
"Direct Services","Vehicle Excise Licences","C2202","08/02/2017","46292561 - 16","230.00","Revenue","20008465","POST OFFICE LTD"
"Direct Services","Vehicle Excise Licences","C2202","08/02/2017","46292561 - 17","165.00","Revenue","20008465","POST OFFICE LTD"
"Direct Services","Vehicle Excise Licences","C2202","08/02/2017","46292561 - 18","230.00","Revenue","20008465","POST OFFICE LTD"
"Direct Services","Vehicle Excise Licences","C2202","08/02/2017","46292561 - 19","230.00","Revenue","20008465","POST OFFICE LTD"
"Direct Services","Vehicle Excise Licences","C2202","08/02/2017","46292561 - 20","230.00","Revenue","20008465","POST OFFICE LTD"
"Direct Services","Vehicle Excise Licences","C2202","08/02/2017","46292561 - 21","230.00","Revenue","20008465","POST OFFICE LTD"
"Direct Services","Vehicle Excise Licences","C2202","08/02/2017","46292561 - 22","230.00","Revenue","20008465","POST OFFICE LTD"
"Direct Services","Vehicle Excise Licences","C2202","08/02/2017","46292561 - 23","230.00","Revenue","20008465","POST OFFICE LTD"
"Direct Services","Vehicle Excise Licences","C2202","08/02/2017","46292561 - 24","230.00","Revenue","20008465","POST OFFICE LTD"
"Direct Services","Vehicle Excise Licences","C2202","08/02/2017","46292561 - 25","230.00","Revenue","20008465","POST OFFICE LTD"
"Direct Services","Vehicle Excise Licences","C2202","08/02/2017","46292561 - 26","230.00","Revenue","20008465","POST OFFICE LTD"
"Direct Services","Vehicle Excise Licences","C2202","08/02/2017","46292561 - 27","230.00","Revenue","20008465","POST OFFICE LTD"
"Direct Services","Vehicle Excise Licences","C2202","08/02/2017","46292561 - 28","230.00","Revenue","20008465","POST OFFICE LTD"
"Direct Services","Vehicle Excise Licences","C2202","08/02/2017","46292561 - 29","230.00","Revenue","20008465","POST OFFICE LTD"
"Direct Services","Vehicle Excise Licences","C2202","08/02/2017","46292561 - 30","230.00","Revenue","20008465","POST OFFICE LTD"
"Direct Services","Vehicle Excise Licences","C2202","08/02/2017","46292561 - 31","230.00","Revenue","20008465","POST OFFICE LTD"
"Direct Services","Vehicle Excise Licences","C2202","08/02/2017","46292561 - 32","230.00","Revenue","20008465","POST OFFICE LTD"
"Direct Services","Vehicle Excise Licences","C2202","08/02/2017","46292561 - 33","230.00","Revenue","20008465","POST OFFICE LTD"
